Organisation Code,Organisation Label,Effective Date,Organisational Unit,Service Division Label,Category Internal Name,Purpose,Detailed Expenditure Code,Payment Date,Transaction Number,Irrecoverable VAT Amount,Amount,Capital Or Revenue,Benificiary Name,Procurement Card
Http://opendatacommunities.org/id/metropolitan-district-council/leeds,Leeds City Council,30/04/2019,Resources and Housing,Leeds Building Services,Supplies and Services,Operational Materials,205,16/04/2019,1904-00001,0.00,39.76,R,A Andrews & Sons (Marbles & Tiles),No
Http://opendatacommunities.org/id/metropolitan-district-council/leeds,Leeds City Council,30/04/2019,Resources and Housing,Leeds Building Services,Supplies and Services,Operational Materials,205,16/04/2019,1904-00002,0.00,6.02,R,A Andrews & Sons (Marbles & Tiles),No
Http://opendatacommunities.org/id/metropolitan-district-council/leeds,Leeds City Council,30/04/2019,Resources and Housing,Leeds Building Services,Supplies and Services,Operational Materials,205,16/04/2019,1904-00003,0.00,23.35,R,A Andrews & Sons (Marbles & Tiles),No
Http://opendatacommunities.org/id/metropolitan-district-council/leeds,Leeds City Council,30/04/2019,Resources and Housing,Leeds Building Services,Supplies and Services,Operational Materials,205,16/04/2019,1904-00004,0.00,47.63,R,A Andrews & Sons (Marbles & Tiles),No
Http://opendatacommunities.org/id/metropolitan-district-council/leeds,Leeds City Council,30/04/2019,Resources and Housing,Leeds Building Services,Supplies and Services,Operational Materials,205,16/04/2019,1904-00005,0.00,22.20,R,A Andrews & Sons (Marbles & Tiles),No
Http://opendatacommunities.org/id/metropolitan-district-council/leeds,Leeds City Council,30/04/2019,City Development,Libraries  Arts & Heritage,Supplies and Services,Operational Furniture And Equipment,203,04/04/2019,1904-00006,0.00,347.91,R,A C Entertainment Technologies Ltd,No
Http://opendatacommunities.org/id/metropolitan-district-council/leeds,Leeds City Council,30/04/2019,Children and Families,Social Care,Third Party Payments,Services Rendered By Other Organisations,511,05/04/2019,1904-00007,0.00,89.44,R,REDACTED PERSONAL DATA,No
Http://opendatacommunities.org/id/metropolitan-district-council/leeds,Leeds City Council,30/04/2019,Children and Families,Social Care,Third Party Payments,Services Rendered By Other Organisations,511,03/04/2019,1904-00008,0.00,202.80,R,REDACTED PERSONAL DATA,No
Http://opendatacommunities.org/id/metropolitan-district-council/leeds,Leeds City Council,30/04/2019,Children and Families,Social Care,Third Party Payments,Services Rendered By Other Organisations,511,05/04/2019,1904-00009,0.00,838.50,R,REDACTED PERSONAL DATA,No
Http://opendatacommunities.org/id/metropolitan-district-council/leeds,Leeds City Council,30/04/2019,Resources and Housing,HRA Housing Leeds,Capital,Construction,3,05/04/2019,1904-00010,0.00,285531.46,C,A Connolly Limited,No
Http://opendatacommunities.org/id/metropolitan-district-council/leeds,Leeds City Council,30/04/2019,Resources and Housing,HRA Housing Leeds,Capital,Construction,3,25/04/2019,1904-00011,0.00,362813.34,C,A Connolly Limited,No
Http://opendatacommunities.org/id/metropolitan-district-council/leeds,Leeds City Council,30/04/2019,Children and Families,Social Care,Third Party Payments,Services Rendered By Voluntary Sector,505,03/04/2019,1904-00012,0.00,1257.36,R,REDACTED PERSONAL DATA,No
Http://opendatacommunities.org/id/metropolitan-district-council/leeds,Leeds City Council,30/04/2019,Children and Families,Social Care,Third Party Payments,Services Rendered By Voluntary Sector,505,05/04/2019,1904-00013,0.00,5064.54,R,REDACTED PERSONAL DATA,No
Http://opendatacommunities.org/id/metropolitan-district-council/leeds,Leeds City Council,30/04/2019,City Development,Highways,Capital,Construction,3,17/04/2019,1904-00014,0.00,125669.59,C,A E Yates Ltd,No
Http://opendatacommunities.org/id/metropolitan-district-council/leeds,Leeds City Council,30/04/2019,Children and Families,Social Care,Third Party Payments,Services Rendered By Other Organisations,511,05/04/2019,1904-00015,0.00,1431.04,R,REDACTED PERSONAL DATA,No
Http://opendatacommunities.org/id/metropolitan-district-council/leeds,Leeds City Council,30/04/2019,Children and Families,Social Care,Third Party Payments,Services Rendered By Other Organisations,511,05/04/2019,1904-00016,0.00,335.40,R,REDACTED PERSONAL DATA,No
Http://opendatacommunities.org/id/metropolitan-district-council/leeds,Leeds City Council,30/04/2019,Children and Families,Social Care,Third Party Payments,Services Rendered By Other Organisations,511,05/04/2019,1904-00017,0.00,354.70,R,REDACTED PERSONAL DATA,No
Http://opendatacommunities.org/id/metropolitan-district-council/leeds,Leeds City Council,30/04/2019,Children and Families,Social Care,Third Party Payments,Services Rendered By Other Organisations,511,05/04/2019,1904-00018,0.00,178.88,R,REDACTED PERSONAL DATA,No
Http://opendatacommunities.org/id/metropolitan-district-council/leeds,Leeds City Council,30/04/2019,Children and Families,Social Care,Third Party Payments,Services Rendered By Other Organisations,511,05/04/2019,1904-00019,0.00,335.40,R,REDACTED PERSONAL DATA,No
Http://opendatacommunities.org/id/metropolitan-district-council/leeds,Leeds City Council,30/04/2019,Resources and Housing,Leeds Building Services,Supplies and Services,Operational Materials,205,02/04/2019,1904-00020,0.00,95.31,R,A J H  Pump Supply & Repair Ltd,No
Http://opendatacommunities.org/id/metropolitan-district-council/leeds,Leeds City Council,30/04/2019,Resources and Housing,Leeds Building Services,Supplies and Services,Operational Materials,205,02/04/2019,1904-00021,0.00,65.90,R,A J H  Pump Supply & Repair Ltd,No
Http://opendatacommunities.org/id/metropolitan-district-council/leeds,Leeds City Council,30/04/2019,Resources and Housing,Leeds Building Services,Supplies and Services,Operational Materials,205,02/04/2019,1904-00022,0.00,156.60,R,A J H  Pump Supply & Repair Ltd,No
Http://opendatacommunities.org/id/metropolitan-district-council/leeds,Leeds City Council,30/04/2019,Resources and Housing,Leeds Building Services,Supplies and Services,Operational Materials,205,02/04/2019,1904-00023,0.00,61.39,R,A J H  Pump Supply & Repair Ltd,No
Http://opendatacommunities.org/id/metropolitan-district-council/leeds,Leeds City Council,30/04/2019,Resources and Housing,Leeds Building Services,Supplies and Services,Operational Materials,205,02/04/2019,1904-00024,0.00,90.34,R,A J H  Pump Supply & Repair Ltd,No
Http://opendatacommunities.org/id/metropolitan-district-council/leeds,Leeds City Council,30/04/2019,Resources and Housing,Leeds Building Services,Supplies and Services,Operational Materials,205,02/04/2019,1904-00025,0.00,274.00,R,A J H  Pump Supply & Repair Ltd,No
Http://opendatacommunities.org/id/metropolitan-district-council/leeds,Leeds City Council,30/04/2019,Resources and Housing,Leeds Building Services,Supplies and Services,Operational Materials,205,02/04/2019,1904-00026,0.00,95.00,R,A J H  Pump Supply & Repair Ltd,No
Http://opendatacommunities.org/id/metropolitan-district-council/leeds,Leeds City Council,30/04/2019,Resources and Housing,Leeds Building Services,Supplies and Services,Operational Materials,205,02/04/2019,1904-00027,0.00,68.00,R,A J H  Pump Supply & Repair Ltd,No
Http://opendatacommunities.org/id/metropolitan-district-council/leeds,Leeds City Council,30/04/2019,Resources and Housing,Leeds Building Services,Supplies and Services,Operational Materials,205,02/04/2019,1904-00028,0.00,161.58,R,A J H  Pump Supply & Repair Ltd,No
Http://opendatacommunities.org/id/metropolitan-district-council/leeds,Leeds City Council,30/04/2019,Resources and Housing,Leeds Building Services,Supplies and Services,Operational Materials,205,02/04/2019,1904-00029,0.00,35.88,R,A J H  Pump Supply & Repair Ltd,No
Http://opendatacommunities.org/id/metropolitan-district-council/leeds,Leeds City Council,30/04/2019,Resources and Housing,Leeds Building Services,Supplies and Services,Operational Materials,205,04/04/2019,1904-00030,0.00,51.51,R,A J H  Pump Supply & Repair Ltd,No
Http://opendatacommunities.org/id/metropolitan-district-council/leeds,Leeds City Council,30/04/2019,Resources and Housing,Leeds Building Services,Supplies and Services,Operational Materials,205,04/04/2019,1904-00031,0.00,12.00,R,A J H  Pump Supply & Repair Ltd,No
Http://opendatacommunities.org/id/metropolitan-district-council/leeds,Leeds City Council,30/04/2019,Resources and Housing,Leeds Building Services,Supplies and Services,Operational Materials,205,04/04/2019,1904-00032,0.00,140.45,R,A J H  Pump Supply & Repair Ltd,No
Http://opendatacommunities.org/id/metropolitan-district-council/leeds,Leeds City Council,30/04/2019,Resources and Housing,Leeds Building Services,Supplies and Services,Operational Materials,205,04/04/2019,1904-00033,0.00,156.70,R,A J H  Pump Supply & Repair Ltd,No
Http://opendatacommunities.org/id/metropolitan-district-council/leeds,Leeds City Council,30/04/2019,Resources and Housing,Leeds Building Services,Supplies and Services,Operational Materials,205,04/04/2019,1904-00034,0.00,195.00,R,A J H  Pump Supply & Repair Ltd,No
Http://opendatacommunities.org/id/metropolitan-district-council/leeds,Leeds City Council,30/04/2019,Resources and Housing,Leeds Building Services,Supplies and Services,Operational Materials,205,04/04/2019,1904-00035,0.00,38.06,R,A J H  Pump Supply & Repair Ltd,No
Http://opendatacommunities.org/id/metropolitan-district-council/leeds,Leeds City Council,30/04/2019,Resources and Housing,Leeds Building Services,Supplies and Services,Operational Materials,205,04/04/2019,1904-00036,0.00,73.00,R,A J H  Pump Supply & Repair Ltd,No
Http://opendatacommunities.org/id/metropolitan-district-council/leeds,Leeds City Council,30/04/2019,Resources and Housing,Leeds Building Services,Supplies and Services,Operational Materials,205,04/04/2019,1904-00037,0.00,49.95,R,A J H  Pump Supply & Repair Ltd,No
Http://opendatacommunities.org/id/metropolitan-district-council/leeds,Leeds City Council,30/04/2019,Resources and Housing,Leeds Building Services,Supplies and Services,Operational Materials,205,04/04/2019,1904-00038,0.00,191.37,R,A J H  Pump Supply & Repair Ltd,No
Http://opendatacommunities.org/id/metropolitan-district-council/leeds,Leeds City Council,30/04/2019,Resources and Housing,Leeds Building Services,Supplies and Services,Operational Materials,205,04/04/2019,1904-00039,0.00,47.94,R,A J H  Pump Supply & Repair Ltd,No
Http://opendatacommunities.org/id/metropolitan-district-council/leeds,Leeds City Council,30/04/2019,Resources and Housing,Leeds Building Services,Supplies and Services,Operational Materials,205,04/04/2019,1904-00040,0.00,109.07,R,A J H  Pump Supply & Repair Ltd,No
Http://opendatacommunities.org/id/metropolitan-district-council/leeds,Leeds City Council,30/04/2019,Resources and Housing,Leeds Building Services,Supplies and Services,Operational Materials,205,24/04/2019,1904-00041,0.00,339.00,R,A J H  Pump Supply & Repair Ltd,No
Http://opendatacommunities.org/id/metropolitan-district-council/leeds,Leeds City Council,30/04/2019,Resources and Housing,Leeds Building Services,Supplies and Services,Operational Materials,205,24/04/2019,1904-00042,0.00,180.35,R,A J H  Pump Supply & Repair Ltd,No
Http://opendatacommunities.org/id/metropolitan-district-council/leeds,Leeds City Council,30/04/2019,Resources and Housing,Leeds Building Services,Supplies and Services,Operational Materials,205,24/04/2019,1904-00043,0.00,40.50,R,A J H  Pump Supply & Repair Ltd,No
Http://opendatacommunities.org/id/metropolitan-district-council/leeds,Leeds City Council,30/04/2019,Resources and Housing,Leeds Building Services,Supplies and Services,Operational Materials,205,24/04/2019,1904-00044,0.00,111.46,R,A J H  Pump Supply & Repair Ltd,No
Http://opendatacommunities.org/id/metropolitan-district-council/leeds,Leeds City Council,30/04/2019,Resources and Housing,Leeds Building Services,Supplies and Services,Operational Materials,205,24/04/2019,1904-00045,0.00,230.07,R,A J H  Pump Supply & Repair Ltd,No
Http://opendatacommunities.org/id/metropolitan-district-council/leeds,Leeds City Council,30/04/2019,Resources and Housing,Leeds Building Services,Supplies and Services,Operational Materials,205,24/04/2019,1904-00046,0.00,469.97,R,A J H  Pump Supply & Repair Ltd,No
Http://opendatacommunities.org/id/metropolitan-district-council/leeds,Leeds City Council,30/04/2019,Resources and Housing,Leeds Building Services,Supplies and Services,Operational Materials,205,24/04/2019,1904-00047,0.00,26.95,R,A J H  Pump Supply & Repair Ltd,No
Http://opendatacommunities.org/id/metropolitan-district-council/leeds,Leeds City Council,30/04/2019,Resources and Housing,Leeds Building Services,Supplies and Services,Operational Materials,205,24/04/2019,1904-00048,0.00,34.10,R,A J H  Pump Supply & Repair Ltd,No
Http://opendatacommunities.org/id/metropolitan-district-council/leeds,Leeds City Council,30/04/2019,Resources and Housing,Leeds Building Services,Supplies and Services,Operational Materials,205,24/04/2019,1904-00049,0.00,222.00,R,A J H  Pump Supply & Repair Ltd,No
Http://opendatacommunities.org/id/metropolitan-district-council/leeds,Leeds City Council,30/04/2019,Resources and Housing,Leeds Building Services,Supplies and Services,Operational Materials,205,24/04/2019,1904-00050,0.00,149.50,R,A J H  Pump Supply & Repair Ltd,No
Http://opendatacommunities.org/id/metropolitan-district-council/leeds,Leeds City Council,30/04/2019,Resources and Housing,Leeds Building Services,Supplies and Services,Operational Materials,205,24/04/2019,1904-00051,0.00,155.30,R,A J H  Pump Supply & Repair Ltd,No
Http://opendatacommunities.org/id/metropolitan-district-council/leeds,Leeds City Council,30/04/2019,Resources and Housing,Leeds Building Services,Supplies and Services,Operational Materials,205,24/04/2019,1904-00052,0.00,18.44,R,A J H  Pump Supply & Repair Ltd,No
Http://opendatacommunities.org/id/metropolitan-district-council/leeds,Leeds City Council,30/04/2019,Resources and Housing,Leeds Building Services,Supplies and Services,Operational Materials,205,24/04/2019,1904-00053,0.00,118.35,R,A J H  Pump Supply & Repair Ltd,No
Http://opendatacommunities.org/id/metropolitan-district-council/leeds,Leeds City Council,30/04/2019,Resources and Housing,Leeds Building Services,Supplies and Services,Operational Materials,205,24/04/2019,1904-00054,0.00,147.00,R,A J H  Pump Supply & Repair Ltd,No
Http://opendatacommunities.org/id/metropolitan-district-council/leeds,Leeds City Council,30/04/2019,Resources and Housing,Leeds Building Services,Supplies and Services,Operational Materials,205,24/04/2019,1904-00055,0.00,45.25,R,A J H  Pump Supply & Repair Ltd,No
Http://opendatacommunities.org/id/metropolitan-district-council/leeds,Leeds City Council,30/04/2019,Resources and Housing,Leeds Building Services,Supplies and Services,Operational Materials,205,24/04/2019,1904-00056,0.00,120.00,R,A J H  Pump Supply & Repair Ltd,No
Http://opendatacommunities.org/id/metropolitan-district-council/leeds,Leeds City Council,30/04/2019,Communities and Environment,Customer Access,Supplies and Services,Resaleable Materials,204,05/04/2019,1904-00057,0.00,52.02,R,A J Promotions,No
Http://opendatacommunities.org/id/metropolitan-district-council/leeds,Leeds City Council,30/04/2019,Communities and Environment,Customer Access,Supplies and Services,Other Hired And Contracted Services,265,12/04/2019,1904-00058,0.00,302.40,R,A J Promotions,No
Http://opendatacommunities.org/id/metropolitan-district-council/leeds,Leeds City Council,30/04/2019,Communities and Environment,Parks and Countryside,Supplies and Services,Resaleable Materials,204,18/04/2019,1904-00059,0.00,180.00,R,A J Promotions,No
Http://opendatacommunities.org/id/metropolitan-district-council/leeds,Leeds City Council,30/04/2019,Communities and Environment,Customer Access,Supplies and Services,Other Hired And Contracted Services,265,18/04/2019,1904-00060,0.00,907.50,R,A J Promotions,No
Http://opendatacommunities.org/id/metropolitan-district-council/leeds,Leeds City Council,30/04/2019,City Development,Libraries  Arts & Heritage,Supplies and Services,Art Galleries Total Stores,003,24/04/2019,1904-00061,0.00,96.95,R,A J Promotions,No
Http://opendatacommunities.org/id/metropolitan-district-council/leeds,Leeds City Council,30/04/2019,Children and Families,Social Care,Third Party Payments,Services Rendered By Other Organisations,511,03/04/2019,1904-00062,0.00,608.40,R,REDACTED PERSONAL DATA,No
Http://opendatacommunities.org/id/metropolitan-district-council/leeds,Leeds City Council,30/04/2019,Children and Families,Social Care,Third Party Payments,Services Rendered By Other Organisations,511,05/04/2019,1904-00063,0.00,2224.82,R,REDACTED PERSONAL DATA,No
Http://opendatacommunities.org/id/metropolitan-district-council/leeds,Leeds City Council,30/04/2019,City Development,Libraries  Arts & Heritage,Supplies and Services,Other Hired And Contracted Services,265,24/04/2019,1904-00064,0.00,950.00,R,A Line Art,No
Http://opendatacommunities.org/id/metropolitan-district-council/leeds,Leeds City Council,30/04/2019,Communities and Environment,Customer Access,Supplies and Services,Other Hired And Contracted Services,265,04/04/2019,1904-00065,0.00,288.00,R,A Mohammed,No
Http://opendatacommunities.org/id/metropolitan-district-council/leeds,Leeds City Council,30/04/2019,Communities and Environment,Customer Access,Supplies and Services,Bought In Professional Services,277,29/04/2019,1904-00066,0.00,1350.90,R,A Mohammed,No
Http://opendatacommunities.org/id/metropolitan-district-council/leeds,Leeds City Council,30/04/2019,Children and Families,Social Care,Third Party Payments,Services Rendered By Other Organisations,511,03/04/2019,1904-00067,0.00,1014.00,R,A Myland,No
Http://opendatacommunities.org/id/metropolitan-district-council/leeds,Leeds City Council,30/04/2019,Children and Families,Social Care,Third Party Payments,Services Rendered By Other Organisations,511,05/04/2019,1904-00068,0.00,1509.30,R,A Myland,No
Http://opendatacommunities.org/id/metropolitan-district-council/leeds,Leeds City Council,30/04/2019,Communities and Environment,Customer Access,Supplies and Services,Other Hired And Contracted Services,265,04/04/2019,1904-00069,0.00,54.00,R,A Namaki,No
Http://opendatacommunities.org/id/metropolitan-district-council/leeds,Leeds City Council,30/04/2019,Communities and Environment,Customer Access,Supplies and Services,Bought In Professional Services,277,29/04/2019,1904-00070,0.00,414.00,R,A Namaki,No
Http://opendatacommunities.org/id/metropolitan-district-council/leeds,Leeds City Council,30/04/2019,City Development,Libraries  Arts & Heritage,Supplies and Services,Non-Recurring Grants,227,09/04/2019,1904-00071,0.00,3600.00,R,A Quiet Word Ltd,No
Http://opendatacommunities.org/id/metropolitan-district-council/leeds,Leeds City Council,30/04/2019,Communities and Environment,Car Parking Services,Income,Penalties  Fines & Car Parking Charges,934,04/04/2019,1904-00072,0.00,35.00,R,REDACTED PERSONAL DATA,No
Http://opendatacommunities.org/id/metropolitan-district-council/leeds,Leeds City Council,30/04/2019,Children and Families,Social Care,Third Party Payments,Services Rendered By Other Organisations,511,03/04/2019,1904-00073,0.00,121.68,R,REDACTED PERSONAL DATA,No
Http://opendatacommunities.org/id/metropolitan-district-council/leeds,Leeds City Council,30/04/2019,Children and Families,Social Care,Third Party Payments,Services Rendered By Other Organisations,511,05/04/2019,1904-00074,0.00,436.02,R,REDACTED PERSONAL DATA,No
Http://opendatacommunities.org/id/metropolitan-district-council/leeds,Leeds City Council,30/04/2019,Resources and Housing,Shared Services,Supplies and Services,Other Hired And Contracted Services,265,12/04/2019,1904-00075,0.00,49.75,R,A Star Couriers Ltd,No
Http://opendatacommunities.org/id/metropolitan-district-council/leeds,Leeds City Council,30/04/2019,Children and Families,Social Care,Third Party Payments,Placement Support,550,08/04/2019,1904-00076,0.00,540.00,R,A Taxis,No
Http://opendatacommunities.org/id/metropolitan-district-council/leeds,Leeds City Council,30/04/2019,Children and Families,Social Care,Third Party Payments,Services Rendered By Other Organisations,511,03/04/2019,1904-00077,0.00,202.80,R,REDACTED PERSONAL DATA,No
Http://opendatacommunities.org/id/metropolitan-district-council/leeds,Leeds City Council,30/04/2019,Children and Families,Social Care,Third Party Payments,Services Rendered By Other Organisations,511,05/04/2019,1904-00078,0.00,167.70,R,REDACTED PERSONAL DATA,No
Http://opendatacommunities.org/id/metropolitan-district-council/leeds,Leeds City Council,30/04/2019,Children and Families,Social Care,Third Party Payments,Services Rendered By Other Organisations,511,05/04/2019,1904-00079,0.00,335.40,R,REDACTED PERSONAL DATA,No
Http://opendatacommunities.org/id/metropolitan-district-council/leeds,Leeds City Council,30/04/2019,Children and Families,Social Care,Third Party Payments,General External Residential Placements,507,04/04/2019,1904-00080,0.00,18422.68,R,A Wilderness Way Ltd,No
Http://opendatacommunities.org/id/metropolitan-district-council/leeds,Leeds City Council,30/04/2019,Children and Families,Social Care,Third Party Payments,General External Residential Placements,507,04/04/2019,1904-00081,0.00,6444.97,R,A Wilderness Way Ltd,No
Http://opendatacommunities.org/id/metropolitan-district-council/leeds,Leeds City Council,30/04/2019,Children and Families,Social Care,Third Party Payments,General External Residential Placements,507,04/04/2019,1904-00082,0.00,28542.01,R,A Wilderness Way Ltd,No
Http://opendatacommunities.org/id/metropolitan-district-council/leeds,Leeds City Council,30/04/2019,Children and Families,Social Care,Third Party Payments,General External Residential Placements,507,26/04/2019,1904-00083,0.00,11240.31,R,A Wilderness Way Ltd,No
Http://opendatacommunities.org/id/metropolitan-district-council/leeds,Leeds City Council,30/04/2019,Communities and Environment,Waste Management,Capital,Furniture And Equipment,5,08/04/2019,1904-00084,0.00,8250.00,C,A&C Weber Uk Ltd,No
Http://opendatacommunities.org/id/metropolitan-district-council/leeds,Leeds City Council,30/04/2019,City Development,Libraries  Arts & Heritage,Supplies and Services,Bought In Professional Services,277,23/04/2019,1904-00085,0.00,1500.00,R,Aardman Animations Ltd,No
Http://opendatacommunities.org/id/metropolitan-district-council/leeds,Leeds City Council,30/04/2019,Children and Families,Social Care  ,Supplies and Services,Operational Materials,205,08/03/2019,1904-00086,0.00,103.35,R,Aardvark Archery,Yes
Http://opendatacommunities.org/id/metropolitan-district-council/leeds,Leeds City Council,30/04/2019,Children and Families,Social Care  ,Supplies and Services,Operational Furniture And Equipment,203,19/03/2019,1904-00087,0.00,475.00,R,Aardvark Archery,Yes
Http://opendatacommunities.org/id/metropolitan-district-council/leeds,Leeds City Council as Accountable Body,30/04/2019,Social Services Pooled Budgets,Leeds Community Equip Store Pooled Budgt,Supplies and Services,Other Equipment,203,05/04/2019,1904-00088,0.00,1579.00,R,Aat (Gb) Ltd,No
Http://opendatacommunities.org/id/metropolitan-district-council/leeds,Leeds City Council as Accountable Body,30/04/2019,Social Services Pooled Budgets,Leeds Community Equip Store Pooled Budgt,Supplies and Services,Other Equipment,203,18/04/2019,1904-00089,0.00,1090.00,R,Aat (Gb) Ltd,No
Http://opendatacommunities.org/id/metropolitan-district-council/leeds,Leeds City Council as Accountable Body,30/04/2019,Social Services Pooled Budgets,Leeds Community Equip Store Pooled Budgt,Supplies and Services,Other Equipment,203,24/04/2019,1904-00090,0.00,404.00,R,Aat (Gb) Ltd,No
Http://opendatacommunities.org/id/metropolitan-district-council/leeds,Leeds City Council,30/04/2019,Adults and Health,Social Services Support Services,Transport,Public Transport Expenses,310,10/04/2019,1904-00091,0.00,190.00,R,Ab Cars,No
Http://opendatacommunities.org/id/metropolitan-district-council/leeds,Leeds City Council,30/04/2019,Communities and Environment,Car Parking Services  ,Supplies and Services,Postages,212,28/03/2019,1904-00092,0.00,47.83,R,Abacus Express,Yes
Http://opendatacommunities.org/id/metropolitan-district-council/leeds,Leeds City Council,30/04/2019,Children and Families,Social Care,Support Services,Legal Disbursements,411,03/04/2019,1904-00093,0.00,16.66,R,Abacus Express Limited,No
Http://opendatacommunities.org/id/metropolitan-district-council/leeds,Leeds City Council,30/04/2019,Children and Families,Social Care,Support Services,Legal Disbursements,411,05/04/2019,1904-00094,0.00,31.02,R,Abacus Express Limited,No
Http://opendatacommunities.org/id/metropolitan-district-council/leeds,Leeds City Council,30/04/2019,Children and Families,Social Care,Support Services,Legal Disbursements,411,05/04/2019,1904-00095,0.00,21.50,R,Abacus Express Limited,No
Http://opendatacommunities.org/id/metropolitan-district-council/leeds,Leeds City Council,30/04/2019,Children and Families,Social Care,Support Services,Legal Disbursements,411,05/04/2019,1904-00096,0.00,17.74,R,Abacus Express Limited,No
Http://opendatacommunities.org/id/metropolitan-district-council/leeds,Leeds City Council,30/04/2019,Children and Families,Social Care,Support Services,Legal Disbursements,411,24/04/2019,1904-00097,0.00,118.29,R,Abacus Express Limited,No
Http://opendatacommunities.org/id/metropolitan-district-council/leeds,Leeds City Council,30/04/2019,Children and Families,Social Care,Support Services,Legal Disbursements,411,25/04/2019,1904-00098,0.00,31.02,R,Abacus Express Limited,No
Http://opendatacommunities.org/id/metropolitan-district-council/leeds,Leeds City Council,30/04/2019,Children and Families,Social Care,Support Services,Legal Disbursements,411,26/04/2019,1904-00099,0.00,32.25,R,Abacus Express Limited,No
Http://opendatacommunities.org/id/metropolitan-district-council/leeds,Leeds City Council,30/04/2019,Adults and Health,Services For Adults Under 65 Mental/Dis,Third Party Payments,Nursing Home,570,03/04/2019,1904-00100,0.00,1852.00,R,Abbey Grange Nursing Home,No
Http://opendatacommunities.org/id/metropolitan-district-council/leeds,Leeds City Council,30/04/2019,Children and Families,Learning,Supplies and Services,Other Hired And Contracted Services,265,04/04/2019,1904-00101,0.00,49.00,R,Abbey Multi Academy Trust,No
Http://opendatacommunities.org/id/metropolitan-district-council/leeds,Leeds City Council,30/04/2019,Children and Families,Social Care,Supplies and Services,Food & Drink,231,04/04/2019,1904-00102,0.00,656.70,R,Abbey Multi Academy Trust,No
Http://opendatacommunities.org/id/metropolitan-district-council/leeds,Leeds City Council,30/04/2019,Children and Families,Learning,Supplies and Services,Other Hired And Contracted Services,265,05/04/2019,1904-00103,0.00,260.75,R,Abbey Multi Academy Trust,No
Http://opendatacommunities.org/id/metropolitan-district-council/leeds,Leeds City Council,30/04/2019,Resources and Housing,Shared Services,Income,Income from Hire Of Rooms & Equipment,956,10/04/2019,1904-00104,0.00,5700.00,R,Abbey Multi Academy Trust,No
Http://opendatacommunities.org/id/metropolitan-district-council/leeds,Leeds City Council,30/04/2019,Children and Families,Social Care,Third Party Payments,Services Rendered By Other Organisations,511,25/04/2019,1904-00105,0.00,36932.50,R,Abbey Multi Academy Trust,No
Http://opendatacommunities.org/id/metropolitan-district-council/leeds,Leeds City Council,30/04/2019,Children and Families,Social Care,Third Party Payments,Services Rendered By Other Organisations,511,03/04/2019,1904-00106,0.00,1014.00,R,Abc Daycare And Ozone Out Of School,No
Http://opendatacommunities.org/id/metropolitan-district-council/leeds,Leeds City Council,30/04/2019,Children and Families,Social Care,Third Party Payments,Services Rendered By Other Organisations,511,05/04/2019,1904-00107,0.00,12074.40,R,Abc Daycare And Ozone Out Of School,No
Http://opendatacommunities.org/id/metropolitan-district-council/leeds,Leeds City Council,30/04/2019,Children and Families,Social Care,Third Party Payments,Services Rendered By Other Organisations,511,03/04/2019,1904-00108,0.00,2974.40,R,Abc Nursery At Lufc,No
Http://opendatacommunities.org/id/metropolitan-district-council/leeds,Leeds City Council,30/04/2019,Children and Families,Social Care,Third Party Payments,Services Rendered By Other Organisations,511,05/04/2019,1904-00109,0.00,6316.70,R,Abc Nursery At Lufc,No
Http://opendatacommunities.org/id/metropolitan-district-council/leeds,Leeds City Council,30/04/2019,Children and Families,Social Care,Third Party Payments,Services Rendered By Other Organisations,511,30/04/2019,1904-00110,0.00,2974.40,R,Abc Nursery At Lufc,No
Http://opendatacommunities.org/id/metropolitan-district-council/leeds,Leeds City Council,30/04/2019,Children and Families,Social Care,Third Party Payments,Services Rendered By Voluntary Sector,505,30/04/2019,1904-00111,0.00,1436.84,R,Abc Nursery At Lufc,No
Http://opendatacommunities.org/id/metropolitan-district-council/leeds,Leeds City Council,30/04/2019,Communities and Environment,Customer Access,Supplies and Services,Other Hired And Contracted Services,265,04/04/2019,1904-00112,0.00,94.50,R,Abdulahad Denha,No
Http://opendatacommunities.org/id/metropolitan-district-council/leeds,Leeds City Council,30/04/2019,Communities and Environment,Customer Access,Supplies and Services,Bought In Professional Services,277,29/04/2019,1904-00113,0.00,376.35,R,Abdulahad Denha,No
Http://opendatacommunities.org/id/metropolitan-district-council/leeds,Leeds City Council,30/04/2019,Strategic Accounts,Strategic,Supplies and Services,Non-Recurring Grants,227,02/04/2019,1904-00114,0.00,335.00,R,Aberford And District Parish Council,No
Http://opendatacommunities.org/id/metropolitan-district-council/leeds,Leeds City Council,30/04/2019,Strategic Accounts,Strategic,Supplies and Services,Office Consumables,210,02/04/2019,1904-00115,0.00,21000.00,R,Aberford And District Parish Council,No
Http://opendatacommunities.org/id/metropolitan-district-council/leeds,Leeds City Council,30/04/2019,Communities and Environment,Parks and Countryside,Supplies and Services,Non-Recurring Grants,227,25/04/2019,1904-00116,0.00,550.00,R,Aberford And District Parish Council,No
Http://opendatacommunities.org/id/metropolitan-district-council/leeds,Leeds City Council,30/04/2019,Adults and Health,Services For Older People - 65 And Over,Third Party Payments,Nursing Home,570,03/04/2019,1904-00117,0.00,60833.22,R,Aberford Hall,No
Http://opendatacommunities.org/id/metropolitan-district-council/leeds,Leeds City Council,30/04/2019,Adults and Health,Services For Older People - 65 And Over,Third Party Payments,Residential,580,03/04/2019,1904-00118,0.00,3868.20,R,Aberford Hall,No
Http://opendatacommunities.org/id/metropolitan-district-council/leeds,Leeds City Council,30/04/2019,Adults and Health,Services For Older People - 65 And Over,Third Party Payments,Nursing Home,570,09/04/2019,1904-00119,0.00,19513.19,R,Aberford Hall,No
Http://opendatacommunities.org/id/metropolitan-district-council/leeds,Leeds City Council,30/04/2019,Resources and Housing,Leeds Building Services,Supplies and Services,Operational Materials,205,05/04/2019,1904-00120,0.00,1041.80,R,Abi Garage Doors Ltd,No
Http://opendatacommunities.org/id/metropolitan-district-council/leeds,Leeds City Council,30/04/2019,Resources and Housing,Leeds Building Services,Supplies and Services,Operational Materials,205,16/04/2019,1904-00121,0.00,260.46,R,Abi Garage Doors Ltd,No
Http://opendatacommunities.org/id/metropolitan-district-council/leeds,Leeds City Council,30/04/2019,Resources and Housing,Leeds Building Services,Supplies and Services,Operational Materials,205,16/04/2019,1904-00122,0.00,15.00,R,Abi Garage Doors Ltd,No
Http://opendatacommunities.org/id/metropolitan-district-council/leeds,Leeds City Council,30/04/2019,Resources and Housing,Leeds Building Services,Supplies and Services,Operational Materials,205,23/04/2019,1904-00123,0.00,2864.95,R,Abi Garage Doors Ltd,No
Http://opendatacommunities.org/id/metropolitan-district-council/leeds,Leeds City Council,30/04/2019,Resources and Housing,Leeds Building Services,Supplies and Services,Operational Materials,205,23/04/2019,1904-00124,0.00,260.46,R,Abi Garage Doors Ltd,No
Http://opendatacommunities.org/id/metropolitan-district-council/leeds,Leeds City Council,30/04/2019,Resources and Housing,Leeds Building Services,Supplies and Services,Operational Materials,205,23/04/2019,1904-00125,0.00,260.45,R,Abi Garage Doors Ltd,No
Http://opendatacommunities.org/id/metropolitan-district-council/leeds,Leeds City Council,30/04/2019,Resources and Housing,Leeds Building Services,Supplies and Services,Operational Materials,205,24/04/2019,1904-00126,0.00,51.00,R,Abi Garage Doors Ltd,No
Http://opendatacommunities.org/id/metropolitan-district-council/leeds,Leeds City Council,30/04/2019,Children and Families,Social Care  ,Third Party Payments, Direct Work,549,21/03/2019,1904-00127,0.00,109.00,R,Abl Retail Ltd,Yes
Http://opendatacommunities.org/id/metropolitan-district-council/leeds,Leeds City Council,30/04/2019,Children and Families,Social Care,Supplies and Services,Conference Meetings,253,24/04/2019,1904-00128,0.00,3740.00,R,Abmu Health Board,No
Http://opendatacommunities.org/id/metropolitan-district-council/leeds,Leeds City Council,30/04/2019,City Development,Libraries  Arts & Heritage  ,Supplies and Services,Operational Materials,205,05/03/2019,1904-00129,0.00,281.07,R,Absoluteproduct.Co,Yes
Http://opendatacommunities.org/id/metropolitan-district-council/leeds,Leeds City Council,30/04/2019,City Development,Libraries  Arts & Heritage  ,Supplies and Services,Operational Materials,205,05/03/2019,1904-00130,0.00,747.11,R,Absoluteproduct.Co,Yes
Http://opendatacommunities.org/id/metropolitan-district-council/leeds,Leeds City Council,30/04/2019,City Development,Libraries  Arts & Heritage  ,Supplies and Services,Operational Materials,205,12/03/2019,1904-00131,0.00,101.07,R,Absoluteproduct.Co,Yes
Http://opendatacommunities.org/id/metropolitan-district-council/leeds,Leeds City Council,30/04/2019,City Development,Libraries  Arts & Heritage,Supplies and Services,Art Galleries Total Stores,003,25/04/2019,1904-00132,0.00,-63.70,R,Ac Jade Trading Ltd,No
Http://opendatacommunities.org/id/metropolitan-district-council/leeds,Leeds City Council,30/04/2019,City Development,Libraries  Arts & Heritage,Supplies and Services,Art Galleries Total Stores,003,25/04/2019,1904-00133,0.00,313.80,R,Ac Jade Trading Ltd,No
Http://opendatacommunities.org/id/metropolitan-district-council/leeds,Leeds City Council,30/04/2019,Children and Families,Social Care,Employees,Agency Staff,8,05/04/2019,1904-00134,0.00,1995.00,R,Academic Appointments Ltd,No
Http://opendatacommunities.org/id/metropolitan-district-council/leeds,Leeds City Council,30/04/2019,Children and Families,Social Care,Employees,Agency Staff,8,05/04/2019,1904-00135,0.00,2935.00,R,Academic Appointments Ltd,No
Http://opendatacommunities.org/id/metropolitan-district-council/leeds,Leeds City Council,30/04/2019,Children and Families,Social Care,Employees,Agency Staff,8,12/04/2019,1904-00136,0.00,2935.00,R,Academic Appointments Ltd,No
Http://opendatacommunities.org/id/metropolitan-district-council/leeds,Leeds City Council,30/04/2019,Children and Families,Social Care,Employees,Agency Staff,8,18/04/2019,1904-00137,0.00,2935.00,R,Academic Appointments Ltd,No
Http://opendatacommunities.org/id/metropolitan-district-council/leeds,Leeds City Council,30/04/2019,Children and Families,Social Care,Employees,Agency Staff,8,26/04/2019,1904-00138,0.00,2483.00,R,Academic Appointments Ltd,No
Http://opendatacommunities.org/id/metropolitan-district-council/leeds,Leeds City Council,30/04/2019,Children and Families,Social Care,Employees,Agency Staff,8,26/04/2019,1904-00139,0.00,1750.50,R,Academic Appointments Ltd,No
Http://opendatacommunities.org/id/metropolitan-district-council/leeds,Leeds City Council,30/04/2019,Children and Families,Social Care,Third Party Payments,Services Rendered By Other Organisations,511,25/04/2019,1904-00140,0.00,5890.50,R,Academies Enterprise Trust (Aet),No
Http://opendatacommunities.org/id/metropolitan-district-council/leeds,Leeds City Council,30/04/2019,Children and Families,Social Care,Third Party Payments,Services Rendered By Other Organisations,511,25/04/2019,1904-00141,0.00,35483.25,R,Academies Enterprise Trust (Aet),No
Http://opendatacommunities.org/id/metropolitan-district-council/leeds,Leeds City Council,30/04/2019,Children and Families,Social Care,Third Party Payments,Services Rendered By Other Organisations,511,26/04/2019,1904-00142,0.00,1574.10,R,Academies Enterprise Trust (Aet),No
Http://opendatacommunities.org/id/metropolitan-district-council/leeds,Leeds City Council,30/04/2019,Resources and Housing,Strategic Housing Partnerships,Capital,Construction,3,04/04/2019,1904-00143,0.00,2376.00,C,Accent Homes Ltd,No
Http://opendatacommunities.org/id/metropolitan-district-council/leeds,Leeds City Council,30/04/2019,Communities and Environment,Community Safety,Transport,Hire Of Movable Plant & Machinery,315,26/04/2019,1904-00144,0.00,1310.86,R,Access Hire Nationwide Ltd,No
Http://opendatacommunities.org/id/metropolitan-district-council/leeds,Leeds City Council,30/04/2019,Strategic Landlord,Housing Management  ,Supplies and Services,Office Consumables,210,06/03/2019,1904-00145,0.00,54.72,R,Access Locksmiths,Yes
Http://opendatacommunities.org/id/metropolitan-district-council/leeds,Leeds City Council,30/04/2019,Resources and Housing,Commercial Services  ,Supplies and Services,Operational Furniture And Equipment,203,08/03/2019,1904-00146,0.00,436.31,R,Access Locksmiths,Yes
Http://opendatacommunities.org/id/metropolitan-district-council/leeds,Leeds City Council,30/04/2019,Resources and Housing,Leeds Building Services,Supplies and Services,Operational Materials,205,01/04/2019,1904-00147,0.00,6.16,R,Access Locksmiths (Leeds) Limited,No
Http://opendatacommunities.org/id/metropolitan-district-council/leeds,Leeds City Council,30/04/2019,Strategic Landlord,Property and Contracts,Premises,General Maintenance,104,05/04/2019,1904-00148,0.00,37.50,R,Access Locksmiths (Leeds) Limited,No
Http://opendatacommunities.org/id/metropolitan-district-council/leeds,Leeds City Council,30/04/2019,Strategic Landlord,Property and Contracts,Premises,General Maintenance,104,12/04/2019,1904-00149,0.00,166.91,R,Access Locksmiths (Leeds) Limited,No
Http://opendatacommunities.org/id/metropolitan-district-council/leeds,Leeds City Council,30/04/2019,Resources and Housing,Leeds Building Services,Supplies and Services,Operational Materials,205,16/04/2019,1904-00150,0.00,469.48,R,Access Locksmiths (Leeds) Limited,No
Http://opendatacommunities.org/id/metropolitan-district-council/leeds,Leeds City Council,30/04/2019,Strategic Landlord,Property and Contracts,Premises,General Maintenance,104,18/04/2019,1904-00151,0.00,202.93,R,Access Locksmiths (Leeds) Limited,No
Http://opendatacommunities.org/id/metropolitan-district-council/leeds,Leeds City Council,30/04/2019,Strategic Landlord,Housing Management,Supplies and Services,Office Furniture & Equipment,201,24/04/2019,1904-00152,0.00,170.00,R,Access Locksmiths (Leeds) Limited,No
Http://opendatacommunities.org/id/metropolitan-district-council/leeds,Leeds City Council,30/04/2019,Strategic Landlord,Housing Management,Supplies and Services,Resaleable Materials,204,30/04/2019,1904-00153,0.00,11.25,R,Access Locksmiths (Leeds) Limited,No
Http://opendatacommunities.org/id/metropolitan-district-council/leeds,Leeds City Council,30/04/2019,Strategic Landlord,Housing Management,Supplies and Services,Resaleable Materials,204,30/04/2019,1904-00154,0.00,7.50,R,Access Locksmiths (Leeds) Limited,No
Http://opendatacommunities.org/id/metropolitan-district-council/leeds,Leeds City Council,30/04/2019,Strategic Landlord,Housing Management,Supplies and Services,Resaleable Materials,204,30/04/2019,1904-00155,0.00,239.40,R,Access Locksmiths (Leeds) Limited,No
Http://opendatacommunities.org/id/metropolitan-district-council/leeds,Leeds City Council,30/04/2019,Strategic Landlord,Housing Management,Supplies and Services,Resaleable Materials,204,30/04/2019,1904-00156,0.00,136.80,R,Access Locksmiths (Leeds) Limited,No
Http://opendatacommunities.org/id/metropolitan-district-council/leeds,Leeds City Council,30/04/2019,Strategic Landlord,Housing Management,Supplies and Services,Resaleable Materials,204,30/04/2019,1904-00157,0.00,114.00,R,Access Locksmiths (Leeds) Limited,No
Http://opendatacommunities.org/id/metropolitan-district-council/leeds,Leeds City Council,30/04/2019,Strategic Landlord,Housing Management,Supplies and Services,Resaleable Materials,204,30/04/2019,1904-00158,0.00,114.00,R,Access Locksmiths (Leeds) Limited,No
Http://opendatacommunities.org/id/metropolitan-district-council/leeds,Leeds City Council,30/04/2019,Strategic Landlord,Housing Management,Supplies and Services,Resaleable Materials,204,30/04/2019,1904-00159,0.00,31.24,R,Access Locksmiths (Leeds) Limited,No
Http://opendatacommunities.org/id/metropolitan-district-council/leeds,Leeds City Council,30/04/2019,Strategic Landlord,Housing Management,Supplies and Services,Resaleable Materials,204,30/04/2019,1904-00160,0.00,23.40,R,Access Locksmiths (Leeds) Limited,No
Http://opendatacommunities.org/id/metropolitan-district-council/leeds,Leeds City Council,30/04/2019,Resources and Housing,HRA Housing Leeds,Capital,Construction,3,30/04/2019,1904-00161,0.00,15.60,C,Access Locksmiths (Leeds) Limited,No
Http://opendatacommunities.org/id/metropolitan-district-council/leeds,Leeds City Council,30/04/2019,Resources and Housing,HRA Housing Leeds,Capital,Other Costs,7,30/04/2019,1904-00162,0.00,219.83,C,Access Locksmiths (Leeds) Limited,No
Http://opendatacommunities.org/id/metropolitan-district-council/leeds,Leeds City Council,30/04/2019,Communities and Environment,Cleaner Neighbourhood Teams,Supplies and Services,Operational Furniture And Equipment,203,30/04/2019,1904-00163,0.00,2.60,R,Access Locksmiths (Leeds) Limited,No
Http://opendatacommunities.org/id/metropolitan-district-council/leeds,Leeds City Council,30/04/2019,Resources and Housing,Leeds Building Services,Supplies and Services,Operational Materials,205,04/04/2019,1904-00164,0.00,240.00,R,Access Opening Systems,No
Http://opendatacommunities.org/id/metropolitan-district-council/leeds,Leeds City Council,30/04/2019,Resources and Housing,Leeds Building Services,Supplies and Services,Operational Materials,205,04/04/2019,1904-00165,0.00,190.00,R,Access Opening Systems,No
Http://opendatacommunities.org/id/metropolitan-district-council/leeds,Leeds City Council,30/04/2019,City Development,Libraries  Arts & Heritage,Supplies and Services,Other Hired And Contracted Services,265,02/04/2019,1904-00166,0.00,46.50,R,Ace Container Services Limited,No
Http://opendatacommunities.org/id/metropolitan-district-council/leeds,Leeds City Council,30/04/2019,City Development,Recreation,Transport,External Hire -Occasional,304,30/04/2019,1904-00167,0.00,124.50,R,Ace Container Services Limited,No
Http://opendatacommunities.org/id/metropolitan-district-council/leeds,Leeds City Council,30/04/2019,Resources and Housing,Strategic Housing Partnership & Support,Supplies and Services,Other Hired And Contracted Services,265,03/04/2019,1904-00168,0.00,700.83,R,Ace Leaflet Distribution & Print Ltd,No
Http://opendatacommunities.org/id/metropolitan-district-council/leeds,Leeds City Council,30/04/2019,Children and Families,Social Care,Third Party Payments,Placement Support,550,29/04/2019,1904-00169,0.00,1314.36,R,Ace Leaflet Distribution & Print Ltd,No
Http://opendatacommunities.org/id/metropolitan-district-council/leeds,Leeds City Council,30/04/2019,Children and Families,Partnerships & Health,Third Party Payments,SEN Placements,566,17/04/2019,1904-00170,0.00,17476.47,R,Ackworth School,No
Http://opendatacommunities.org/id/metropolitan-district-council/leeds,Leeds City Council,30/04/2019,Children and Families,Partnerships & Health,Third Party Payments,SEN Placements,566,17/04/2019,1904-00171,0.00,17476.47,R,Ackworth School,No
Http://opendatacommunities.org/id/metropolitan-district-council/leeds,Leeds City Council,30/04/2019,Children and Families,Partnerships & Health,Third Party Payments,SEN Placements,566,17/04/2019,1904-00172,0.00,17476.47,R,Ackworth School,No
Http://opendatacommunities.org/id/metropolitan-district-council/leeds,Leeds City Council,30/04/2019,Children and Families,Partnerships & Health,Third Party Payments,SEN Placements,566,17/04/2019,1904-00173,0.00,17476.47,R,Ackworth School,No
Http://opendatacommunities.org/id/metropolitan-district-council/leeds,Leeds City Council,30/04/2019,Children and Families,Partnerships & Health,Third Party Payments,SEN Placements,566,17/04/2019,1904-00174,0.00,17476.47,R,Ackworth School,No
Http://opendatacommunities.org/id/metropolitan-district-council/leeds,Leeds City Council,30/04/2019,Children and Families,Partnerships & Health,Third Party Payments,SEN Placements,566,17/04/2019,1904-00175,0.00,23976.47,R,Ackworth School,No
Http://opendatacommunities.org/id/metropolitan-district-council/leeds,Leeds City Council,30/04/2019,Children and Families,Partnerships & Health,Third Party Payments,SEN Placements,566,17/04/2019,1904-00176,0.00,17476.47,R,Ackworth School,No
Http://opendatacommunities.org/id/metropolitan-district-council/leeds,Leeds City Council,30/04/2019,Children and Families,Partnerships & Health,Third Party Payments,SEN Placements,566,17/04/2019,1904-00177,0.00,17476.47,R,Ackworth School,No
Http://opendatacommunities.org/id/metropolitan-district-council/leeds,Leeds City Council,30/04/2019,Communities and Environment,Waste Management,Supplies and Services,Other Hired And Contracted Services,265,09/04/2019,1904-00178,0.00,200.00,R,Acorn Analytical Services Limited,No
Http://opendatacommunities.org/id/metropolitan-district-council/leeds,Leeds City Council,30/04/2019,Children and Families,Partnerships & Health,Third Party Payments,SEN Placements,566,15/04/2019,1904-00179,0.00,-18138.67,R,Acorn Care And Education Ltd,No
Http://opendatacommunities.org/id/metropolitan-district-council/leeds,Leeds City Council,30/04/2019,Children and Families,Partnerships & Health,Third Party Payments,SEN Placements,566,15/04/2019,1904-00180,0.00,-13419.67,R,Acorn Care And Education Ltd,No
Http://opendatacommunities.org/id/metropolitan-district-council/leeds,Leeds City Council,30/04/2019,Children and Families,Partnerships & Health,Third Party Payments,SEN Placements,566,15/04/2019,1904-00181,0.00,-13419.67,R,Acorn Care And Education Ltd,No
Http://opendatacommunities.org/id/metropolitan-district-council/leeds,Leeds City Council,30/04/2019,Children and Families,Partnerships & Health,Third Party Payments,SEN Placements,566,15/04/2019,1904-00182,0.00,-18172.00,R,Acorn Care And Education Ltd,No
Http://opendatacommunities.org/id/metropolitan-district-council/leeds,Leeds City Council,30/04/2019,Children and Families,Partnerships & Health,Third Party Payments,SEN Placements,566,15/04/2019,1904-00183,0.00,-15746.62,R,Acorn Care And Education Ltd,No
Http://opendatacommunities.org/id/metropolitan-district-council/leeds,Leeds City Council,30/04/2019,Children and Families,Partnerships & Health,Third Party Payments,SEN Placements,566,15/04/2019,1904-00184,0.00,-7245.90,R,Acorn Care And Education Ltd,No
Http://opendatacommunities.org/id/metropolitan-district-council/leeds,Leeds City Council,30/04/2019,Children and Families,Partnerships & Health,Third Party Payments,SEN Placements,566,15/04/2019,1904-00185,0.00,18472.00,R,Acorn Care And Education Ltd,No
Http://opendatacommunities.org/id/metropolitan-district-council/leeds,Leeds City Council,30/04/2019,Children and Families,Partnerships & Health,Third Party Payments,SEN Placements,566,15/04/2019,1904-00186,0.00,18138.67,R,Acorn Care And Education Ltd,No
Http://opendatacommunities.org/id/metropolitan-district-council/leeds,Leeds City Council,30/04/2019,Children and Families,Partnerships & Health,Third Party Payments,SEN Placements,566,15/04/2019,1904-00187,0.00,18138.67,R,Acorn Care And Education Ltd,No
Http://opendatacommunities.org/id/metropolitan-district-council/leeds,Leeds City Council,30/04/2019,Children and Families,Partnerships & Health,Third Party Payments,SEN Placements,566,15/04/2019,1904-00188,0.00,18472.00,R,Acorn Care And Education Ltd,No
Http://opendatacommunities.org/id/metropolitan-district-council/leeds,Leeds City Council,30/04/2019,Children and Families,Partnerships & Health,Third Party Payments,SEN Placements,566,15/04/2019,1904-00189,0.00,8500.00,R,Acorn Care And Education Ltd,No
Http://opendatacommunities.org/id/metropolitan-district-council/leeds,Leeds City Council,30/04/2019,Children and Families,Partnerships & Health,Third Party Payments,SEN Placements,566,15/04/2019,1904-00190,0.00,18138.67,R,Acorn Care And Education Ltd,No
Http://opendatacommunities.org/id/metropolitan-district-council/leeds,Leeds City Council,30/04/2019,Children and Families,Partnerships & Health,Third Party Payments,SEN Placements,566,15/04/2019,1904-00191,0.00,18472.00,R,Acorn Care And Education Ltd,No
Http://opendatacommunities.org/id/metropolitan-district-council/leeds,Leeds City Council,30/04/2019,Children and Families,Partnerships & Health,Third Party Payments,SEN Placements,566,15/04/2019,1904-00192,0.00,18472.00,R,Acorn Care And Education Ltd,No
Http://opendatacommunities.org/id/metropolitan-district-council/leeds,Leeds City Council,30/04/2019,Children and Families,Partnerships & Health,Third Party Payments,SEN Placements,566,15/04/2019,1904-00193,0.00,18138.67,R,Acorn Care And Education Ltd,No
Http://opendatacommunities.org/id/metropolitan-district-council/leeds,Leeds City Council,30/04/2019,Adults and Health,Services For Older People - 65 And Over,Third Party Payments,Residential Care Dementia,571,03/04/2019,1904-00194,0.00,0.02,R,Acorn Nursing Home,No
Http://opendatacommunities.org/id/metropolitan-district-council/leeds,Leeds City Council,30/04/2019,Adults and Health,Services For Older People - 65 And Over,Third Party Payments,Nursing Care Dementia,574,03/04/2019,1904-00195,0.00,1614.66,R,Acorn Nursing Home,No
Http://opendatacommunities.org/id/metropolitan-district-council/leeds,Leeds City Council,30/04/2019,City Development,Libraries  Arts & Heritage,Supplies and Services,Other Hired And Contracted Services,265,05/04/2019,1904-00196,0.00,700.00,R,Acorn Scaffolding (Yorkshire) Ltd,No
Http://opendatacommunities.org/id/metropolitan-district-council/leeds,Leeds City Council,30/04/2019,City Development,Libraries  Arts & Heritage,Supplies and Services,Other Hired And Contracted Services,265,12/04/2019,1904-00197,0.00,578.45,R,Acorn Scaffolding (Yorkshire) Ltd,No
Http://opendatacommunities.org/id/metropolitan-district-council/leeds,Leeds City Council,30/04/2019,Children and Families,Social Care,Third Party Payments,Services Rendered By Other Organisations,511,05/04/2019,1904-00198,0.00,7546.50,R,Acorns Nursery,No
Http://opendatacommunities.org/id/metropolitan-district-council/leeds,Leeds City Council,30/04/2019,Children and Families,Social Care,Third Party Payments,Services Rendered By Voluntary Sector,505,30/04/2019,1904-00199,0.00,4789.47,R,Acorns Nursery,No
Http://opendatacommunities.org/id/metropolitan-district-council/leeds,Leeds City Council,30/04/2019,Communities and Environment,Environmental Health,Supplies and Services,Computer Software & Equipment,214,18/04/2019,1904-00200,0.00,652.00,R,Acoustic Calibration Services Limited,No
Http://opendatacommunities.org/id/metropolitan-district-council/leeds,Leeds City Council,30/04/2019,City Development,Libraries  Arts & Heritage,Supplies and Services,Operational Furniture And Equipment,203,02/04/2019,1904-00201,0.00,900.00,R,Acoustiguide Ltd,No
Http://opendatacommunities.org/id/metropolitan-district-council/leeds,Leeds City Council,30/04/2019,Adults and Health,Services For Older People - 65 And Over,Third Party Payments,Nursing Home,570,03/04/2019,1904-00202,0.00,40861.46,R,Acre Green,No
Http://opendatacommunities.org/id/metropolitan-district-council/leeds,Leeds City Council,30/04/2019,Adults and Health,Services For Older People - 65 And Over,Third Party Payments,Residential Care Dementia,571,03/04/2019,1904-00203,0.00,-8640.79,R,Acre Green,No
Http://opendatacommunities.org/id/metropolitan-district-council/leeds,Leeds City Council,30/04/2019,Adults and Health,Services For Older People - 65 And Over,Third Party Payments,Nursing Care Dementia,574,03/04/2019,1904-00204,0.00,1478.95,R,Acre Green,No
Http://opendatacommunities.org/id/metropolitan-district-council/leeds,Leeds City Council,30/04/2019,Adults and Health,Services For Older People - 65 And Over,Third Party Payments,Residential,580,03/04/2019,1904-00205,0.00,4058.74,R,Acre Green,No
Http://opendatacommunities.org/id/metropolitan-district-council/leeds,Leeds City Council,30/04/2019,Adults and Health,Services For Older People Under 65 P/Dis,Third Party Payments,Nursing Home,570,03/04/2019,1904-00206,0.00,2200.00,R,Acre Green,No
Http://opendatacommunities.org/id/metropolitan-district-council/leeds,Leeds City Council,30/04/2019,Adults and Health,Services For Older People Under 65 P/Dis,Third Party Payments,Residential,580,03/04/2019,1904-00207,0.00,1898.80,R,Acre Green,No
Http://opendatacommunities.org/id/metropolitan-district-council/leeds,Leeds City Council,30/04/2019,Children and Families,Social Care,Third Party Payments,Services Rendered By Other Organisations,511,03/04/2019,1904-00208,0.00,1825.20,R,Acre Wood Day Nursery,No
Http://opendatacommunities.org/id/metropolitan-district-council/leeds,Leeds City Council,30/04/2019,Children and Families,Social Care,Third Party Payments,Services Rendered By Other Organisations,511,05/04/2019,1904-00209,0.00,12234.36,R,Acre Wood Day Nursery,No
Http://opendatacommunities.org/id/metropolitan-district-council/leeds,Leeds City Council,30/04/2019,Children and Families,Social Care,Third Party Payments,Services Rendered By Other Organisations,511,30/04/2019,1904-00210,0.00,1825.20,R,Acre Wood Day Nursery,No
Http://opendatacommunities.org/id/metropolitan-district-council/leeds,Leeds City Council,30/04/2019,Children and Families,Social Care,Third Party Payments,Services Rendered By Voluntary Sector,505,30/04/2019,1904-00211,0.00,2394.74,R,Acre Wood Day Nursery,No
Http://opendatacommunities.org/id/metropolitan-district-council/leeds,Leeds City Council,30/04/2019,Resources and Housing,Technology  ,Supplies and Services,Computer Software & Equipment,214,15/03/2019,1904-00212,0.00,277.45,R,Acsbusinesssupplies,Yes
Http://opendatacommunities.org/id/metropolitan-district-council/leeds,Leeds City Council,30/04/2019,Resources and Housing,Technology  ,Supplies and Services,Computer Software & Equipment,214,22/03/2019,1904-00213,0.00,52.05,R,Acsbusinesssupplies,Yes
Http://opendatacommunities.org/id/metropolitan-district-council/leeds,Leeds City Council,30/04/2019,Resources and Housing,Technology  ,Supplies and Services,Computer Software & Equipment,214,25/03/2019,1904-00214,0.00,185.95,R,Acsbusinesssupplies,Yes
Http://opendatacommunities.org/id/metropolitan-district-council/leeds,Leeds City Council,30/04/2019,Resources and Housing,Technology  ,Employees,Best Value Training,70,28/02/2019,1904-00215,0.00,349.00,R,Act Now Training Limit,Yes
Http://opendatacommunities.org/id/metropolitan-district-council/leeds,Leeds City Council,30/04/2019,Resources and Housing,Technology  ,Employees,Best Value Training,70,01/03/2019,1904-00216,0.00,49.00,R,Act Now Training Limit,Yes
Http://opendatacommunities.org/id/metropolitan-district-council/leeds,Leeds City Council,30/04/2019,Resources and Housing,Technology,Employees,Training & Development,70,23/04/2019,1904-00217,0.00,49.00,R,Act Now Training Ltd,No
Http://opendatacommunities.org/id/metropolitan-district-council/leeds,Leeds City Council,30/04/2019,Resources and Housing,Technology,Employees,Training & Development,70,23/04/2019,1904-00218,0.00,49.00,R,Act Now Training Ltd,No
Http://opendatacommunities.org/id/metropolitan-district-council/leeds,Leeds City Council,30/04/2019,Resources and Housing,Leeds Building Services,Supplies and Services,Operational Materials,205,04/04/2019,1904-00219,0.00,35.00,R,Actavo (Leeds H & S),No
Http://opendatacommunities.org/id/metropolitan-district-council/leeds,Leeds City Council,30/04/2019,Resources and Housing,Leeds Building Services,Supplies and Services,Operational Materials,205,24/04/2019,1904-00220,0.00,240.00,R,Actavo (Leeds H & S),No
Http://opendatacommunities.org/id/metropolitan-district-council/leeds,Leeds City Council,30/04/2019,Children and Families,Social Care,Third Party Payments,Independent Fostering Agencies,509,18/04/2019,1904-00221,0.00,5026.48,R,Action For Children,No
Http://opendatacommunities.org/id/metropolitan-district-council/leeds,Leeds City Council,30/04/2019,Children and Families,Social Care,Third Party Payments,Independent Fostering Agencies,509,18/04/2019,1904-00222,0.00,4776.48,R,Action For Children,No
Http://opendatacommunities.org/id/metropolitan-district-council/leeds,Leeds City Council,30/04/2019,Children and Families,Social Care,Third Party Payments,Independent Fostering Agencies,509,24/04/2019,1904-00223,0.00,4776.48,R,Action For Children,No
Http://opendatacommunities.org/id/metropolitan-district-council/leeds,Leeds City Council,30/04/2019,Children and Families,Social Care,Third Party Payments,Independent Fostering Agencies,509,01/04/2019,1904-00224,0.00,4776.48,R,Action For Children Services Ltd,No
Http://opendatacommunities.org/id/metropolitan-district-council/leeds,Leeds City Council,30/04/2019,Adults and Health,Services For Older People - 65 And Over,Third Party Payments,Payments To Voluntary Organisations,561,01/04/2019,1904-00225,0.00,49415.82,R,Action For Gipton Elderly,No
Http://opendatacommunities.org/id/metropolitan-district-council/leeds,Leeds City Council,30/04/2019,Children and Families,Partnerships & Health,Supplies and Services,Consultancy Services,259,03/04/2019,1904-00226,0.00,300.00,R,Action On Hearing Loss,No
Http://opendatacommunities.org/id/metropolitan-district-council/leeds,Leeds City Council,30/04/2019,Children and Families,Partnerships & Health,Transport,Public Transport Expenses,310,03/04/2019,1904-00227,0.00,30.00,R,Action On Hearing Loss,No
Http://opendatacommunities.org/id/metropolitan-district-council/leeds,Leeds City Council,30/04/2019,Children and Families,Partnerships & Health,Supplies and Services,Consultancy Services,259,03/04/2019,1904-00228,0.00,600.00,R,Action On Hearing Loss,No
Http://opendatacommunities.org/id/metropolitan-district-council/leeds,Leeds City Council,30/04/2019,Children and Families,Partnerships & Health,Transport,Public Transport Expenses,310,03/04/2019,1904-00229,0.00,63.90,R,Action On Hearing Loss,No
Http://opendatacommunities.org/id/metropolitan-district-council/leeds,Leeds City Council,30/04/2019,Children and Families,Partnerships & Health,Supplies and Services,Consultancy Services,259,03/04/2019,1904-00230,0.00,300.00,R,Action On Hearing Loss,No
Http://opendatacommunities.org/id/metropolitan-district-council/leeds,Leeds City Council,30/04/2019,Children and Families,Social Care,Third Party Payments,Services Rendered By Other Organisations,511,03/04/2019,1904-00231,0.00,202.80,R,Active Kids Yeadon Llp,No
Http://opendatacommunities.org/id/metropolitan-district-council/leeds,Leeds City Council,30/04/2019,Children and Families,Social Care,Third Party Payments,Services Rendered By Other Organisations,511,05/04/2019,1904-00232,0.00,7725.38,R,Active Kids Yeadon Llp,No
Http://opendatacommunities.org/id/metropolitan-district-council/leeds,Leeds City Council,30/04/2019,Children and Families,Social Care,Third Party Payments,Services Rendered By Other Organisations,511,30/04/2019,1904-00233,0.00,202.80,R,Active Kids Yeadon Llp,No
Http://opendatacommunities.org/id/metropolitan-district-council/leeds,Leeds City Council,30/04/2019,Children and Families,Social Care,Third Party Payments,Services Rendered By Voluntary Sector,505,30/04/2019,1904-00234,0.00,2873.68,R,Active Kids Yeadon Llp,No
Http://opendatacommunities.org/id/metropolitan-district-council/leeds,Leeds City Council as Accountable Body,30/04/2019,Social Services Pooled Budgets,Leeds Community Equip Store Pooled Budgt,Supplies and Services,Other Equipment,203,05/04/2019,1904-00235,0.00,255.00,R,Active Mobility Centre Ltd,No
Http://opendatacommunities.org/id/metropolitan-district-council/leeds,Leeds City Council,30/04/2019,Resources and Housing,Commercial Services  ,Employees,Training Costs,71,11/03/2019,1904-00236,0.00,239.00,R,Activia Ltd,Yes
Http://opendatacommunities.org/id/metropolitan-district-council/leeds,Leeds City Council,30/04/2019,Communities and Environment,Cleaner Neighbourhood Teams,Premises,Removal Of Workplace Waste,126,03/04/2019,1904-00237,0.00,110.00,R,Acumen Waste Services Ltd,No
Http://opendatacommunities.org/id/metropolitan-district-council/leeds,Leeds City Council,30/04/2019,Communities and Environment,Waste Management,Supplies and Services,Recycling & Reuse Charges,234,03/04/2019,1904-00238,0.00,3780.14,R,Acumen Waste Services Ltd,No
Http://opendatacommunities.org/id/metropolitan-district-council/leeds,Leeds City Council,30/04/2019,Communities and Environment,Cleaner Neighbourhood Teams,Premises,Removal Of Workplace Waste,126,03/04/2019,1904-00239,0.00,110.00,R,Acumen Waste Services Ltd,No
Http://opendatacommunities.org/id/metropolitan-district-council/leeds,Leeds City Council,30/04/2019,Communities and Environment,Cleaner Neighbourhood Teams,Premises,Removal Of Workplace Waste,126,03/04/2019,1904-00240,0.00,45.00,R,Acumen Waste Services Ltd,No
Http://opendatacommunities.org/id/metropolitan-district-council/leeds,Leeds City Council,30/04/2019,Communities and Environment,Cleaner Neighbourhood Teams,Premises,Removal Of Workplace Waste,126,05/04/2019,1904-00241,0.00,110.00,R,Acumen Waste Services Ltd,No
Http://opendatacommunities.org/id/metropolitan-district-council/leeds,Leeds City Council,30/04/2019,Communities and Environment,Cleaner Neighbourhood Teams,Premises,Removal Of Workplace Waste,126,05/04/2019,1904-00242,0.00,110.00,R,Acumen Waste Services Ltd,No
Http://opendatacommunities.org/id/metropolitan-district-council/leeds,Leeds City Council,30/04/2019,Communities and Environment,Cleaner Neighbourhood Teams,Premises,Removal Of Workplace Waste,126,05/04/2019,1904-00243,0.00,110.00,R,Acumen Waste Services Ltd,No
Http://opendatacommunities.org/id/metropolitan-district-council/leeds,Leeds City Council,30/04/2019,Communities and Environment,Cleaner Neighbourhood Teams,Premises,Removal Of Workplace Waste,126,05/04/2019,1904-00244,0.00,110.00,R,Acumen Waste Services Ltd,No
Http://opendatacommunities.org/id/metropolitan-district-council/leeds,Leeds City Council,30/04/2019,Communities and Environment,Cleaner Neighbourhood Teams,Premises,Removal Of Workplace Waste,126,05/04/2019,1904-00245,0.00,110.00,R,Acumen Waste Services Ltd,No
Http://opendatacommunities.org/id/metropolitan-district-council/leeds,Leeds City Council,30/04/2019,Communities and Environment,Cleaner Neighbourhood Teams,Premises,Removal Of Workplace Waste,126,10/04/2019,1904-00246,0.00,110.00,R,Acumen Waste Services Ltd,No
Http://opendatacommunities.org/id/metropolitan-district-council/leeds,Leeds City Council,30/04/2019,Communities and Environment,Waste Management,Supplies and Services,Recycling & Reuse Charges,234,10/04/2019,1904-00247,0.00,944.70,R,Acumen Waste Services Ltd,No
Http://opendatacommunities.org/id/metropolitan-district-council/leeds,Leeds City Council,30/04/2019,Communities and Environment,Waste Management,Supplies and Services,Recycling & Reuse Charges,234,11/04/2019,1904-00248,0.00,5680.26,R,Acumen Waste Services Ltd,No
Http://opendatacommunities.org/id/metropolitan-district-council/leeds,Leeds City Council,30/04/2019,Communities and Environment,Cleaner Neighbourhood Teams,Premises,Removal Of Workplace Waste,126,11/04/2019,1904-00249,0.00,50.00,R,Acumen Waste Services Ltd,No
Http://opendatacommunities.org/id/metropolitan-district-council/leeds,Leeds City Council,30/04/2019,Communities and Environment,Cleaner Neighbourhood Teams,Premises,Removal Of Workplace Waste,126,11/04/2019,1904-00250,0.00,110.00,R,Acumen Waste Services Ltd,No
Http://opendatacommunities.org/id/metropolitan-district-council/leeds,Leeds City Council,30/04/2019,Communities and Environment,Cleaner Neighbourhood Teams,Premises,Removal Of Workplace Waste,126,11/04/2019,1904-00251,0.00,110.00,R,Acumen Waste Services Ltd,No
Http://opendatacommunities.org/id/metropolitan-district-council/leeds,Leeds City Council,30/04/2019,Communities and Environment,Cleaner Neighbourhood Teams,Premises,Removal Of Workplace Waste,126,11/04/2019,1904-00252,0.00,110.00,R,Acumen Waste Services Ltd,No
Http://opendatacommunities.org/id/metropolitan-district-council/leeds,Leeds City Council,30/04/2019,Communities and Environment,Waste Management,Supplies and Services,Recycling & Reuse Charges,234,17/04/2019,1904-00253,0.00,5668.20,R,Acumen Waste Services Ltd,No
Http://opendatacommunities.org/id/metropolitan-district-council/leeds,Leeds City Council,30/04/2019,Communities and Environment,Cleaner Neighbourhood Teams,Premises,Removal Of Workplace Waste,126,18/04/2019,1904-00254,0.00,245.00,R,Acumen Waste Services Ltd,No
Http://opendatacommunities.org/id/metropolitan-district-council/leeds,Leeds City Council,30/04/2019,Communities and Environment,Cleaner Neighbourhood Teams,Premises,Removal Of Workplace Waste,126,18/04/2019,1904-00255,0.00,245.00,R,Acumen Waste Services Ltd,No
Http://opendatacommunities.org/id/metropolitan-district-council/leeds,Leeds City Council,30/04/2019,Communities and Environment,Cleaner Neighbourhood Teams,Premises,Removal Of Workplace Waste,126,18/04/2019,1904-00256,0.00,60.00,R,Acumen Waste Services Ltd,No
Http://opendatacommunities.org/id/metropolitan-district-council/leeds,Leeds City Council,30/04/2019,Communities and Environment,Cleaner Neighbourhood Teams,Premises,Removal Of Workplace Waste,126,18/04/2019,1904-00257,0.00,110.00,R,Acumen Waste Services Ltd,No
Http://opendatacommunities.org/id/metropolitan-district-council/leeds,Leeds City Council,30/04/2019,Communities and Environment,Cleaner Neighbourhood Teams,Premises,Removal Of Workplace Waste,126,18/04/2019,1904-00258,0.00,110.00,R,Acumen Waste Services Ltd,No
Http://opendatacommunities.org/id/metropolitan-district-council/leeds,Leeds City Council,30/04/2019,Communities and Environment,Cleaner Neighbourhood Teams,Premises,Removal Of Workplace Waste,126,18/04/2019,1904-00259,0.00,110.00,R,Acumen Waste Services Ltd,No
Http://opendatacommunities.org/id/metropolitan-district-council/leeds,Leeds City Council,30/04/2019,Communities and Environment,Cleaner Neighbourhood Teams,Premises,Removal Of Workplace Waste,126,18/04/2019,1904-00260,0.00,110.00,R,Acumen Waste Services Ltd,No
Http://opendatacommunities.org/id/metropolitan-district-council/leeds,Leeds City Council,30/04/2019,Communities and Environment,Cleaner Neighbourhood Teams,Premises,Removal Of Workplace Waste,126,18/04/2019,1904-00261,0.00,110.00,R,Acumen Waste Services Ltd,No
Http://opendatacommunities.org/id/metropolitan-district-council/leeds,Leeds City Council,30/04/2019,Communities and Environment,Cleaner Neighbourhood Teams,Premises,Removal Of Workplace Waste,126,24/04/2019,1904-00262,0.00,110.00,R,Acumen Waste Services Ltd,No
Http://opendatacommunities.org/id/metropolitan-district-council/leeds,Leeds City Council,30/04/2019,Communities and Environment,Cleaner Neighbourhood Teams,Premises,Removal Of Workplace Waste,126,24/04/2019,1904-00263,0.00,110.00,R,Acumen Waste Services Ltd,No
Http://opendatacommunities.org/id/metropolitan-district-council/leeds,Leeds City Council,30/04/2019,Communities and Environment,Cleaner Neighbourhood Teams,Premises,Removal Of Workplace Waste,126,24/04/2019,1904-00264,0.00,110.00,R,Acumen Waste Services Ltd,No
Http://opendatacommunities.org/id/metropolitan-district-council/leeds,Leeds City Council,30/04/2019,Communities and Environment,Cleaner Neighbourhood Teams,Premises,Removal Of Workplace Waste,126,24/04/2019,1904-00265,0.00,110.00,R,Acumen Waste Services Ltd,No
Http://opendatacommunities.org/id/metropolitan-district-council/leeds,Leeds City Council,30/04/2019,Communities and Environment,Waste Management,Supplies and Services,Recycling & Reuse Charges,234,26/04/2019,1904-00266,0.00,6578.06,R,Acumen Waste Services Ltd,No
Http://opendatacommunities.org/id/metropolitan-district-council/leeds,Leeds City Council,30/04/2019,Communities and Environment,Cleaner Neighbourhood Teams,Premises,Removal Of Workplace Waste,126,26/04/2019,1904-00267,0.00,110.00,R,Acumen Waste Services Ltd,No
Http://opendatacommunities.org/id/metropolitan-district-council/leeds,Leeds City Council,30/04/2019,Communities and Environment,Cleaner Neighbourhood Teams,Premises,Removal Of Workplace Waste,126,26/04/2019,1904-00268,0.00,110.00,R,Acumen Waste Services Ltd,No
Http://opendatacommunities.org/id/metropolitan-district-council/leeds,Leeds City Council,30/04/2019,Communities and Environment,Cleaner Neighbourhood Teams,Premises,Removal Of Workplace Waste,126,26/04/2019,1904-00269,0.00,110.00,R,Acumen Waste Services Ltd,No
Http://opendatacommunities.org/id/metropolitan-district-council/leeds,Leeds City Council,30/04/2019,Communities and Environment,Parks and Countryside,Supplies and Services,Resaleable Materials,204,18/04/2019,1904-00270,0.00,263.00,R,Acushnet Europe Limited,No
Http://opendatacommunities.org/id/metropolitan-district-council/leeds,Leeds City Council,30/04/2019,Resources and Housing,Shared Services,Supplies and Services,Other Hired And Contracted Services,265,18/04/2019,1904-00271,0.00,218.48,R,Ad3 Envelope Printers Limited,No
Http://opendatacommunities.org/id/metropolitan-district-council/leeds,Leeds City Council,30/04/2019,Resources and Housing,Shared Services,Supplies and Services,Other Hired And Contracted Services,265,26/04/2019,1904-00272,0.00,1192.46,R,Ad3 Envelope Printers Limited,No
Http://opendatacommunities.org/id/metropolitan-district-council/leeds,Leeds City Council,30/04/2019,Resources and Housing,Shared Services,Supplies and Services,Operational Materials,205,26/04/2019,1904-00273,0.00,1131.75,R,Ad3 Envelope Printers Limited,No
Http://opendatacommunities.org/id/metropolitan-district-council/leeds,Leeds City Council,30/04/2019,City Development,Libraries  Arts & Heritage,Supplies and Services,Bought In Professional Services,277,18/04/2019,1904-00274,0.00,300.00,R,Adam Clarke,No
Http://opendatacommunities.org/id/metropolitan-district-council/leeds,Leeds City Council,30/04/2019,Communities and Environment,Waste Management,Supplies and Services,Operational Furniture And Equipment,203,18/04/2019,1904-00275,0.00,250.00,R,REDACTED PERSONAL DATA,No
Http://opendatacommunities.org/id/metropolitan-district-council/leeds,Leeds City Council,30/04/2019,Adults and Health,Services For Older People - 65 And Over,Third Party Payments,Nursing Home,570,03/04/2019,1904-00276,0.00,321.05,R,Adbolton Hall,No
Http://opendatacommunities.org/id/metropolitan-district-council/leeds,Leeds City Council,30/04/2019,Children and Families,Partnerships & Health,Supplies and Services,Memberships,226,12/04/2019,1904-00277,0.00,3135.00,R,Adcs,No
Http://opendatacommunities.org/id/metropolitan-district-council/leeds,Leeds City Council,30/04/2019,Resources and Housing,Technology  ,Employees,Agency Staff,8,15/03/2019,1904-00278,0.00,57618.56,R,Adecco Alfred Marks,Yes
Http://opendatacommunities.org/id/metropolitan-district-council/leeds,Leeds City Council,30/04/2019,Resources and Housing,Commercial Services  ,Transport,Fuel (Non LCC Supplies),321,05/03/2019,1904-00279,0.00,23.38,R,Adel Sf Connect,Yes
Http://opendatacommunities.org/id/metropolitan-district-council/leeds,Leeds City Council,30/04/2019,City Development,Libraries  Arts & Heritage  ,Supplies and Services,Teaching Materials,202,12/03/2019,1904-00280,0.00,30.00,R,Adelaide Walker Llp,Yes
Http://opendatacommunities.org/id/metropolitan-district-council/leeds,Leeds City Council,30/04/2019,Children and Families,Social Care,Third Party Payments,Services Rendered By Other Organisations,511,05/04/2019,1904-00281,0.00,503.10,R,REDACTED PERSONAL DATA,No
Http://opendatacommunities.org/id/metropolitan-district-council/leeds,Leeds City Council,30/04/2019,Children and Families,Social Care,Third Party Payments,Services Rendered By Other Organisations,511,05/04/2019,1904-00282,0.00,111.80,R,REDACTED PERSONAL DATA,No
Http://opendatacommunities.org/id/metropolitan-district-council/leeds,Leeds City Council,30/04/2019,City Development,Recreation,Income,Swimming Bath Charges,923,10/04/2019,1904-00283,0.00,15.72,R,REDACTED PERSONAL DATA,No
Http://opendatacommunities.org/id/metropolitan-district-council/leeds,Leeds City Council,30/04/2019,City Development,Recreation,Income,Swimming Bath Charges,923,17/04/2019,1904-00284,0.00,9.23,R,REDACTED PERSONAL DATA,No
Http://opendatacommunities.org/id/metropolitan-district-council/leeds,Leeds City Council,30/04/2019,Children and Families,Social Care,Third Party Payments,Services Rendered By Other Organisations,511,05/04/2019,1904-00285,0.00,1006.20,R,REDACTED PERSONAL DATA,No
Http://opendatacommunities.org/id/metropolitan-district-council/leeds,Leeds City Council,30/04/2019,Adults and Health,Services For Older People - 65 And Over,Third Party Payments,Nursing Home,570,03/04/2019,1904-00286,0.00,1166.73,R,Aden House,No
Http://opendatacommunities.org/id/metropolitan-district-council/leeds,Leeds City Council,30/04/2019,Resources and Housing,Leeds Building Services,Supplies and Services,Operational Materials,205,16/04/2019,1904-00287,0.00,100.14,R,Adi Global,No
Http://opendatacommunities.org/id/metropolitan-district-council/leeds,Leeds City Council,30/04/2019,Resources and Housing,Leeds Building Services,Supplies and Services,Operational Materials,205,16/04/2019,1904-00288,0.00,78.48,R,Adi Global,No
Http://opendatacommunities.org/id/metropolitan-district-council/leeds,Leeds City Council,30/04/2019,Resources and Housing,Leeds Building Services,Supplies and Services,Operational Materials,205,23/04/2019,1904-00289,0.00,17.40,R,Adi Global,No
Http://opendatacommunities.org/id/metropolitan-district-council/leeds,Leeds City Council,30/04/2019,Resources and Housing,Leeds Building Services,Supplies and Services,Operational Materials,205,23/04/2019,1904-00290,0.00,1294.27,R,Adi Global,No
Http://opendatacommunities.org/id/metropolitan-district-council/leeds,Leeds City Council,30/04/2019,Resources and Housing,Leeds Building Services,Supplies and Services,Operational Materials,205,23/04/2019,1904-00291,0.00,38.08,R,Adi Global,No
Http://opendatacommunities.org/id/metropolitan-district-council/leeds,Leeds City Council,30/04/2019,Resources and Housing,Leeds Building Services,Supplies and Services,Operational Materials,205,23/04/2019,1904-00292,0.00,561.96,R,Adi Global,No
Http://opendatacommunities.org/id/metropolitan-district-council/leeds,Leeds City Council,30/04/2019,Resources and Housing,Leeds Building Services,Supplies and Services,Operational Materials,205,23/04/2019,1904-00293,0.00,2000.97,R,Adi Global,No
Http://opendatacommunities.org/id/metropolitan-district-council/leeds,Leeds City Council,30/04/2019,Resources and Housing,Leeds Building Services,Supplies and Services,Operational Materials,205,23/04/2019,1904-00294,0.00,1383.92,R,Adi Global,No
Http://opendatacommunities.org/id/metropolitan-district-council/leeds,Leeds City Council,30/04/2019,Resources and Housing,Leeds Building Services,Supplies and Services,Operational Materials,205,23/04/2019,1904-00295,0.00,1383.92,R,Adi Global,No
Http://opendatacommunities.org/id/metropolitan-district-council/leeds,Leeds City Council,30/04/2019,Resources and Housing,Leeds Building Services,Supplies and Services,Operational Materials,205,30/04/2019,1904-00296,0.00,15.25,R,Adi Global,No
Http://opendatacommunities.org/id/metropolitan-district-council/leeds,Leeds City Council,30/04/2019,Resources and Housing,Leeds Building Services,Supplies and Services,Operational Materials,205,30/04/2019,1904-00297,0.00,258.57,R,Adi Global,No
Http://opendatacommunities.org/id/metropolitan-district-council/leeds,Leeds City Council,30/04/2019,Resources and Housing,Leeds Building Services,Supplies and Services,Operational Materials,205,30/04/2019,1904-00298,0.00,48.94,R,Adi Global,No
Http://opendatacommunities.org/id/metropolitan-district-council/leeds,Leeds City Council,30/04/2019,Resources and Housing,Leeds Building Services,Supplies and Services,Operational Materials,205,30/04/2019,1904-00299,0.00,38.56,R,Adi Global,No
Http://opendatacommunities.org/id/metropolitan-district-council/leeds,Leeds City Council,30/04/2019,Resources and Housing,Leeds Building Services,Supplies and Services,Operational Materials,205,30/04/2019,1904-00300,0.00,18.30,R,Adi Global,No
Http://opendatacommunities.org/id/metropolitan-district-council/leeds,Leeds City Council,30/04/2019,Adults and Health,Services For Adults Under 65 Mental/Dis,Third Party Payments,Home Care,568,02/04/2019,1904-00301,0.00,852.00,R,Adjuvo Care & Support Ltd,No
Http://opendatacommunities.org/id/metropolitan-district-council/leeds,Leeds City Council,30/04/2019,Adults and Health,Services For Adults Under 65 Mental/Dis,Third Party Payments,Home Care,568,02/04/2019,1904-00302,0.00,256.00,R,Adjuvo Care & Support Ltd,No
Http://opendatacommunities.org/id/metropolitan-district-council/leeds,Leeds City Council,30/04/2019,Adults and Health,Services For Adults Under 65 Mental/Dis,Third Party Payments,Home Care,568,23/04/2019,1904-00303,0.00,450.84,R,Adjuvo Care & Support Ltd,No
Http://opendatacommunities.org/id/metropolitan-district-council/leeds,Leeds City Council,30/04/2019,Adults and Health,Services For Older People - 65 And Over,Third Party Payments,Home Care,568,23/04/2019,1904-00304,0.00,14608.91,R,Adjuvo Care & Support Ltd,No
Http://opendatacommunities.org/id/metropolitan-district-council/leeds,Leeds City Council,30/04/2019,Adults and Health,Services For Older People Under 65 P/Dis,Third Party Payments,Home Care,568,23/04/2019,1904-00305,0.00,10638.13,R,Adjuvo Care & Support Ltd,No
Http://opendatacommunities.org/id/metropolitan-district-council/leeds,Leeds City Council,30/04/2019,Adults and Health,Services For Older People - 65 And Over,Third Party Payments,Home Care,568,23/04/2019,1904-00306,0.00,5216.00,R,Adjuvo Care & Support Ltd,No
Http://opendatacommunities.org/id/metropolitan-district-council/leeds,Leeds City Council,30/04/2019,Adults and Health,Services For Older People Under 65 P/Dis,Third Party Payments,Home Care,568,23/04/2019,1904-00307,0.00,896.00,R,Adjuvo Care & Support Ltd,No
Http://opendatacommunities.org/id/metropolitan-district-council/leeds,Leeds City Council,30/04/2019,City Development,Libraries  Arts & Heritage  ,Supplies and Services,Computer Software & Equipment,214,02/03/2019,1904-00308,0.00,9.98,R,Adobe Photogphy Plan,Yes
Http://opendatacommunities.org/id/metropolitan-district-council/leeds,Leeds City Council,30/04/2019,Children and Families,Social Care,Third Party Payments,Independent Fostering Agencies,509,03/04/2019,1904-00309,0.00,2884.00,R,Adolescent And Childrens Trust,No
Http://opendatacommunities.org/id/metropolitan-district-council/leeds,Leeds City Council,30/04/2019,Children and Families,Social Care,Third Party Payments,Independent Fostering Agencies,509,03/04/2019,1904-00310,0.00,2826.32,R,Adolescent And Childrens Trust,No
Http://opendatacommunities.org/id/metropolitan-district-council/leeds,Leeds City Council,30/04/2019,Children and Families,Social Care,Third Party Payments,Independent Fostering Agencies,509,04/04/2019,1904-00311,0.00,2660.00,R,Adolescent And Childrens Trust,No
Http://opendatacommunities.org/id/metropolitan-district-council/leeds,Leeds City Council,30/04/2019,Children and Families,Social Care,Third Party Payments,Independent Fostering Agencies,509,04/04/2019,1904-00312,0.00,2884.00,R,Adolescent And Childrens Trust,No
Http://opendatacommunities.org/id/metropolitan-district-council/leeds,Leeds City Council,30/04/2019,Children and Families,Social Care,Third Party Payments,Independent Fostering Agencies,509,04/04/2019,1904-00313,0.00,2826.32,R,Adolescent And Childrens Trust,No
Http://opendatacommunities.org/id/metropolitan-district-council/leeds,Leeds City Council,30/04/2019,Children and Families,Social Care,Third Party Payments,Independent Fostering Agencies,509,04/04/2019,1904-00314,0.00,2826.32,R,Adolescent And Childrens Trust,No
Http://opendatacommunities.org/id/metropolitan-district-council/leeds,Leeds City Council,30/04/2019,Children and Families,Social Care,Third Party Payments,Independent Fostering Agencies,509,04/04/2019,1904-00315,0.00,2826.32,R,Adolescent And Childrens Trust,No
Http://opendatacommunities.org/id/metropolitan-district-council/leeds,Leeds City Council,30/04/2019,Children and Families,Social Care,Third Party Payments,Independent Fostering Agencies,509,04/04/2019,1904-00316,0.00,759.92,R,Adolescent And Childrens Trust,No
Http://opendatacommunities.org/id/metropolitan-district-council/leeds,Leeds City Council,30/04/2019,Children and Families,Social Care,Third Party Payments,Independent Fostering Agencies,509,04/04/2019,1904-00317,0.00,3057.04,R,Adolescent And Childrens Trust,No
Http://opendatacommunities.org/id/metropolitan-district-council/leeds,Leeds City Council,30/04/2019,Children and Families,Social Care,Third Party Payments,Independent Fostering Agencies,509,04/04/2019,1904-00318,0.00,284.89,R,Adolescent And Childrens Trust,No
Http://opendatacommunities.org/id/metropolitan-district-council/leeds,Leeds City Council,30/04/2019,Children and Families,Social Care,Third Party Payments,Independent Fostering Agencies,509,04/04/2019,1904-00319,0.00,302.82,R,Adolescent And Childrens Trust,No
Http://opendatacommunities.org/id/metropolitan-district-council/leeds,Leeds City Council as Accountable Body,30/04/2019,Social Services Pooled Budgets,Jcs For People With Learning Disabilitie,Third Party Payments,Residential,580,25/04/2019,1904-00320,0.00,2609.36,R,Adrian House,No
Http://opendatacommunities.org/id/metropolitan-district-council/leeds,Leeds City Council as Accountable Body,30/04/2019,Social Services Pooled Budgets,Jcs For People With Learning Disabilitie,Third Party Payments,Residential,580,25/04/2019,1904-00321,0.00,2609.36,R,Adrian House,No
Http://opendatacommunities.org/id/metropolitan-district-council/leeds,Leeds City Council as Accountable Body,30/04/2019,Social Services Pooled Budgets,Jcs For People With Learning Disabilitie,Third Party Payments,Residential,580,25/04/2019,1904-00322,0.00,2609.36,R,Adrian House,No
Http://opendatacommunities.org/id/metropolitan-district-council/leeds,Leeds City Council,30/04/2019,Strategic Landlord,Housing Management,Premises,Premises Security Services,162,01/04/2019,1904-00323,0.00,156.21,R,Adt Fire And Security Plc,No
Http://opendatacommunities.org/id/metropolitan-district-council/leeds,Leeds City Council,30/04/2019,Strategic Landlord,Housing Management,Premises,Premises Security Services,162,29/04/2019,1904-00324,0.00,459.00,R,Adt Fire And Security Plc,No
Http://opendatacommunities.org/id/metropolitan-district-council/leeds,Leeds City Council as Accountable Body,30/04/2019,Social Services Pooled Budgets,Jcs For People With Learning Disabilitie,Third Party Payments,Residential,580,24/04/2019,1904-00325,0.00,1332.20,R,Adult Placement Services,No
Http://opendatacommunities.org/id/metropolitan-district-council/leeds,Leeds City Council as Accountable Body,30/04/2019,Social Services Pooled Budgets,Jcs For People With Learning Disabilitie,Third Party Payments,Residential,580,24/04/2019,1904-00326,0.00,1332.20,R,Adult Placement Services,No
Http://opendatacommunities.org/id/metropolitan-district-council/leeds,Leeds City Council as Accountable Body,30/04/2019,Social Services Pooled Budgets,Jcs For People With Learning Disabilitie,Third Party Payments,Residential,580,25/04/2019,1904-00327,0.00,1332.20,R,Adult Placement Services,No
Http://opendatacommunities.org/id/metropolitan-district-council/leeds,Leeds City Council,30/04/2019,City Development,Libraries  Arts & Heritage,Supplies and Services,External Audit Fees,261,04/04/2019,1904-00328,0.00,90.00,R,Advance Stocks Ltd,No
Http://opendatacommunities.org/id/metropolitan-district-council/leeds,Leeds City Council,30/04/2019,City Development,Recreation,Supplies and Services,External Audit Fees,261,05/04/2019,1904-00329,0.00,135.00,R,Advance Stocks Ltd,No
Http://opendatacommunities.org/id/metropolitan-district-council/leeds,Leeds City Council,30/04/2019,City Development,Recreation,Supplies and Services,External Audit Fees,261,05/04/2019,1904-00330,0.00,85.00,R,Advance Stocks Ltd,No
Http://opendatacommunities.org/id/metropolitan-district-council/leeds,Leeds City Council,30/04/2019,City Development,Recreation,Supplies and Services,External Audit Fees,261,26/04/2019,1904-00331,0.00,135.00,R,Advance Stocks Ltd,No
Http://opendatacommunities.org/id/metropolitan-district-council/leeds,Leeds City Council,30/04/2019,City Development,Recreation,Supplies and Services,External Audit Fees,261,26/04/2019,1904-00332,0.00,85.00,R,Advance Stocks Ltd,No
Http://opendatacommunities.org/id/metropolitan-district-council/leeds,Leeds City Council,30/04/2019,Children and Families,Social Care,Support Services,Legal Disbursements,411,26/04/2019,1904-00333,0.00,132.00,R,Advanced Child Care Assessments Ltd,No
Http://opendatacommunities.org/id/metropolitan-district-council/leeds,Leeds City Council,30/04/2019,Adults and Health,Home Care Services,Supplies and Services,Computer Software & Equipment,214,30/04/2019,1904-00334,0.00,435.00,R,Advanced Health And Care Ltd,No
Http://opendatacommunities.org/id/metropolitan-district-council/leeds,Leeds City Council,30/04/2019,Adults and Health,Home Care Services,Supplies and Services,Computer Software & Equipment,214,30/04/2019,1904-00335,0.00,2430.00,R,Advanced Health And Care Ltd,No
Http://opendatacommunities.org/id/metropolitan-district-council/leeds,Leeds City Council,30/04/2019,City Development,Recreation  ,Supplies and Services,Operational Furniture And Equipment,203,08/03/2019,1904-00336,0.00,631.53,R,Advanced Moulds Ltd,Yes
Http://opendatacommunities.org/id/metropolitan-district-council/leeds,Leeds City Council as Accountable Body,30/04/2019,Social Services Pooled Budgets,Jcs For People With Learning Disabilitie,Third Party Payments,Residential,580,03/04/2019,1904-00337,0.00,17769.33,R,Advitam Ltd,No
Http://opendatacommunities.org/id/metropolitan-district-council/leeds,Leeds City Council as Accountable Body,30/04/2019,Social Services Pooled Budgets,Jcs For People With Learning Disabilitie,Third Party Payments,Other Agency Services,561,02/04/2019,1904-00338,0.00,45.00,R,Advonet,No
Http://opendatacommunities.org/id/metropolitan-district-council/leeds,Leeds City Council as Accountable Body,30/04/2019,Social Services Pooled Budgets,Jcs For People With Learning Disabilitie,Third Party Payments,Other Agency Services,561,02/04/2019,1904-00339,0.00,1458.90,R,Advonet,No
Http://opendatacommunities.org/id/metropolitan-district-council/leeds,Leeds City Council as Accountable Body,30/04/2019,Social Services Pooled Budgets,Jcs For People With Learning Disabilitie,Third Party Payments,Other Agency Services,561,02/04/2019,1904-00340,0.00,92.40,R,Advonet,No
Http://opendatacommunities.org/id/metropolitan-district-council/leeds,Leeds City Council as Accountable Body,30/04/2019,Social Services Pooled Budgets,Jcs For People With Learning Disabilitie,Third Party Payments,Other Agency Services,561,02/04/2019,1904-00341,0.00,142.50,R,Advonet,No
Http://opendatacommunities.org/id/metropolitan-district-council/leeds,Leeds City Council as Accountable Body,30/04/2019,Social Services Pooled Budgets,Jcs For People With Learning Disabilitie,Third Party Payments,Other Agency Services,561,03/04/2019,1904-00342,0.00,72.60,R,Advonet,No
Http://opendatacommunities.org/id/metropolitan-district-council/leeds,Leeds City Council as Accountable Body,30/04/2019,Social Services Pooled Budgets,Jcs For People With Learning Disabilitie,Third Party Payments,Other Agency Services,561,03/04/2019,1904-00343,0.00,6567.66,R,Advonet,No
Http://opendatacommunities.org/id/metropolitan-district-council/leeds,Leeds City Council as Accountable Body,30/04/2019,Social Services Pooled Budgets,Jcs For People With Learning Disabilitie,Third Party Payments,Other Agency Services,561,03/04/2019,1904-00344,0.00,9.90,R,Advonet,No
Http://opendatacommunities.org/id/metropolitan-district-council/leeds,Leeds City Council as Accountable Body,30/04/2019,Social Services Pooled Budgets,Jcs For People With Learning Disabilitie,Third Party Payments,Other Agency Services,561,03/04/2019,1904-00345,0.00,45.00,R,Advonet,No
Http://opendatacommunities.org/id/metropolitan-district-council/leeds,Leeds City Council as Accountable Body,30/04/2019,Social Services Pooled Budgets,Jcs For People With Learning Disabilitie,Third Party Payments,Other Agency Services,561,05/04/2019,1904-00346,0.00,189.90,R,Advonet,No
Http://opendatacommunities.org/id/metropolitan-district-council/leeds,Leeds City Council as Accountable Body,30/04/2019,Social Services Pooled Budgets,Jcs For People With Learning Disabilitie,Third Party Payments,Other Agency Services,561,05/04/2019,1904-00347,0.00,180.00,R,Advonet,No
Http://opendatacommunities.org/id/metropolitan-district-council/leeds,Leeds City Council as Accountable Body,30/04/2019,Social Services Pooled Budgets,Jcs For People With Learning Disabilitie,Third Party Payments,Other Agency Services,561,05/04/2019,1904-00348,0.00,144.90,R,Advonet,No
Http://opendatacommunities.org/id/metropolitan-district-council/leeds,Leeds City Council as Accountable Body,30/04/2019,Social Services Pooled Budgets,Jcs For People With Learning Disabilitie,Third Party Payments,Other Agency Services,561,05/04/2019,1904-00349,0.00,270.00,R,Advonet,No
Http://opendatacommunities.org/id/metropolitan-district-council/leeds,Leeds City Council as Accountable Body,30/04/2019,Social Services Pooled Budgets,Jcs For People With Learning Disabilitie,Third Party Payments,Other Agency Services,561,12/04/2019,1904-00350,0.00,52.50,R,Advonet,No
Http://opendatacommunities.org/id/metropolitan-district-council/leeds,Leeds City Council as Accountable Body,30/04/2019,Social Services Pooled Budgets,Jcs For People With Learning Disabilitie,Third Party Payments,Other Agency Services,561,12/04/2019,1904-00351,0.00,15.00,R,Advonet,No
Http://opendatacommunities.org/id/metropolitan-district-council/leeds,Leeds City Council,30/04/2019,Children and Families,Social Care,Third Party Payments,Placement Support,550,15/04/2019,1904-00352,0.00,144.90,R,Advonet,No
Http://opendatacommunities.org/id/metropolitan-district-council/leeds,Leeds City Council,30/04/2019,Children and Families,Social Care,Third Party Payments,Placement Support,550,16/04/2019,1904-00353,0.00,110.10,R,Advonet,No
Http://opendatacommunities.org/id/metropolitan-district-council/leeds,Leeds City Council,30/04/2019,Children and Families,Social Care,Third Party Payments,Placement Support,550,16/04/2019,1904-00354,0.00,28.50,R,Advonet,No
Http://opendatacommunities.org/id/metropolitan-district-council/leeds,Leeds City Council,30/04/2019,Children and Families,Social Care,Third Party Payments,Placement Support,550,16/04/2019,1904-00355,0.00,144.90,R,Advonet,No
Http://opendatacommunities.org/id/metropolitan-district-council/leeds,Leeds City Council,30/04/2019,Children and Families,Social Care,Third Party Payments,Placement Support,550,16/04/2019,1904-00356,0.00,170.10,R,Advonet,No
Http://opendatacommunities.org/id/metropolitan-district-council/leeds,Leeds City Council,30/04/2019,Children and Families,Social Care,Third Party Payments,Placement Support,550,16/04/2019,1904-00357,0.00,137.40,R,Advonet,No
Http://opendatacommunities.org/id/metropolitan-district-council/leeds,Leeds City Council,30/04/2019,Adults and Health,Services For Older People - 65 And Over,Third Party Payments,Payments To Voluntary Organisations,561,18/04/2019,1904-00358,0.00,103916.67,R,Advonet,No
Http://opendatacommunities.org/id/metropolitan-district-council/leeds,Leeds City Council,30/04/2019,Adults and Health,Services For Adults Under 65 Learn/Dis,Employees,Basic Pay,1,18/04/2019,1904-00359,0.00,17944.96,R,Advonet,No
Http://opendatacommunities.org/id/metropolitan-district-council/leeds,Leeds City Council,30/04/2019,Adults and Health,Services For Adults Under 65 Mental/Dis,Third Party Payments,Fees - Level 4,520,02/04/2019,1904-00360,0.00,200.00,R,Ae Bia Assessments Limited,No
Http://opendatacommunities.org/id/metropolitan-district-council/leeds,Leeds City Council,30/04/2019,Adults and Health,Services For Adults Under 65 Mental/Dis,Third Party Payments,Fees - Level 4,520,02/04/2019,1904-00361,0.00,200.00,R,Ae Bia Assessments Limited,No
Http://opendatacommunities.org/id/metropolitan-district-council/leeds,Leeds City Council,30/04/2019,Adults and Health,Services For Adults Under 65 Mental/Dis,Third Party Payments,Fees - Level 4,520,02/04/2019,1904-00362,0.00,200.00,R,Ae Bia Assessments Limited,No
Http://opendatacommunities.org/id/metropolitan-district-council/leeds,Leeds City Council,30/04/2019,Adults and Health,Services For Adults Under 65 Mental/Dis,Third Party Payments,Fees - Level 4,520,02/04/2019,1904-00363,0.00,-2.74,R,Ae Bia Assessments Limited,No
Http://opendatacommunities.org/id/metropolitan-district-council/leeds,Leeds City Council,30/04/2019,Adults and Health,Services For Adults Under 65 Mental/Dis,Third Party Payments,Fees - Level 4,520,04/04/2019,1904-00364,0.00,245.58,R,Ae Bia Assessments Limited,No
Http://opendatacommunities.org/id/metropolitan-district-council/leeds,Leeds City Council,30/04/2019,Adults and Health,Services For Adults Under 65 Mental/Dis,Third Party Payments,Fees - Level 4,520,04/04/2019,1904-00365,0.00,200.00,R,Ae Bia Assessments Limited,No
Http://opendatacommunities.org/id/metropolitan-district-council/leeds,Leeds City Council,30/04/2019,Adults and Health,Services For Adults Under 65 Mental/Dis,Third Party Payments,Fees - Level 4,520,04/04/2019,1904-00366,0.00,200.00,R,Ae Bia Assessments Limited,No
Http://opendatacommunities.org/id/metropolitan-district-council/leeds,Leeds City Council,30/04/2019,Adults and Health,Services For Adults Under 65 Mental/Dis,Third Party Payments,Fees - Level 4,520,05/04/2019,1904-00367,0.00,243.86,R,Ae Bia Assessments Limited,No
Http://opendatacommunities.org/id/metropolitan-district-council/leeds,Leeds City Council,30/04/2019,Adults and Health,Services For Adults Under 65 Mental/Dis,Third Party Payments,Fees - Level 4,520,12/04/2019,1904-00368,0.00,246.44,R,Ae Bia Assessments Limited,No
Http://opendatacommunities.org/id/metropolitan-district-council/leeds,Leeds City Council,30/04/2019,City Development,Asset Management Services,Supplies and Services,Consultancy Services,259,26/04/2019,1904-00369,0.00,16678.62,R,Aecom Limited,No
Http://opendatacommunities.org/id/metropolitan-district-council/leeds,Leeds City Council,30/04/2019,Adults and Health,Services For Adults Under 65 Mental/Dis,Third Party Payments,Home Care,568,09/04/2019,1904-00370,0.00,504.00,R,Aegis Care Solutions Ltd,No
Http://opendatacommunities.org/id/metropolitan-district-council/leeds,Leeds City Council,30/04/2019,City Development,Asset Management Services,Supplies and Services,Consultancy Services,259,05/04/2019,1904-00371,0.00,800.00,R,Aerial Republic Limited,No
Http://opendatacommunities.org/id/metropolitan-district-council/leeds,Leeds City Council,30/04/2019,Children and Families,Social Care,Support Services,Legal Disbursements,411,18/04/2019,1904-00372,0.00,861.96,R,Afd Medical Services,No
Http://opendatacommunities.org/id/metropolitan-district-council/leeds,Leeds City Council as Accountable Body,30/04/2019,Social Services Pooled Budgets,Jcs For People With Learning Disabilitie,Third Party Payments,Home Care,568,02/04/2019,1904-00373,0.00,62.78,R,Affinity Trust,No
Http://opendatacommunities.org/id/metropolitan-district-council/leeds,Leeds City Council,30/04/2019,Adults and Health,Services For Older People - 65 And Over,Third Party Payments,HCAIT Community Support,575,09/04/2019,1904-00374,0.00,255.68,R,Affinity Trust,No
Http://opendatacommunities.org/id/metropolitan-district-council/leeds,Leeds City Council,30/04/2019,Adults and Health,Services For Older People Under 65 P/Dis,Third Party Payments,Home Care,568,09/04/2019,1904-00375,0.00,814.98,R,Affinity Trust,No
Http://opendatacommunities.org/id/metropolitan-district-council/leeds,Leeds City Council as Accountable Body,30/04/2019,Social Services Pooled Budgets,Jcs For People With Learning Disabilitie,Third Party Payments,Home Care,568,09/04/2019,1904-00376,0.00,479.40,R,Affinity Trust,No
Http://opendatacommunities.org/id/metropolitan-district-council/leeds,Leeds City Council as Accountable Body,30/04/2019,Social Services Pooled Budgets,Jcs For People With Learning Disabilitie,Third Party Payments,Home Care,568,10/04/2019,1904-00377,0.00,463.42,R,Affinity Trust,No
Http://opendatacommunities.org/id/metropolitan-district-council/leeds,Leeds City Council,30/04/2019,Adults and Health,Services For Older People - 65 And Over,Third Party Payments,Home Care,568,17/04/2019,1904-00378,0.00,-0.02,R,Affinity Trust,No
Http://opendatacommunities.org/id/metropolitan-district-council/leeds,Leeds City Council as Accountable Body,30/04/2019,Social Services Pooled Budgets,Jcs For People With Learning Disabilitie,Third Party Payments,Home Care,568,17/04/2019,1904-00379,0.00,239.72,R,Affinity Trust,No
Http://opendatacommunities.org/id/metropolitan-district-council/leeds,Leeds City Council as Accountable Body,30/04/2019,Social Services Pooled Budgets,Jcs For People With Learning Disabilitie,Third Party Payments,Home Care,568,18/04/2019,1904-00380,0.00,727.09,R,Affinity Trust,No
Http://opendatacommunities.org/id/metropolitan-district-council/leeds,Leeds City Council as Accountable Body,30/04/2019,Social Services Pooled Budgets,Jcs For People With Learning Disabilitie,Third Party Payments,Home Care,568,18/04/2019,1904-00381,0.00,1342.32,R,Affinity Trust,No
Http://opendatacommunities.org/id/metropolitan-district-council/leeds,Leeds City Council as Accountable Body,30/04/2019,Social Services Pooled Budgets,Jcs For People With Learning Disabilitie,Third Party Payments,Home Care,568,18/04/2019,1904-00382,0.00,287.64,R,Affinity Trust,No
Http://opendatacommunities.org/id/metropolitan-district-council/leeds,Leeds City Council as Accountable Body,30/04/2019,Social Services Pooled Budgets,Jcs For People With Learning Disabilitie,Third Party Payments,Day Centre,564,18/04/2019,1904-00383,0.00,416.64,R,Affinity Trust,No
Http://opendatacommunities.org/id/metropolitan-district-council/leeds,Leeds City Council as Accountable Body,30/04/2019,Social Services Pooled Budgets,Jcs For People With Learning Disabilitie,Third Party Payments,Home Care,568,18/04/2019,1904-00384,0.00,1138.50,R,Affinity Trust,No
Http://opendatacommunities.org/id/metropolitan-district-council/leeds,Leeds City Council as Accountable Body,30/04/2019,Social Services Pooled Budgets,Jcs For People With Learning Disabilitie,Third Party Payments,Home Care,568,18/04/2019,1904-00385,0.00,1211.04,R,Affinity Trust,No
Http://opendatacommunities.org/id/metropolitan-district-council/leeds,Leeds City Council as Accountable Body,30/04/2019,Social Services Pooled Budgets,Jcs For People With Learning Disabilitie,Third Party Payments,Home Care,568,18/04/2019,1904-00386,0.00,639.20,R,Affinity Trust,No
Http://opendatacommunities.org/id/metropolitan-district-council/leeds,Leeds City Council as Accountable Body,30/04/2019,Social Services Pooled Budgets,Jcs For People With Learning Disabilitie,Third Party Payments,Home Care,568,18/04/2019,1904-00387,0.00,639.20,R,Affinity Trust,No
Http://opendatacommunities.org/id/metropolitan-district-council/leeds,Leeds City Council as Accountable Body,30/04/2019,Social Services Pooled Budgets,Jcs For People With Learning Disabilitie,Third Party Payments,Home Care,568,18/04/2019,1904-00388,0.00,408.00,R,Affinity Trust,No
Http://opendatacommunities.org/id/metropolitan-district-council/leeds,Leeds City Council as Accountable Body,30/04/2019,Social Services Pooled Budgets,Jcs For People With Learning Disabilitie,Third Party Payments,Home Care,568,18/04/2019,1904-00389,0.00,1086.64,R,Affinity Trust,No
Http://opendatacommunities.org/id/metropolitan-district-council/leeds,Leeds City Council as Accountable Body,30/04/2019,Social Services Pooled Budgets,Jcs For People With Learning Disabilitie,Third Party Payments,Home Care,568,18/04/2019,1904-00390,0.00,102.16,R,Affinity Trust,No
Http://opendatacommunities.org/id/metropolitan-district-council/leeds,Leeds City Council as Accountable Body,30/04/2019,Social Services Pooled Budgets,Jcs For People With Learning Disabilitie,Third Party Payments,Home Care,568,18/04/2019,1904-00391,0.00,941.92,R,Affinity Trust,No
Http://opendatacommunities.org/id/metropolitan-district-council/leeds,Leeds City Council as Accountable Body,30/04/2019,Social Services Pooled Budgets,Jcs For People With Learning Disabilitie,Third Party Payments,Home Care,568,18/04/2019,1904-00392,0.00,799.00,R,Affinity Trust,No
Http://opendatacommunities.org/id/metropolitan-district-council/leeds,Leeds City Council as Accountable Body,30/04/2019,Social Services Pooled Budgets,Jcs For People With Learning Disabilitie,Third Party Payments,Home Care,568,18/04/2019,1904-00393,0.00,511.36,R,Affinity Trust,No
Http://opendatacommunities.org/id/metropolitan-district-council/leeds,Leeds City Council as Accountable Body,30/04/2019,Social Services Pooled Budgets,Jcs For People With Learning Disabilitie,Third Party Payments,Home Care,568,18/04/2019,1904-00394,0.00,639.20,R,Affinity Trust,No
Http://opendatacommunities.org/id/metropolitan-district-council/leeds,Leeds City Council as Accountable Body,30/04/2019,Social Services Pooled Budgets,Jcs For People With Learning Disabilitie,Third Party Payments,Home Care,568,18/04/2019,1904-00395,0.00,255.68,R,Affinity Trust,No
Http://opendatacommunities.org/id/metropolitan-district-council/leeds,Leeds City Council as Accountable Body,30/04/2019,Social Services Pooled Budgets,Jcs For People With Learning Disabilitie,Third Party Payments,Home Care,568,18/04/2019,1904-00396,0.00,922.85,R,Affinity Trust,No
Http://opendatacommunities.org/id/metropolitan-district-council/leeds,Leeds City Council as Accountable Body,30/04/2019,Social Services Pooled Budgets,Jcs For People With Learning Disabilitie,Third Party Payments,Home Care,568,18/04/2019,1904-00397,0.00,319.60,R,Affinity Trust,No
Http://opendatacommunities.org/id/metropolitan-district-council/leeds,Leeds City Council as Accountable Body,30/04/2019,Social Services Pooled Budgets,Jcs For People With Learning Disabilitie,Third Party Payments,Day Centre,564,18/04/2019,1904-00398,0.00,255.68,R,Affinity Trust,No
Http://opendatacommunities.org/id/metropolitan-district-council/leeds,Leeds City Council as Accountable Body,30/04/2019,Social Services Pooled Budgets,Jcs For People With Learning Disabilitie,Third Party Payments,Home Care,568,18/04/2019,1904-00399,0.00,239.70,R,Affinity Trust,No
Http://opendatacommunities.org/id/metropolitan-district-council/leeds,Leeds City Council,30/04/2019,Adults and Health,Assessment And Care Management,Third Party Payments,Home Care,568,18/04/2019,1904-00400,0.00,511.36,R,Affinity Trust,No
Http://opendatacommunities.org/id/metropolitan-district-council/leeds,Leeds City Council,30/04/2019,Adults and Health,Services For Older People Under 65 P/Dis,Third Party Payments,Home Care,568,18/04/2019,1904-00401,0.00,933.51,R,Affinity Trust,No
Http://opendatacommunities.org/id/metropolitan-district-council/leeds,Leeds City Council,30/04/2019,Adults and Health,Services For Older People - 65 And Over,Third Party Payments,Home Care,568,18/04/2019,1904-00402,0.00,511.36,R,Affinity Trust,No
Http://opendatacommunities.org/id/metropolitan-district-council/leeds,Leeds City Council as Accountable Body,30/04/2019,Social Services Pooled Budgets,Jcs For People With Learning Disabilitie,Third Party Payments,Home Care,568,18/04/2019,1904-00403,0.00,639.20,R,Affinity Trust,No
Http://opendatacommunities.org/id/metropolitan-district-council/leeds,Leeds City Council,30/04/2019,Adults and Health,Services For Older People - 65 And Over,Third Party Payments,HCAIT Community Support,575,18/04/2019,1904-00404,0.00,399.50,R,Affinity Trust,No
Http://opendatacommunities.org/id/metropolitan-district-council/leeds,Leeds City Council,30/04/2019,Adults and Health,Services For Older People Under 65 P/Dis,Third Party Payments,Home Care,568,18/04/2019,1904-00405,0.00,958.80,R,Affinity Trust,No
Http://opendatacommunities.org/id/metropolitan-district-council/leeds,Leeds City Council as Accountable Body,30/04/2019,Social Services Pooled Budgets,Jcs For People With Learning Disabilitie,Third Party Payments,Home Care,568,18/04/2019,1904-00406,0.00,175.78,R,Affinity Trust,No
Http://opendatacommunities.org/id/metropolitan-district-council/leeds,Leeds City Council as Accountable Body,30/04/2019,Social Services Pooled Budgets,Jcs For People With Learning Disabilitie,Third Party Payments,Home Care,568,18/04/2019,1904-00407,0.00,2141.32,R,Affinity Trust,No
Http://opendatacommunities.org/id/metropolitan-district-council/leeds,Leeds City Council as Accountable Body,30/04/2019,Social Services Pooled Budgets,Jcs For People With Learning Disabilitie,Third Party Payments,Day Centre,564,26/04/2019,1904-00408,0.00,1440.00,R,Affinity Trust,No
Http://opendatacommunities.org/id/metropolitan-district-council/leeds,Leeds City Council as Accountable Body,30/04/2019,Social Services Pooled Budgets,Jcs For People With Learning Disabilitie,Third Party Payments,Day Centre,564,26/04/2019,1904-00409,0.00,1021.32,R,Affinity Trust,No
Http://opendatacommunities.org/id/metropolitan-district-council/leeds,Leeds City Council as Accountable Body,30/04/2019,Social Services Pooled Budgets,Jcs For People With Learning Disabilitie,Third Party Payments,Home Care,568,26/04/2019,1904-00410,0.00,1800.00,R,Affinity Trust,No
Http://opendatacommunities.org/id/metropolitan-district-council/leeds,Leeds City Council as Accountable Body,30/04/2019,Social Services Pooled Budgets,Jcs For People With Learning Disabilitie,Third Party Payments,Home Care,568,26/04/2019,1904-00411,0.00,675.00,R,Affinity Trust,No
Http://opendatacommunities.org/id/metropolitan-district-council/leeds,Leeds City Council as Accountable Body,30/04/2019,Social Services Pooled Budgets,Jcs For People With Learning Disabilitie,Third Party Payments,Home Care,568,26/04/2019,1904-00412,0.00,1560.00,R,Affinity Trust,No
Http://opendatacommunities.org/id/metropolitan-district-council/leeds,Leeds City Council as Accountable Body,30/04/2019,Social Services Pooled Budgets,Jcs For People With Learning Disabilitie,Third Party Payments,Home Care,568,26/04/2019,1904-00413,0.00,2752.80,R,Affinity Trust,No
Http://opendatacommunities.org/id/metropolitan-district-council/leeds,Leeds City Council as Accountable Body,30/04/2019,Social Services Pooled Budgets,Jcs For People With Learning Disabilitie,Third Party Payments,Home Care,568,26/04/2019,1904-00414,0.00,1951.35,R,Affinity Trust,No
Http://opendatacommunities.org/id/metropolitan-district-council/leeds,Leeds City Council as Accountable Body,30/04/2019,Social Services Pooled Budgets,Jcs For People With Learning Disabilitie,Third Party Payments,Home Care,568,26/04/2019,1904-00415,0.00,1065.33,R,Affinity Trust,No
Http://opendatacommunities.org/id/metropolitan-district-council/leeds,Leeds City Council as Accountable Body,30/04/2019,Social Services Pooled Budgets,Jcs For People With Learning Disabilitie,Third Party Payments,Home Care,568,26/04/2019,1904-00416,0.00,3336.76,R,Affinity Trust,No
Http://opendatacommunities.org/id/metropolitan-district-council/leeds,Leeds City Council as Accountable Body,30/04/2019,Social Services Pooled Budgets,Jcs For People With Learning Disabilitie,Third Party Payments,Day Centre,564,26/04/2019,1904-00417,0.00,402.24,R,Affinity Trust,No
Http://opendatacommunities.org/id/metropolitan-district-council/leeds,Leeds City Council as Accountable Body,30/04/2019,Social Services Pooled Budgets,Jcs For People With Learning Disabilitie,Third Party Payments,Home Care,568,26/04/2019,1904-00418,0.00,525.72,R,Affinity Trust,No
Http://opendatacommunities.org/id/metropolitan-district-council/leeds,Leeds City Council as Accountable Body,30/04/2019,Social Services Pooled Budgets,Jcs For People With Learning Disabilitie,Third Party Payments,Day Centre,564,26/04/2019,1904-00419,0.00,2149.92,R,Affinity Trust,No
Http://opendatacommunities.org/id/metropolitan-district-council/leeds,Leeds City Council as Accountable Body,30/04/2019,Social Services Pooled Budgets,Jcs For People With Learning Disabilitie,Third Party Payments,Home Care,568,26/04/2019,1904-00420,0.00,804.48,R,Affinity Trust,No
Http://opendatacommunities.org/id/metropolitan-district-council/leeds,Leeds City Council as Accountable Body,30/04/2019,Social Services Pooled Budgets,Jcs For People With Learning Disabilitie,Third Party Payments,Home Care,568,26/04/2019,1904-00421,0.00,1504.72,R,Affinity Trust,No
Http://opendatacommunities.org/id/metropolitan-district-council/leeds,Leeds City Council as Accountable Body,30/04/2019,Social Services Pooled Budgets,Jcs For People With Learning Disabilitie,Third Party Payments,Home Care,568,26/04/2019,1904-00422,0.00,1800.00,R,Affinity Trust,No
Http://opendatacommunities.org/id/metropolitan-district-council/leeds,Leeds City Council as Accountable Body,30/04/2019,Social Services Pooled Budgets,Jcs For People With Learning Disabilitie,Third Party Payments,Home Care,568,26/04/2019,1904-00423,0.00,1005.60,R,Affinity Trust,No
Http://opendatacommunities.org/id/metropolitan-district-council/leeds,Leeds City Council as Accountable Body,30/04/2019,Social Services Pooled Budgets,Jcs For People With Learning Disabilitie,Third Party Payments,Home Care,568,26/04/2019,1904-00424,0.00,360.00,R,Affinity Trust,No
Http://opendatacommunities.org/id/metropolitan-district-council/leeds,Leeds City Council as Accountable Body,30/04/2019,Social Services Pooled Budgets,Jcs For People With Learning Disabilitie,Third Party Payments,Day Centre,564,26/04/2019,1904-00425,0.00,648.95,R,Affinity Trust,No
Http://opendatacommunities.org/id/metropolitan-district-council/leeds,Leeds City Council as Accountable Body,30/04/2019,Social Services Pooled Budgets,Jcs For People With Learning Disabilitie,Third Party Payments,Day Centre,564,26/04/2019,1904-00426,0.00,2346.40,R,Affinity Trust,No
Http://opendatacommunities.org/id/metropolitan-district-council/leeds,Leeds City Council as Accountable Body,30/04/2019,Social Services Pooled Budgets,Jcs For People With Learning Disabilitie,Third Party Payments,Day Centre,564,26/04/2019,1904-00427,0.00,1322.64,R,Affinity Trust,No
Http://opendatacommunities.org/id/metropolitan-district-council/leeds,Leeds City Council as Accountable Body,30/04/2019,Social Services Pooled Budgets,Jcs For People With Learning Disabilitie,Third Party Payments,Day Centre,564,26/04/2019,1904-00428,0.00,2031.48,R,Affinity Trust,No
Http://opendatacommunities.org/id/metropolitan-district-council/leeds,Leeds City Council as Accountable Body,30/04/2019,Social Services Pooled Budgets,Jcs For People With Learning Disabilitie,Third Party Payments,Home Care,568,26/04/2019,1904-00429,0.00,1280.73,R,Affinity Trust,No
Http://opendatacommunities.org/id/metropolitan-district-council/leeds,Leeds City Council as Accountable Body,30/04/2019,Social Services Pooled Budgets,Jcs For People With Learning Disabilitie,Transfer Payments,Personal Budgets,627,26/04/2019,1904-00430,0.00,747.69,R,Affinity Trust,No
Http://opendatacommunities.org/id/metropolitan-district-council/leeds,Leeds City Council,30/04/2019,Adults and Health,Services For Older People Under 65 P/Dis,Third Party Payments,Home Care,568,26/04/2019,1904-00431,0.00,526.68,R,Affinity Trust,No
Http://opendatacommunities.org/id/metropolitan-district-council/leeds,Leeds City Council as Accountable Body,30/04/2019,Social Services Pooled Budgets,Jcs For People With Learning Disabilitie,Third Party Payments,Sheltered Accommodation,569,03/04/2019,1904-00432,0.00,132461.44,R,Affinity Trust North Divisional Office,No
Http://opendatacommunities.org/id/metropolitan-district-council/leeds,Leeds City Council,30/04/2019,Communities and Environment,Parks And Countryside  ,Transport,External Hire -Occasional,304,18/03/2019,1904-00433,0.00,950.00,R,Afi Uplift,Yes
Http://opendatacommunities.org/id/metropolitan-district-council/leeds,Leeds City Council,30/04/2019,Communities and Environment,Parks And Countryside  ,Transport,External Hire -Occasional,304,18/03/2019,1904-00434,0.00,950.00,R,Afi Uplift,Yes
Http://opendatacommunities.org/id/metropolitan-district-council/leeds,Leeds City Council,30/04/2019,Communities and Environment,Parks And Countryside  ,Transport,External Hire -Occasional,304,18/03/2019,1904-00435,0.00,950.00,R,Afi Uplift,Yes
Http://opendatacommunities.org/id/metropolitan-district-council/leeds,Leeds City Council,30/04/2019,Communities and Environment,Parks And Countryside  ,Transport,External Hire -Occasional,304,18/03/2019,1904-00436,0.00,950.00,R,Afi Uplift,Yes
Http://opendatacommunities.org/id/metropolitan-district-council/leeds,Leeds City Council,30/04/2019,Adults and Health,Services For Older People - 65 And Over,Third Party Payments,Payments To Voluntary Organisations,561,01/04/2019,1904-00437,0.00,10599.75,R,Age Uk Leeds,No
Http://opendatacommunities.org/id/metropolitan-district-council/leeds,Leeds City Council,30/04/2019,City Development,Recreation,Supplies and Services,Other Hired And Contracted Services,265,18/04/2019,1904-00438,0.00,2710.06,R,Age Uk Leeds,No
Http://opendatacommunities.org/id/metropolitan-district-council/leeds,Leeds City Council,30/04/2019,City Development,Highways,Capital,Construction,3,26/04/2019,1904-00439,0.00,260639.33,C,Aggregate Industries Uk Ltd,No
Http://opendatacommunities.org/id/metropolitan-district-council/leeds,Leeds City Council,30/04/2019,City Development,Economic Development,Supplies and Services,Other Hired And Contracted Services,265,26/04/2019,1904-00440,0.00,15000.00,R,Ahead Partnership Ltd,No
Http://opendatacommunities.org/id/metropolitan-district-council/leeds,Leeds City Council,30/04/2019,Resources and Housing,Strategic Housing Partnership & Support,Supplies and Services,Other Hired And Contracted Services,265,10/04/2019,1904-00441,0.00,797.81,R,REDACTED PERSONAL DATA,No
Http://opendatacommunities.org/id/metropolitan-district-council/leeds,Leeds City Council,30/04/2019,Children and Families,Learning,Supplies and Services,Teaching Materials,202,03/04/2019,1904-00442,0.00,48.52,R,Aid Training & Operations Ltd,No
Http://opendatacommunities.org/id/metropolitan-district-council/leeds,Leeds City Council,30/04/2019,Children and Families,Learning,Supplies and Services,Teaching Materials,202,03/04/2019,1904-00443,0.00,41.02,R,Aid Training & Operations Ltd,No
Http://opendatacommunities.org/id/metropolitan-district-council/leeds,Leeds City Council,30/04/2019,City Development,Recreation,Income,Sporting & Other Recreational Fees,928,17/04/2019,1904-00444,0.00,24.95,R,REDACTED PERSONAL DATA,No
Http://opendatacommunities.org/id/metropolitan-district-council/leeds,Leeds City Council as Accountable Body,30/04/2019,Social Services Pooled Budgets,Leeds Community Equip Store Pooled Budgt,Supplies and Services,Other Equipment,203,03/04/2019,1904-00445,0.00,2652.90,R,Aidapt Bathrooms Ltd,No
Http://opendatacommunities.org/id/metropolitan-district-council/leeds,Leeds City Council as Accountable Body,30/04/2019,Social Services Pooled Budgets,Leeds Community Equip Store Pooled Budgt,Supplies and Services,Other Equipment,203,03/04/2019,1904-00446,0.00,1274.50,R,Aidapt Bathrooms Ltd,No
Http://opendatacommunities.org/id/metropolitan-district-council/leeds,Leeds City Council as Accountable Body,30/04/2019,Social Services Pooled Budgets,Leeds Community Equip Store Pooled Budgt,Supplies and Services,Other Equipment,203,10/04/2019,1904-00447,0.00,256.50,R,Aidapt Bathrooms Ltd,No
Http://opendatacommunities.org/id/metropolitan-district-council/leeds,Leeds City Council as Accountable Body,30/04/2019,Social Services Pooled Budgets,Leeds Community Equip Store Pooled Budgt,Supplies and Services,Other Equipment,203,15/04/2019,1904-00448,0.00,824.55,R,Aidapt Bathrooms Ltd,No
Http://opendatacommunities.org/id/metropolitan-district-council/leeds,Leeds City Council as Accountable Body,30/04/2019,Social Services Pooled Budgets,Leeds Community Equip Store Pooled Budgt,Supplies and Services,Other Equipment,203,15/04/2019,1904-00449,0.00,622.50,R,Aidapt Bathrooms Ltd,No
Http://opendatacommunities.org/id/metropolitan-district-council/leeds,Leeds City Council as Accountable Body,30/04/2019,Social Services Pooled Budgets,Leeds Community Equip Store Pooled Budgt,Supplies and Services,Other Equipment,203,24/04/2019,1904-00450,0.00,2399.70,R,Aidapt Bathrooms Ltd,No
Http://opendatacommunities.org/id/metropolitan-district-council/leeds,Leeds City Council as Accountable Body,30/04/2019,Social Services Pooled Budgets,Leeds Community Equip Store Pooled Budgt,Supplies and Services,Other Equipment,203,30/04/2019,1904-00451,0.00,1967.70,R,Aidapt Bathrooms Ltd,No
Http://opendatacommunities.org/id/metropolitan-district-council/leeds,Leeds City Council as Accountable Body,30/04/2019,Social Services Pooled Budgets,Leeds Community Equip Store Pooled Budgt,Supplies and Services,Other Equipment,203,30/04/2019,1904-00452,0.00,1099.40,R,Aidapt Bathrooms Ltd,No
Http://opendatacommunities.org/id/metropolitan-district-council/leeds,Leeds City Council as Accountable Body,30/04/2019,Social Services Pooled Budgets,Leeds Community Equip Store Pooled Budgt,Supplies and Services,Other Equipment,203,30/04/2019,1904-00453,0.00,1099.40,R,Aidapt Bathrooms Ltd,No
Http://opendatacommunities.org/id/metropolitan-district-council/leeds,Leeds City Council,30/04/2019,Children and Families,Partnerships & Health,Supplies and Services,Conference Meetings,253,25/04/2019,1904-00454,0.00,660.00,R,Aim Project,No
Http://opendatacommunities.org/id/metropolitan-district-council/leeds,Leeds City Council,30/04/2019,Children and Families,Learning,Supplies and Services,Conference Meetings,253,26/04/2019,1904-00455,0.00,280.00,R,Aim Project,No
Http://opendatacommunities.org/id/metropolitan-district-council/leeds,Leeds City Council,30/04/2019,City Development,Libraries  Arts & Heritage,Supplies and Services,Other Hired And Contracted Services,265,12/04/2019,1904-00456,0.00,790.00,R,Aimee Grundell,No
Http://opendatacommunities.org/id/metropolitan-district-council/leeds,Leeds City Council,30/04/2019,Resources and Housing,Leeds Building Services,Supplies and Services,Operational Materials,205,25/04/2019,1904-00457,0.00,406.38,R,Air Conditioning Accessories,No
Http://opendatacommunities.org/id/metropolitan-district-council/leeds,Leeds City Council,30/04/2019,Resources and Housing,Leeds Building Services,Supplies and Services,Operational Materials,205,01/04/2019,1904-00458,0.00,182.58,R,Air Liquide Uk,No
Http://opendatacommunities.org/id/metropolitan-district-council/leeds,Leeds City Council,30/04/2019,Resources and Housing,Leeds Building Services,Supplies and Services,Operational Materials,205,02/04/2019,1904-00459,0.00,154.98,R,Air Liquide Uk,No
Http://opendatacommunities.org/id/metropolitan-district-council/leeds,Leeds City Council,30/04/2019,Resources and Housing,Leeds Building Services,Supplies and Services,Operational Materials,205,04/04/2019,1904-00460,0.00,251.21,R,Air Liquide Uk,No
Http://opendatacommunities.org/id/metropolitan-district-council/leeds,Leeds City Council,30/04/2019,Children and Families,Social Care  ,Third Party Payments,Placement Support,550,21/03/2019,1904-00461,0.00,348.93,R,Airbnb,Yes
Http://opendatacommunities.org/id/metropolitan-district-council/leeds,Leeds City Council,30/04/2019,Children and Families,Social Care  ,Third Party Payments,Placement Support,550,22/03/2019,1904-00462,0.00,84.87,R,Airbnb,Yes
Http://opendatacommunities.org/id/metropolitan-district-council/leeds,Leeds City Council,30/04/2019,Adults and Health,Services For Older People - 65 And Over,Third Party Payments,Residential Care Dementia,571,03/04/2019,1904-00463,0.00,51447.15,R,Aire View Residential Home,No
Http://opendatacommunities.org/id/metropolitan-district-council/leeds,Leeds City Council,30/04/2019,Adults and Health,Services For Older People - 65 And Over,Third Party Payments,Residential,580,03/04/2019,1904-00464,0.00,11551.96,R,Aire View Residential Home,No
Http://opendatacommunities.org/id/metropolitan-district-council/leeds,Leeds City Council,30/04/2019,Resources and Housing,Human Resources,Employees,Occupational Health,85,05/04/2019,1904-00465,0.00,109.50,R,Aireborough Family Practice,No
Http://opendatacommunities.org/id/metropolitan-district-council/leeds,Leeds City Council,30/04/2019,Children and Families,Social Care,Third Party Payments,Services Rendered By Voluntary Sector,505,16/04/2019,1904-00466,0.00,27161.00,R,Aireborough Supported Activities Scheme,No
Http://opendatacommunities.org/id/metropolitan-district-council/leeds,Leeds City Council,30/04/2019,Children and Families,Social Care,Third Party Payments,Services Rendered By Voluntary Sector,505,16/04/2019,1904-00467,0.00,27161.00,R,Aireborough Supported Activities Scheme,No
Http://opendatacommunities.org/id/metropolitan-district-council/leeds,Leeds City Council,30/04/2019,Communities and Environment,Communities,Supplies and Services,'Well Being' Large Grants Projects,230,30/04/2019,1904-00468,0.00,1756.00,R,Aireborough Supported Activities Scheme,No
Http://opendatacommunities.org/id/metropolitan-district-council/leeds,Leeds City Council,30/04/2019,Adults and Health,Services For Older People - 65 And Over,Third Party Payments,Residential Care Dementia,571,03/04/2019,1904-00469,0.00,17.12,R,Airedale Care Home,No
Http://opendatacommunities.org/id/metropolitan-district-council/leeds,Leeds City Council,30/04/2019,Adults and Health,Services For Older People - 65 And Over,Third Party Payments,Residential,580,03/04/2019,1904-00470,0.00,16536.10,R,Airedale Care Home,No
Http://opendatacommunities.org/id/metropolitan-district-council/leeds,Leeds City Council,30/04/2019,Resources and Housing,Commercial Services,Supplies and Services,Operational Furniture And Equipment,203,08/04/2019,1904-00471,0.00,1755.00,R,Airedale Catering Equipment Ltd,No
Http://opendatacommunities.org/id/metropolitan-district-council/leeds,Leeds City Council,30/04/2019,Resources and Housing,Commercial Services,Supplies and Services,Operational Furniture And Equipment,203,18/04/2019,1904-00472,0.00,4746.00,R,Airedale Catering Equipment Ltd,No
Http://opendatacommunities.org/id/metropolitan-district-council/leeds,Leeds City Council,30/04/2019,Adults and Health,Assessment And Care Management,Employees,Training Costs,71,15/04/2019,1904-00473,0.00,120.00,R,Airedale Community Trading (Act) Ltd,No
Http://opendatacommunities.org/id/metropolitan-district-council/leeds,Leeds City Council,30/04/2019,Resources and Housing,Commercial Services,Supplies and Services,Other Hired And Contracted Services,265,04/04/2019,1904-00474,0.00,195.00,R,Air-Weigh Europe Limited,No
Http://opendatacommunities.org/id/metropolitan-district-council/leeds,Leeds City Council,30/04/2019,Resources and Housing,Commercial Services,Supplies and Services,Other Hired And Contracted Services,265,09/04/2019,1904-00475,0.00,195.00,R,Air-Weigh Europe Limited,No
Http://opendatacommunities.org/id/metropolitan-district-council/leeds,Leeds City Council,30/04/2019,Adults and Health,Services For Adults Under 65 Mental/Dis,Third Party Payments,Fees - Level 4,520,01/04/2019,1904-00476,0.00,175.00,R,Ait Mitra Limited,No
Http://opendatacommunities.org/id/metropolitan-district-council/leeds,Leeds City Council,30/04/2019,Adults and Health,Services For Adults Under 65 Mental/Dis,Third Party Payments,Fees - Level 4,520,11/04/2019,1904-00477,0.00,230.90,R,Ait Mitra Limited,No
Http://opendatacommunities.org/id/metropolitan-district-council/leeds,Leeds City Council,30/04/2019,Adults and Health,Services For Adults Under 65 Mental/Dis,Third Party Payments,Fees - Level 4,520,11/04/2019,1904-00478,0.00,230.90,R,Ait Mitra Limited,No
Http://opendatacommunities.org/id/metropolitan-district-council/leeds,Leeds City Council,30/04/2019,Adults and Health,Services For Adults Under 65 Mental/Dis,Third Party Payments,Fees - Level 4,520,11/04/2019,1904-00479,0.00,175.00,R,Ait Mitra Limited,No
Http://opendatacommunities.org/id/metropolitan-district-council/leeds,Leeds City Council,30/04/2019,Adults and Health,Services For Adults Under 65 Mental/Dis,Third Party Payments,Fees - Level 4,520,11/04/2019,1904-00480,0.00,175.00,R,Ait Mitra Limited,No
Http://opendatacommunities.org/id/metropolitan-district-council/leeds,Leeds City Council,30/04/2019,Adults and Health,Services For Adults Under 65 Mental/Dis,Third Party Payments,Fees - Level 4,520,18/04/2019,1904-00481,0.00,175.00,R,Ait Mitra Limited,No
Http://opendatacommunities.org/id/metropolitan-district-council/leeds,Leeds City Council,30/04/2019,Adults and Health,Services For Adults Under 65 Mental/Dis,Third Party Payments,Fees - Level 4,520,18/04/2019,1904-00482,0.00,175.00,R,Ait Mitra Limited,No
Http://opendatacommunities.org/id/metropolitan-district-council/leeds,Leeds City Council,30/04/2019,Adults and Health,Services For Adults Under 65 Mental/Dis,Third Party Payments,Fees - Level 4,520,18/04/2019,1904-00483,0.00,175.00,R,Ait Mitra Limited,No
Http://opendatacommunities.org/id/metropolitan-district-council/leeds,Leeds City Council,30/04/2019,Adults and Health,Services For Adults Under 65 Mental/Dis,Third Party Payments,Fees - Level 4,520,18/04/2019,1904-00484,0.00,175.00,R,Ait Mitra Limited,No
Http://opendatacommunities.org/id/metropolitan-district-council/leeds,Leeds City Council,30/04/2019,Adults and Health,Services For Adults Under 65 Mental/Dis,Third Party Payments,Fees - Level 4,520,18/04/2019,1904-00485,0.00,175.00,R,Ait Mitra Limited,No
Http://opendatacommunities.org/id/metropolitan-district-council/leeds,Leeds City Council,30/04/2019,Adults and Health,Services For Adults Under 65 Mental/Dis,Third Party Payments,Fees - Level 4,520,18/04/2019,1904-00486,0.00,175.00,R,Ait Mitra Limited,No
Http://opendatacommunities.org/id/metropolitan-district-council/leeds,Leeds City Council,30/04/2019,Adults and Health,Services For Adults Under 65 Mental/Dis,Third Party Payments,Fees - Level 4,520,18/04/2019,1904-00487,0.00,175.00,R,Ait Mitra Limited,No
Http://opendatacommunities.org/id/metropolitan-district-council/leeds,Leeds City Council as Accountable Body,30/04/2019,Social Services Pooled Budgets,Jcs For People With Learning Disabilitie,Third Party Payments,Residential,580,03/04/2019,1904-00488,0.00,6173.24,R,Aitch Care Homes,No
Http://opendatacommunities.org/id/metropolitan-district-council/leeds,Leeds City Council,30/04/2019,Communities and Environment,Parks and Countryside,Supplies and Services,Operational Materials,205,18/04/2019,1904-00489,0.00,87.00,R,Aitkens Sportsturf Ltd,No
Http://opendatacommunities.org/id/metropolitan-district-council/leeds,Leeds City Council,30/04/2019,Communities and Environment,Parks and Countryside,Supplies and Services,Operational Materials,205,24/04/2019,1904-00490,0.00,442.95,R,Aitkens Sportsturf Ltd,No
Http://opendatacommunities.org/id/metropolitan-district-council/leeds,Leeds City Council,30/04/2019,Communities and Environment,Parks and Countryside,Supplies and Services,Operational Materials,205,24/04/2019,1904-00491,0.00,199.00,R,Aitkens Sportsturf Ltd,No
Http://opendatacommunities.org/id/metropolitan-district-council/leeds,Leeds City Council,30/04/2019,City Development,Recreation,Supplies and Services,Operational Furniture And Equipment,203,26/04/2019,1904-00492,0.00,678.00,R,Aj Products (Uk) Ltd,No
Http://opendatacommunities.org/id/metropolitan-district-council/leeds,Leeds City Council,30/04/2019,Resources and Housing,Leeds Building Services,Supplies and Services,Operational Furniture And Equipment,203,03/04/2019,1904-00493,0.00,2565.82,R,Ajm Fixings & Power Tools Ltd,No
Http://opendatacommunities.org/id/metropolitan-district-council/leeds,Leeds City Council,30/04/2019,Resources and Housing,Leeds Building Services,Supplies and Services,Stores - Central And Other Depots,005,10/04/2019,1904-00494,0.00,64.50,R,Ajm Fixings & Power Tools Ltd,No
Http://opendatacommunities.org/id/metropolitan-district-council/leeds,Leeds City Council,30/04/2019,Resources and Housing,Leeds Building Services,Supplies and Services,Operational Furniture And Equipment,203,18/04/2019,1904-00495,0.00,14983.81,R,Ajm Fixings & Power Tools Ltd,No
Http://opendatacommunities.org/id/metropolitan-district-council/leeds,Leeds City Council,30/04/2019,Resources and Housing,Leeds Building Services,Supplies and Services,Operational Furniture And Equipment,203,23/04/2019,1904-00496,0.00,79.71,R,Ajm Fixings & Power Tools Ltd,No
Http://opendatacommunities.org/id/metropolitan-district-council/leeds,Leeds City Council,30/04/2019,Resources and Housing,Leeds Building Services,Supplies and Services,Operational Furniture And Equipment,203,23/04/2019,1904-00497,0.00,988.00,R,Ajm Fixings & Power Tools Ltd,No
Http://opendatacommunities.org/id/metropolitan-district-council/leeds,Leeds City Council,30/04/2019,Resources and Housing,Leeds Building Services,Supplies and Services,Operational Furniture And Equipment,203,23/04/2019,1904-00498,0.00,275.40,R,Ajm Fixings & Power Tools Ltd,No
Http://opendatacommunities.org/id/metropolitan-district-council/leeds,Leeds City Council,30/04/2019,Resources and Housing,Leeds Building Services,Supplies and Services,Operational Furniture And Equipment,203,23/04/2019,1904-00499,0.00,136.40,R,Ajm Fixings & Power Tools Ltd,No
Http://opendatacommunities.org/id/metropolitan-district-council/leeds,Leeds City Council,30/04/2019,Resources and Housing,Leeds Building Services,Supplies and Services,Operational Materials,205,23/04/2019,1904-00500,0.00,335.00,R,Ajm Fixings & Power Tools Ltd,No
Http://opendatacommunities.org/id/metropolitan-district-council/leeds,Leeds City Council,30/04/2019,Resources and Housing,Leeds Building Services,Supplies and Services,Operational Materials,205,23/04/2019,1904-00501,0.00,298.35,R,Ajm Fixings & Power Tools Ltd,No
Http://opendatacommunities.org/id/metropolitan-district-council/leeds,Leeds City Council,30/04/2019,Resources and Housing,Leeds Building Services,Supplies and Services,Operational Materials,205,24/04/2019,1904-00502,0.00,156.00,R,Ajm Fixings & Power Tools Ltd,No
Http://opendatacommunities.org/id/metropolitan-district-council/leeds,Leeds City Council,30/04/2019,Resources and Housing,Leeds Building Services,Supplies and Services,Stores - Central And Other Depots,005,24/04/2019,1904-00503,0.00,705.70,R,Ajm Fixings & Power Tools Ltd,No
Http://opendatacommunities.org/id/metropolitan-district-council/leeds,Leeds City Council,30/04/2019,Resources and Housing,Leeds Building Services,Supplies and Services,Operational Furniture And Equipment,203,30/04/2019,1904-00504,0.00,499.00,R,Ajm Fixings & Power Tools Ltd,No
Http://opendatacommunities.org/id/metropolitan-district-council/leeds,Leeds City Council,30/04/2019,Resources and Housing,Commercial Services,Premises,Plant and Machinery,102,04/04/2019,1904-00505,0.00,87.50,R,Akua Uk Ltd,No
Http://opendatacommunities.org/id/metropolitan-district-council/leeds,Leeds City Council,30/04/2019,Resources and Housing,Commercial Services,Premises,Plant and Machinery,102,04/04/2019,1904-00506,0.00,181.20,R,Akua Uk Ltd,No
Http://opendatacommunities.org/id/metropolitan-district-council/leeds,Leeds City Council,30/04/2019,Resources and Housing,HRA Housing Leeds,Capital,Construction,3,15/04/2019,1904-00507,0.00,2549.87,C,Akw Medicare Ltd,No
Http://opendatacommunities.org/id/metropolitan-district-council/leeds,Leeds City Council,30/04/2019,City Development,Libraries  Arts & Heritage  ,Supplies and Services,Operational Materials,205,15/03/2019,1904-00508,0.00,141.07,R,Akzonobel,Yes
Http://opendatacommunities.org/id/metropolitan-district-council/leeds,Leeds City Council,30/04/2019,Adults and Health,Services For Older People - 65 And Over,Third Party Payments,Payments To Voluntary Organisations,561,01/04/2019,1904-00509,0.00,3000.00,R,Al Khidmat Centre,No
Http://opendatacommunities.org/id/metropolitan-district-council/leeds,Leeds City Council,30/04/2019,Children and Families,Social Care  ,Transfer Payments,Leaving Care Grants,635,11/03/2019,1904-00510,0.00,76.86,R,Al Murad,Yes
Http://opendatacommunities.org/id/metropolitan-district-council/leeds,Leeds City Council,30/04/2019,Children and Families,Social Care  ,Transfer Payments,Leaving Care Grants,635,11/03/2019,1904-00511,0.00,94.00,R,Al Murad,Yes
Http://opendatacommunities.org/id/metropolitan-district-council/leeds,Leeds City Council,30/04/2019,Children and Families,Social Care  ,Transfer Payments,Leaving Care Grants,635,18/03/2019,1904-00512,0.00,11.99,R,Al Murad,Yes
Http://opendatacommunities.org/id/metropolitan-district-council/leeds,Leeds City Council,30/04/2019,Children and Families,Social Care  ,Transfer Payments,Leaving Care Grants,635,18/03/2019,1904-00513,0.00,9.99,R,Al Murad,Yes
Http://opendatacommunities.org/id/metropolitan-district-council/leeds,Leeds City Council,30/04/2019,Children and Families,Learning,Supplies and Services,Bought In Professional Services,277,02/04/2019,1904-00514,0.00,500.00,R,Alan Pergusey,No
Http://opendatacommunities.org/id/metropolitan-district-council/leeds,Leeds City Council,30/04/2019,Children and Families,Social Care,Support Services,Legal Disbursements,411,24/04/2019,1904-00515,0.00,94.50,R,Alan Phipps,No
Http://opendatacommunities.org/id/metropolitan-district-council/leeds,Leeds City Council,30/04/2019,Children and Families,Social Care,Third Party Payments,Services Rendered By Other Organisations,511,05/04/2019,1904-00516,0.00,838.50,R,REDACTED PERSONAL DATA,No
Http://opendatacommunities.org/id/metropolitan-district-council/leeds,Leeds City Council,30/04/2019,Adults and Health,Services For Older People - 65 And Over,Third Party Payments,Residential Care Dementia,571,03/04/2019,1904-00517,0.00,1069.03,R,Albemarle,No
Http://opendatacommunities.org/id/metropolitan-district-council/leeds,Leeds City Council,30/04/2019,Communities and Environment,Car Parking Services,Income,Penalties  Fines & Car Parking Charges,934,24/04/2019,1904-00518,0.00,9.00,R,REDACTED PERSONAL DATA,No
Http://opendatacommunities.org/id/metropolitan-district-council/leeds,Leeds City Council as Accountable Body,30/04/2019,Social Services Pooled Budgets,Leeds Community Equip Store Pooled Budgt,Supplies and Services,Other Equipment,203,05/04/2019,1904-00519,0.00,647.50,R,Albion Electric Stores Ltd,No
Http://opendatacommunities.org/id/metropolitan-district-council/leeds,Leeds City Council,30/04/2019,Communities and Environment,Communities,Supplies and Services,Other Hired And Contracted Services,265,02/04/2019,1904-00520,0.00,1075.00,R,Alcium Software Ltd,No
Http://opendatacommunities.org/id/metropolitan-district-council/leeds,Leeds City Council,30/04/2019,Communities and Environment,Communities,Supplies and Services,Computer Software & Equipment,214,23/04/2019,1904-00521,0.00,1075.00,R,Alcium Software Ltd,No
Http://opendatacommunities.org/id/metropolitan-district-council/leeds,Leeds City Council,30/04/2019,Communities and Environment,Customer Access  ,Supplies and Services,Office Furniture & Equipment,201,06/03/2019,1904-00522,0.00,14.02,R,Aldi,Yes
Http://opendatacommunities.org/id/metropolitan-district-council/leeds,Leeds City Council,30/04/2019,Children and Families,Social Care  ,Third Party Payments,Contact,548,14/03/2019,1904-00523,0.00,11.20,R,Aldi 103 779,Yes
Http://opendatacommunities.org/id/metropolitan-district-council/leeds,Leeds City Council,30/04/2019,Children and Families,Social Care  ,Supplies and Services,Food & Drink,231,02/03/2019,1904-00524,0.00,6.15,R,Aldi 40 779,Yes
Http://opendatacommunities.org/id/metropolitan-district-council/leeds,Leeds City Council,30/04/2019,Children and Families,Social Care  ,Supplies and Services,Food & Drink,231,09/03/2019,1904-00525,0.00,3.82,R,Aldi 40 779,Yes
Http://opendatacommunities.org/id/metropolitan-district-council/leeds,Leeds City Council,30/04/2019,Children and Families,Social Care  ,Supplies and Services,Food & Drink,231,15/03/2019,1904-00526,0.00,19.77,R,Aldi 40 779,Yes
Http://opendatacommunities.org/id/metropolitan-district-council/leeds,Leeds City Council,30/04/2019,Children and Families,Social Care  ,Transfer Payments,Leaving Care Allowances,634,06/03/2019,1904-00527,0.00,65.75,R,Aldi 71 779,Yes
Http://opendatacommunities.org/id/metropolitan-district-council/leeds,Leeds City Council,30/04/2019,Children and Families,Social Care  ,Transfer Payments,Leaving Care Allowances,634,14/03/2019,1904-00528,0.00,5.16,R,Aldi 71 779,Yes
Http://opendatacommunities.org/id/metropolitan-district-council/leeds,Leeds City Council,30/04/2019,Children and Families,Social Care  ,Supplies and Services,Food & Drink,231,05/03/2019,1904-00529,0.00,17.15,R,Aldi 85 779,Yes
Http://opendatacommunities.org/id/metropolitan-district-council/leeds,Leeds City Council,30/04/2019,Communities and Environment,Customer Access,Supplies and Services,Other Hired And Contracted Services,265,04/04/2019,1904-00530,0.00,145.50,R,Alena Zueva,No
Http://opendatacommunities.org/id/metropolitan-district-council/leeds,Leeds City Council,30/04/2019,Communities and Environment,Customer Access,Supplies and Services,Bought In Professional Services,277,29/04/2019,1904-00531,0.00,1056.05,R,Alena Zueva,No
Http://opendatacommunities.org/id/metropolitan-district-council/leeds,Leeds City Council,30/04/2019,Children and Families,Social Care,Support Services,Legal Disbursements,411,02/04/2019,1904-00532,0.00,131.75,R,Alere Toxicology Plc,No
Http://opendatacommunities.org/id/metropolitan-district-council/leeds,Leeds City Council,30/04/2019,Children and Families,Social Care,Support Services,Legal Disbursements,411,04/04/2019,1904-00533,0.00,77.75,R,Alere Toxicology Plc,No
Http://opendatacommunities.org/id/metropolitan-district-council/leeds,Leeds City Council,30/04/2019,Children and Families,Social Care,Support Services,Legal Disbursements,411,05/04/2019,1904-00534,0.00,77.75,R,Alere Toxicology Plc,No
Http://opendatacommunities.org/id/metropolitan-district-council/leeds,Leeds City Council,30/04/2019,Children and Families,Social Care,Support Services,Legal Disbursements,411,05/04/2019,1904-00535,0.00,103.68,R,Alere Toxicology Plc,No
Http://opendatacommunities.org/id/metropolitan-district-council/leeds,Leeds City Council,30/04/2019,Children and Families,Social Care,Support Services,Legal Disbursements,411,11/04/2019,1904-00536,0.00,77.75,R,Alere Toxicology Plc,No
Http://opendatacommunities.org/id/metropolitan-district-council/leeds,Leeds City Council,30/04/2019,Resources and Housing,Commercial Services,Transport,Vehicle Spares,345,03/04/2019,1904-00537,0.00,385.00,R,Alex Wagg,No
Http://opendatacommunities.org/id/metropolitan-district-council/leeds,Leeds City Council,30/04/2019,Resources and Housing,Commercial Services,Transport,Vehicle Spares,345,03/04/2019,1904-00538,0.00,745.00,R,Alex Wagg,No
Http://opendatacommunities.org/id/metropolitan-district-council/leeds,Leeds City Council,30/04/2019,Resources and Housing,Commercial Services,Supplies and Services,Other Hired And Contracted Services,265,03/04/2019,1904-00539,0.00,500.00,R,Alex Wagg,No
Http://opendatacommunities.org/id/metropolitan-district-council/leeds,Leeds City Council,30/04/2019,Resources and Housing,Commercial Services,Supplies and Services,Other Hired And Contracted Services,265,17/04/2019,1904-00540,0.00,60.00,R,Alex Wagg,No
Http://opendatacommunities.org/id/metropolitan-district-council/leeds,Leeds City Council,30/04/2019,Resources and Housing,Commercial Services,Supplies and Services,Other Hired And Contracted Services,265,17/04/2019,1904-00541,0.00,120.00,R,Alex Wagg,No
Http://opendatacommunities.org/id/metropolitan-district-council/leeds,Leeds City Council,30/04/2019,Resources and Housing,Commercial Services,Supplies and Services,Other Hired And Contracted Services,265,17/04/2019,1904-00542,0.00,240.00,R,Alex Wagg,No
Http://opendatacommunities.org/id/metropolitan-district-council/leeds,Leeds City Council,30/04/2019,Resources and Housing,Commercial Services,Transport,Vehicle Spares,345,17/04/2019,1904-00543,0.00,380.00,R,Alex Wagg,No
Http://opendatacommunities.org/id/metropolitan-district-council/leeds,Leeds City Council,30/04/2019,Resources and Housing,Commercial Services,Supplies and Services,Other Hired And Contracted Services,265,24/04/2019,1904-00544,0.00,320.00,R,Alex Wagg,No
Http://opendatacommunities.org/id/metropolitan-district-council/leeds,Leeds City Council,30/04/2019,Adults and Health,Services For Older People - 65 And Over,Third Party Payments,Residential Care Dementia,571,03/04/2019,1904-00545,0.00,37248.27,R,Alexander Residential Home,No
Http://opendatacommunities.org/id/metropolitan-district-council/leeds,Leeds City Council,30/04/2019,Adults and Health,Services For Older People - 65 And Over,Third Party Payments,Residential,580,03/04/2019,1904-00546,0.00,25662.34,R,Alexander Residential Home,No
Http://opendatacommunities.org/id/metropolitan-district-council/leeds,Leeds City Council,30/04/2019,Communities and Environment,Customer Access,Supplies and Services,Other Hired And Contracted Services,265,04/04/2019,1904-00547,0.00,166.50,R,Alexandra Costenco,No
Http://opendatacommunities.org/id/metropolitan-district-council/leeds,Leeds City Council,30/04/2019,Communities and Environment,Customer Access,Supplies and Services,Bought In Professional Services,277,29/04/2019,1904-00548,0.00,270.00,R,Alexandra Costenco,No
Http://opendatacommunities.org/id/metropolitan-district-council/leeds,Leeds City Council,30/04/2019,Adults and Health,Services For Older People - 65 And Over,Third Party Payments,Residential,580,03/04/2019,1904-00549,0.00,8236.41,R,Alexandra Court,No
Http://opendatacommunities.org/id/metropolitan-district-council/leeds,Leeds City Council,30/04/2019,Communities and Environment,Customer Access,Supplies and Services,Bought In Professional Services,277,29/04/2019,1904-00550,0.00,258.00,R,Alexandra Hirst,No
Http://opendatacommunities.org/id/metropolitan-district-council/leeds,Leeds City Council,30/04/2019,Adults and Health,Home Care Services  ,Supplies and Services,Laundry Services,251,04/03/2019,1904-00551,0.00,710.50,R,Alexandra Website,Yes
Http://opendatacommunities.org/id/metropolitan-district-council/leeds,Leeds City Council,30/04/2019,Adults and Health,Home Care Services  ,Supplies and Services,Laundry Services,251,04/03/2019,1904-00552,0.00,14.50,R,Alexandra Website,Yes
Http://opendatacommunities.org/id/metropolitan-district-council/leeds,Leeds City Council,30/04/2019,Children and Families,Social Care  ,Supplies and Services,Clothing & Uniforms,241,12/03/2019,1904-00553,0.00,35.47,R,Alexandra Website,Yes
Http://opendatacommunities.org/id/metropolitan-district-council/leeds,Leeds City Council,30/04/2019,City Development,Libraries  Arts & Heritage,Supplies and Services,Other Hired And Contracted Services,265,08/04/2019,1904-00554,0.00,57.04,R,ALFONSO DIAZ SANCHEZ,No
Http://opendatacommunities.org/id/metropolitan-district-council/leeds,Leeds City Council,30/04/2019,Resources and Housing,Leeds Building Services,Supplies and Services,Other Hired And Contracted Services,265,05/04/2019,1904-00555,0.00,400.00,R,Alfred Bagnall & Sons (Leeds) Ltd,No
Http://opendatacommunities.org/id/metropolitan-district-council/leeds,Leeds City Council,30/04/2019,Resources and Housing,Leeds Building Services,Supplies and Services,Other Hired And Contracted Services,265,09/04/2019,1904-00556,0.00,1610.00,R,Alfred Bagnall & Sons (Leeds) Ltd,No
Http://opendatacommunities.org/id/metropolitan-district-council/leeds,Leeds City Council,30/04/2019,Resources and Housing,Leeds Building Services,Supplies and Services,Other Hired And Contracted Services,265,09/04/2019,1904-00557,0.00,7800.00,R,Alfred Bagnall & Sons (Leeds) Ltd,No
Http://opendatacommunities.org/id/metropolitan-district-council/leeds,Leeds City Council,30/04/2019,Resources and Housing,Leeds Building Services,Supplies and Services,Other Hired And Contracted Services,265,11/04/2019,1904-00558,0.00,5544.00,R,Alfred Bagnall & Sons (Leeds) Ltd,No
Http://opendatacommunities.org/id/metropolitan-district-council/leeds,Leeds City Council,30/04/2019,Communities and Environment,Customer Access,Supplies and Services,Other Hired And Contracted Services,265,11/04/2019,1904-00559,0.00,2210.00,R,Alfred Bagnall & Sons (Leeds) Ltd,No
Http://opendatacommunities.org/id/metropolitan-district-council/leeds,Leeds City Council,30/04/2019,Resources and Housing,Leeds Building Services,Supplies and Services,Other Hired And Contracted Services,265,11/04/2019,1904-00560,0.00,980.00,R,Alfred Bagnall & Sons (Leeds) Ltd,No
Http://opendatacommunities.org/id/metropolitan-district-council/leeds,Leeds City Council,30/04/2019,Resources and Housing,Leeds Building Services,Supplies and Services,Other Hired And Contracted Services,265,11/04/2019,1904-00561,0.00,660.00,R,Alfred Bagnall & Sons (Leeds) Ltd,No
Http://opendatacommunities.org/id/metropolitan-district-council/leeds,Leeds City Council,30/04/2019,Resources and Housing,Leeds Building Services,Supplies and Services,Other Hired And Contracted Services,265,15/04/2019,1904-00562,0.00,3200.00,R,Alfred Bagnall & Sons (Leeds) Ltd,No
Http://opendatacommunities.org/id/metropolitan-district-council/leeds,Leeds City Council,30/04/2019,Resources and Housing,Leeds Building Services,Supplies and Services,Other Hired And Contracted Services,265,15/04/2019,1904-00563,0.00,-3478.00,R,Alfred Bagnall & Sons (Leeds) Ltd,No
Http://opendatacommunities.org/id/metropolitan-district-council/leeds,Leeds City Council,30/04/2019,Resources and Housing,Corporate Property Management,Capital,Construction,3,15/04/2019,1904-00564,0.00,8946.41,C,Alfred Bagnall & Sons (Leeds) Ltd,No
Http://opendatacommunities.org/id/metropolitan-district-council/leeds,Leeds City Council,30/04/2019,Resources and Housing,Corporate Property Management,Capital,Construction,3,15/04/2019,1904-00565,0.00,5545.00,C,Alfred Bagnall & Sons (Leeds) Ltd,No
Http://opendatacommunities.org/id/metropolitan-district-council/leeds,Leeds City Council,30/04/2019,Resources and Housing,Corporate Property Management,Capital,Construction,3,15/04/2019,1904-00566,0.00,4893.00,C,Alfred Bagnall & Sons (Leeds) Ltd,No
Http://opendatacommunities.org/id/metropolitan-district-council/leeds,Leeds City Council,30/04/2019,Resources and Housing,Leeds Building Services,Supplies and Services,Other Hired And Contracted Services,265,26/04/2019,1904-00567,0.00,600.00,R,Alfred Bagnall & Sons (Leeds) Ltd,No
Http://opendatacommunities.org/id/metropolitan-district-council/leeds,Leeds City Council,30/04/2019,Resources and Housing,Leeds Building Services,Supplies and Services,Other Hired And Contracted Services,265,26/04/2019,1904-00568,0.00,800.00,R,Alfred Bagnall & Sons (Leeds) Ltd,No
Http://opendatacommunities.org/id/metropolitan-district-council/leeds,Leeds City Council,30/04/2019,Resources and Housing,Leeds Building Services,Supplies and Services,Other Hired And Contracted Services,265,26/04/2019,1904-00569,0.00,600.00,R,Alfred Bagnall & Sons (Leeds) Ltd,No
Http://opendatacommunities.org/id/metropolitan-district-council/leeds,Leeds City Council,30/04/2019,City Development,Recreation,Supplies and Services,Other Hired And Contracted Services,265,26/04/2019,1904-00570,0.00,8495.00,R,Alfred Bagnall & Sons (Leeds) Ltd,No
Http://opendatacommunities.org/id/metropolitan-district-council/leeds,Leeds City Council,30/04/2019,City Development,Recreation,Supplies and Services,Other Hired And Contracted Services,265,26/04/2019,1904-00571,0.00,3750.00,R,Alfred Bagnall & Sons (Leeds) Ltd,No
Http://opendatacommunities.org/id/metropolitan-district-council/leeds,Leeds City Council,30/04/2019,City Development,Recreation,Supplies and Services,Other Hired And Contracted Services,265,26/04/2019,1904-00572,0.00,1420.00,R,Alfred Bagnall & Sons (Leeds) Ltd,No
Http://opendatacommunities.org/id/metropolitan-district-council/leeds,Leeds City Council,30/04/2019,Resources and Housing,Leeds Building Services,Supplies and Services,Other Hired And Contracted Services,265,26/04/2019,1904-00573,0.00,3600.00,R,Alfred Bagnall & Sons (Leeds) Ltd,No
Http://opendatacommunities.org/id/metropolitan-district-council/leeds,Leeds City Council,30/04/2019,Resources and Housing,Leeds Building Services,Supplies and Services,Other Hired And Contracted Services,265,26/04/2019,1904-00574,0.00,290.00,R,Alfred Bagnall & Sons (Leeds) Ltd,No
Http://opendatacommunities.org/id/metropolitan-district-council/leeds,Leeds City Council,30/04/2019,Resources and Housing,Leeds Building Services,Supplies and Services,Other Hired And Contracted Services,265,29/04/2019,1904-00575,0.00,670.00,R,Alfred Bagnall & Sons (Leeds) Ltd,No
Http://opendatacommunities.org/id/metropolitan-district-council/leeds,Leeds City Council,30/04/2019,Resources and Housing,Leeds Building Services,Supplies and Services,Other Hired And Contracted Services,265,29/04/2019,1904-00576,0.00,540.00,R,Alfred Bagnall & Sons (Leeds) Ltd,No
Http://opendatacommunities.org/id/metropolitan-district-council/leeds,Leeds City Council,30/04/2019,Resources and Housing,Leeds Building Services,Supplies and Services,Other Hired And Contracted Services,265,29/04/2019,1904-00577,0.00,450.00,R,Alfred Bagnall & Sons (Leeds) Ltd,No
Http://opendatacommunities.org/id/metropolitan-district-council/leeds,Leeds City Council,30/04/2019,Resources and Housing,Leeds Building Services,Supplies and Services,Other Hired And Contracted Services,265,29/04/2019,1904-00578,0.00,200.00,R,Alfred Bagnall & Sons (Leeds) Ltd,No
Http://opendatacommunities.org/id/metropolitan-district-council/leeds,Leeds City Council,30/04/2019,Resources and Housing,Leeds Building Services,Supplies and Services,Other Hired And Contracted Services,265,29/04/2019,1904-00579,0.00,480.00,R,Alfred Bagnall & Sons (Leeds) Ltd,No
Http://opendatacommunities.org/id/metropolitan-district-council/leeds,Leeds City Council,30/04/2019,Resources and Housing,Leeds Building Services,Supplies and Services,Other Hired And Contracted Services,265,29/04/2019,1904-00580,0.00,850.00,R,Alfred Bagnall & Sons (Leeds) Ltd,No
Http://opendatacommunities.org/id/metropolitan-district-council/leeds,Leeds City Council,30/04/2019,Resources and Housing,Leeds Building Services,Supplies and Services,Other Hired And Contracted Services,265,29/04/2019,1904-00581,0.00,380.00,R,Alfred Bagnall & Sons (Leeds) Ltd,No
Http://opendatacommunities.org/id/metropolitan-district-council/leeds,Leeds City Council,30/04/2019,Communities and Environment,Customer Access,Supplies and Services,Other Hired And Contracted Services,265,04/04/2019,1904-00582,0.00,36.00,R,Ali Pourakaberian,No
Http://opendatacommunities.org/id/metropolitan-district-council/leeds,Leeds City Council,30/04/2019,Communities and Environment,Customer Access,Supplies and Services,Bought In Professional Services,277,29/04/2019,1904-00583,0.00,279.00,R,Ali Pourakaberian,No
Http://opendatacommunities.org/id/metropolitan-district-council/leeds,Leeds City Council,30/04/2019,Children and Families,Social Care,Third Party Payments,Services Rendered By Other Organisations,511,05/04/2019,1904-00584,0.00,167.70,R,REDACTED PERSONAL DATA,No
Http://opendatacommunities.org/id/metropolitan-district-council/leeds,Leeds City Council,30/04/2019,Resources and Housing,Leeds Building Services,Employees,Training & Development,70,16/04/2019,1904-00585,0.00,3085.00,R,Alistair Bromhead Limited,No
Http://opendatacommunities.org/id/metropolitan-district-council/leeds,Leeds City Council,30/04/2019,Resources and Housing,Leeds Building Services,Supplies and Services,Other Hired And Contracted Services,265,03/04/2019,1904-00586,0.00,195.00,R,All Clear Solutions Ltd,No
Http://opendatacommunities.org/id/metropolitan-district-council/leeds,Leeds City Council,30/04/2019,Resources and Housing,Leeds Building Services,Supplies and Services,Other Hired And Contracted Services,265,18/04/2019,1904-00587,0.00,195.00,R,All Clear Solutions Ltd,No
Http://opendatacommunities.org/id/metropolitan-district-council/leeds,Leeds City Council,30/04/2019,Resources and Housing,Leeds Building Services,Supplies and Services,Other Hired And Contracted Services,265,18/04/2019,1904-00588,0.00,195.00,R,All Clear Solutions Ltd,No
Http://opendatacommunities.org/id/metropolitan-district-council/leeds,Leeds City Council,30/04/2019,Resources and Housing,Leeds Building Services,Supplies and Services,Other Hired And Contracted Services,265,26/04/2019,1904-00589,0.00,195.00,R,All Clear Solutions Ltd,No
Http://opendatacommunities.org/id/metropolitan-district-council/leeds,Leeds City Council,30/04/2019,Resources and Housing,Leeds Building Services,Supplies and Services,Other Hired And Contracted Services,265,26/04/2019,1904-00590,0.00,195.00,R,All Clear Solutions Ltd,No
Http://opendatacommunities.org/id/metropolitan-district-council/leeds,Leeds City Council,30/04/2019,Children and Families,Social Care,Third Party Payments,Services Rendered By Other Organisations,511,03/04/2019,1904-00591,0.00,811.20,R,All Stars Childcare,No
Http://opendatacommunities.org/id/metropolitan-district-council/leeds,Leeds City Council,30/04/2019,Children and Families,Social Care,Third Party Payments,Services Rendered By Other Organisations,511,05/04/2019,1904-00592,0.00,7894.80,R,All Stars Childcare,No
Http://opendatacommunities.org/id/metropolitan-district-council/leeds,Leeds City Council as Accountable Body,30/04/2019,Social Services Pooled Budgets,Jcs For People With Learning Disabilitie,Third Party Payments,Sheltered Accommodation,569,03/04/2019,1904-00593,0.00,14853.48,R,Allerton Avenue,No
Http://opendatacommunities.org/id/metropolitan-district-council/leeds,Leeds City Council,30/04/2019,Children and Families,Social Care,Supplies and Services,Training Allowances,257,10/04/2019,1904-00594,0.00,60.00,R,Allerton Bywater Community Partnership,No
Http://opendatacommunities.org/id/metropolitan-district-council/leeds,Leeds City Council,30/04/2019,Strategic Accounts,Strategic,Supplies and Services,Non-Recurring Grants,227,02/04/2019,1904-00595,0.00,2010.00,R,Allerton Bywater Parish Council,No
Http://opendatacommunities.org/id/metropolitan-district-council/leeds,Leeds City Council,30/04/2019,Strategic Accounts,Strategic,Supplies and Services,Office Consumables,210,02/04/2019,1904-00596,0.00,39220.00,R,Allerton Bywater Parish Council,No
Http://opendatacommunities.org/id/metropolitan-district-council/leeds,Leeds City Council,30/04/2019,Communities and Environment,Communities,Supplies and Services,'Well Being' Large Grants Projects,230,24/04/2019,1904-00597,0.00,1000.00,R,Allerton Bywater Parish Council,No
Http://opendatacommunities.org/id/metropolitan-district-council/leeds,Leeds City Council,30/04/2019,Communities and Environment,Parks and Countryside,Supplies and Services,Non-Recurring Grants,227,24/04/2019,1904-00598,0.00,1000.00,R,Allerton Bywater Parish Council,No
Http://opendatacommunities.org/id/metropolitan-district-council/leeds,Leeds City Council,30/04/2019,Adults and Health,Services For Older People - 65 And Over,Third Party Payments,Nursing Care Dementia,574,03/04/2019,1904-00599,0.00,2094.28,R,Allerton Park N H,No
Http://opendatacommunities.org/id/metropolitan-district-council/leeds,Leeds City Council,30/04/2019,Communities and Environment,Parks and Countryside,Supplies and Services,Operational Materials,205,01/04/2019,1904-00600,0.00,124.50,R,Allflex Uk Group Ltd,No
Http://opendatacommunities.org/id/metropolitan-district-council/leeds,Leeds City Council,30/04/2019,Communities and Environment,Parks and Countryside,Supplies and Services,Operational Materials,205,04/04/2019,1904-00601,0.00,33.50,R,Allflex Uk Group Ltd,No
Http://opendatacommunities.org/id/metropolitan-district-council/leeds,Leeds City Council,30/04/2019,Resources and Housing,Finance,Supplies and Services,Bank Charges,263,01/04/2019,1904-00602,0.00,-60.77,R,Alliance & Leicester Commercial Bank,No
Http://opendatacommunities.org/id/metropolitan-district-council/leeds,Leeds City Council,30/04/2019,Resources and Housing,Finance,Supplies and Services,Bank Charges,263,04/04/2019,1904-00603,0.00,583.30,R,Alliance & Leicester Commercial Bank,No
Http://opendatacommunities.org/id/metropolitan-district-council/leeds,Leeds City Council,30/04/2019,Resources and Housing,Finance,Supplies and Services,Bank Charges,263,04/04/2019,1904-00604,0.00,100.00,R,Alliance & Leicester Commercial Bank,No
Http://opendatacommunities.org/id/metropolitan-district-council/leeds,Leeds City Council,30/04/2019,City Development,Recreation,Employees,Training & Development,70,17/04/2019,1904-00605,0.00,937.50,R,Alliance Leisure Service Ltd,No
Http://opendatacommunities.org/id/metropolitan-district-council/leeds,Leeds City Council,30/04/2019,City Development,Recreation,Supplies and Services,Advertising,211,26/04/2019,1904-00606,0.00,100.00,R,Alliance Leisure Service Ltd,No
Http://opendatacommunities.org/id/metropolitan-district-council/leeds,Leeds City Council,30/04/2019,City Development,Recreation,Supplies and Services,Printing,215,26/04/2019,1904-00607,0.00,729.00,R,Alliance Leisure Service Ltd,No
Http://opendatacommunities.org/id/metropolitan-district-council/leeds,Leeds City Council,30/04/2019,City Development,Recreation,Supplies and Services,Printing,215,26/04/2019,1904-00608,0.00,260.00,R,Alliance Leisure Service Ltd,No
Http://opendatacommunities.org/id/metropolitan-district-council/leeds,Leeds City Council,30/04/2019,City Development,Highways,Supplies and Services,Other Hired And Contracted Services,265,02/04/2019,1904-00609,0.00,400.00,R,Allied Exploration & Geotechnics Ltd,No
Http://opendatacommunities.org/id/metropolitan-district-council/leeds,Leeds City Council,30/04/2019,City Development,Highways,Supplies and Services,Other Hired And Contracted Services,265,02/04/2019,1904-00610,0.00,37739.34,R,Allied Exploration & Geotechnics Ltd,No
Http://opendatacommunities.org/id/metropolitan-district-council/leeds,Leeds City Council,30/04/2019,City Development,Highways,Supplies and Services,Other Hired And Contracted Services,265,09/04/2019,1904-00611,0.00,5111.25,R,Allied Exploration & Geotechnics Ltd,No
Http://opendatacommunities.org/id/metropolitan-district-council/leeds,Leeds City Council,30/04/2019,City Development,Highways,Supplies and Services,Other Hired And Contracted Services,265,11/04/2019,1904-00612,0.00,742.05,R,Allied Exploration & Geotechnics Ltd,No
Http://opendatacommunities.org/id/metropolitan-district-council/leeds,Leeds City Council as Accountable Body,30/04/2019,Social Services Pooled Budgets,Jcs For People With Learning Disabilitie,Third Party Payments,Home Care,568,02/04/2019,1904-00613,0.00,34.44,R,Allied Healthcare,No
Http://opendatacommunities.org/id/metropolitan-district-council/leeds,Leeds City Council as Accountable Body,30/04/2019,Social Services Pooled Budgets,Jcs For People With Learning Disabilitie,Third Party Payments,Home Care,568,02/04/2019,1904-00614,0.00,517.28,R,Allied Healthcare,No
Http://opendatacommunities.org/id/metropolitan-district-council/leeds,Leeds City Council as Accountable Body,30/04/2019,Social Services Pooled Budgets,Jcs For People With Learning Disabilitie,Third Party Payments,Home Care,568,10/04/2019,1904-00615,0.00,14023.28,R,Allied Healthcare,No
Http://opendatacommunities.org/id/metropolitan-district-council/leeds,Leeds City Council,30/04/2019,Adults and Health,Other Generic Services,Third Party Payments,Home Care,568,11/04/2019,1904-00616,0.00,10606.09,R,Allied Healthcare,No
Http://opendatacommunities.org/id/metropolitan-district-council/leeds,Leeds City Council,30/04/2019,Adults and Health,Other Generic Services,Third Party Payments,Home Care,568,11/04/2019,1904-00617,0.00,5040.41,R,Allied Healthcare,No
Http://opendatacommunities.org/id/metropolitan-district-council/leeds,Leeds City Council as Accountable Body,30/04/2019,Social Services Pooled Budgets,Jcs For People With Learning Disabilitie,Third Party Payments,Home Care,568,11/04/2019,1904-00618,0.00,227.50,R,Allied Healthcare,No
Http://opendatacommunities.org/id/metropolitan-district-council/leeds,Leeds City Council as Accountable Body,30/04/2019,Social Services Pooled Budgets,Jcs For People With Learning Disabilitie,Third Party Payments,Home Care,568,12/04/2019,1904-00619,0.00,15118.92,R,Allied Healthcare,No
Http://opendatacommunities.org/id/metropolitan-district-council/leeds,Leeds City Council as Accountable Body,30/04/2019,Social Services Pooled Budgets,Jcs For People With Learning Disabilitie,Third Party Payments,Home Care,568,16/04/2019,1904-00620,0.00,620.24,R,Allied Healthcare,No
Http://opendatacommunities.org/id/metropolitan-district-council/leeds,Leeds City Council as Accountable Body,30/04/2019,Social Services Pooled Budgets,Jcs For People With Learning Disabilitie,Third Party Payments,Home Care,568,16/04/2019,1904-00621,0.00,177.92,R,Allied Healthcare,No
Http://opendatacommunities.org/id/metropolitan-district-council/leeds,Leeds City Council,30/04/2019,Children and Families,Social Care,Third Party Payments,Services Rendered By Voluntary Sector,505,16/04/2019,1904-00622,0.00,684.00,R,Allied Healthcare,No
Http://opendatacommunities.org/id/metropolitan-district-council/leeds,Leeds City Council,30/04/2019,Adults and Health,Services For Older People - 65 And Over,Third Party Payments,Home Care,568,17/04/2019,1904-00623,0.00,8878.74,R,Allied Healthcare,No
Http://opendatacommunities.org/id/metropolitan-district-council/leeds,Leeds City Council,30/04/2019,Adults and Health,Services For Older People Under 65 P/Dis,Third Party Payments,Home Care,568,17/04/2019,1904-00624,0.00,631.54,R,Allied Healthcare,No
Http://opendatacommunities.org/id/metropolitan-district-council/leeds,Leeds City Council as Accountable Body,30/04/2019,Social Services Pooled Budgets,Jcs For People With Learning Disabilitie,Third Party Payments,Home Care,568,17/04/2019,1904-00625,0.00,191.44,R,Allied Healthcare,No
Http://opendatacommunities.org/id/metropolitan-district-council/leeds,Leeds City Council,30/04/2019,Communities and Environment,Customer Access,Supplies and Services,Other Hired And Contracted Services,265,17/04/2019,1904-00626,0.00,1017.17,R,Allied Publicity Services,No
Http://opendatacommunities.org/id/metropolitan-district-council/leeds,Leeds City Council,30/04/2019,Resources and Housing,Strategic Housing Partnership & Support  ,Supplies and Services,Other Hired And Contracted Services,265,05/03/2019,1904-00627,0.00,22.59,R,Allpay *robin Hood Energy,Yes
Http://opendatacommunities.org/id/metropolitan-district-council/leeds,Leeds City Council,30/04/2019,Resources and Housing,Strategic Housing Partnership & Support  ,Supplies and Services,Other Hired And Contracted Services,265,14/03/2019,1904-00628,0.00,50.00,R,Allpay *robin Hood Energy,Yes
Http://opendatacommunities.org/id/metropolitan-district-council/leeds,Leeds City Council,30/04/2019,Resources and Housing,Strategic Housing Partnership & Support  ,Supplies and Services,Subsistence,256,14/03/2019,1904-00629,0.00,44.60,R,Allpay *the Riverside Gro,Yes
Http://opendatacommunities.org/id/metropolitan-district-council/leeds,Leeds City Council,30/04/2019,Resources and Housing,Finance,Supplies and Services,Bank Charges,263,01/04/2019,1904-00630,0.00,302.54,R,Allpay Limted,No
Http://opendatacommunities.org/id/metropolitan-district-council/leeds,Leeds City Council,30/04/2019,Resources and Housing,Finance,Supplies and Services,Bank Charges,263,01/04/2019,1904-00631,0.00,4183.97,R,Allpay Limted,No
Http://opendatacommunities.org/id/metropolitan-district-council/leeds,Leeds City Council,30/04/2019,Resources and Housing,Finance,Supplies and Services,Bank Charges,263,01/04/2019,1904-00632,0.00,5486.35,R,Allpay Limted,No
Http://opendatacommunities.org/id/metropolitan-district-council/leeds,Leeds City Council,30/04/2019,Resources and Housing,Finance,Supplies and Services,Bank Charges,263,01/04/2019,1904-00633,0.00,2721.27,R,Allpay Limted,No
Http://opendatacommunities.org/id/metropolitan-district-council/leeds,Leeds City Council,30/04/2019,Resources and Housing,Finance,Supplies and Services,Bank Charges,263,01/04/2019,1904-00634,0.00,108.91,R,Allpay Limted,No
Http://opendatacommunities.org/id/metropolitan-district-council/leeds,Leeds City Council,30/04/2019,Resources and Housing,Finance,Supplies and Services,Bank Charges,263,01/04/2019,1904-00635,0.00,4.50,R,Allpay Limted,No
Http://opendatacommunities.org/id/metropolitan-district-council/leeds,Leeds City Council,30/04/2019,Strategic Landlord,Housing Management,Supplies and Services,Other Hired And Contracted Services,265,04/04/2019,1904-00636,0.00,375.89,R,Allpay Limted,No
Http://opendatacommunities.org/id/metropolitan-district-council/leeds,Leeds City Council,30/04/2019,Strategic Landlord,Housing Management,Supplies and Services,Other Hired And Contracted Services,265,04/04/2019,1904-00637,0.00,17.71,R,Allpay Limted,No
Http://opendatacommunities.org/id/metropolitan-district-council/leeds,Leeds City Council,30/04/2019,Strategic Landlord,Housing Management,Supplies and Services,Other Hired And Contracted Services,265,04/04/2019,1904-00638,0.00,0.38,R,Allpay Limted,No
Http://opendatacommunities.org/id/metropolitan-district-council/leeds,Leeds City Council,30/04/2019,Communities and Environment,Parks and Countryside,Transport,Fuel (Non LCC Supplies),321,08/04/2019,1904-00639,0.00,678.58,R,Allstar Business Solutions Ltd,No
Http://opendatacommunities.org/id/metropolitan-district-council/leeds,Leeds City Council,30/04/2019,City Development,Highways,Transport,Fuel (Non LCC Supplies),321,08/04/2019,1904-00640,0.00,112.02,R,Allstar Business Solutions Ltd,No
Http://opendatacommunities.org/id/metropolitan-district-council/leeds,Leeds City Council,30/04/2019,Resources and Housing,Leeds Building Services,Transport,Fuel (Non LCC Supplies),321,12/04/2019,1904-00641,0.00,123.49,R,Allstar Business Solutions Ltd,No
Http://opendatacommunities.org/id/metropolitan-district-council/leeds,Leeds City Council,30/04/2019,Resources and Housing,SP Contracts & SECC,Third Party Payments,Supporting Ppl - Block Gross Chargeable,514,12/04/2019,1904-00642,0.00,89.64,R,Alpha (Rsl) Limited,No
Http://opendatacommunities.org/id/metropolitan-district-council/leeds,Leeds City Council,30/04/2019,Children and Families,Social Care,Support Services,Legal Disbursements,411,05/04/2019,1904-00643,0.00,95.00,R,Alphabiolabs,No
Http://opendatacommunities.org/id/metropolitan-district-council/leeds,Leeds City Council,30/04/2019,Children and Families,Social Care,Support Services,Legal Disbursements,411,10/04/2019,1904-00644,0.00,645.00,R,Alphabiolabs,No
Http://opendatacommunities.org/id/metropolitan-district-council/leeds,Leeds City Council,30/04/2019,Children and Families,Social Care,Support Services,Legal Disbursements,411,12/04/2019,1904-00645,0.00,95.00,R,Alphabiolabs,No
Http://opendatacommunities.org/id/metropolitan-district-council/leeds,Leeds City Council,30/04/2019,Children and Families,Social Care,Support Services,Legal Disbursements,411,12/04/2019,1904-00646,0.00,106.25,R,Alphabiolabs,No
Http://opendatacommunities.org/id/metropolitan-district-council/leeds,Leeds City Council,30/04/2019,Children and Families,Social Care,Support Services,Legal Disbursements,411,12/04/2019,1904-00647,0.00,213.34,R,Alphabiolabs,No
Http://opendatacommunities.org/id/metropolitan-district-council/leeds,Leeds City Council,30/04/2019,Children and Families,Social Care,Support Services,Legal Disbursements,411,12/04/2019,1904-00648,0.00,212.25,R,Alphabiolabs,No
Http://opendatacommunities.org/id/metropolitan-district-council/leeds,Leeds City Council,30/04/2019,Children and Families,Social Care,Support Services,Legal Disbursements,411,18/04/2019,1904-00649,0.00,52.50,R,Alphabiolabs,No
Http://opendatacommunities.org/id/metropolitan-district-council/leeds,Leeds City Council,30/04/2019,Children and Families,Social Care,Support Services,Legal Disbursements,411,25/04/2019,1904-00650,0.00,929.00,R,Alphabiolabs,No
Http://opendatacommunities.org/id/metropolitan-district-council/leeds,Leeds City Council,30/04/2019,Children and Families,Social Care,Support Services,Legal Disbursements,411,26/04/2019,1904-00651,0.00,93.75,R,Alphabiolabs,No
Http://opendatacommunities.org/id/metropolitan-district-council/leeds,Leeds City Council,30/04/2019,Children and Families,Social Care,Support Services,Legal Disbursements,411,26/04/2019,1904-00652,0.00,83.40,R,Alphabiolabs,No
Http://opendatacommunities.org/id/metropolitan-district-council/leeds,Leeds City Council,30/04/2019,Children and Families,Social Care,Third Party Payments, Direct Work,549,26/04/2019,1904-00653,0.00,645.00,R,Alphabiolabs,No
Http://opendatacommunities.org/id/metropolitan-district-council/leeds,Leeds City Council,30/04/2019,Communities and Environment,Waste Management,Supplies and Services,Other Hired And Contracted Services,265,04/04/2019,1904-00654,0.00,291.00,R,Als Life Sciences Limited,No
Http://opendatacommunities.org/id/metropolitan-district-council/leeds,Leeds City Council,30/04/2019,Strategic Accounts,Strategic,Supplies and Services,Non-Recurring Grants,227,02/04/2019,1904-00655,0.00,777.00,R,Alwoodley Parish Council,No
Http://opendatacommunities.org/id/metropolitan-district-council/leeds,Leeds City Council,30/04/2019,Strategic Accounts,Strategic,Supplies and Services,Office Consumables,210,02/04/2019,1904-00656,0.00,51220.00,R,Alwoodley Parish Council,No
Http://opendatacommunities.org/id/metropolitan-district-council/leeds,Leeds City Council,30/04/2019,Communities and Environment,Communities,Supplies and Services,Other Hired And Contracted Services,265,02/04/2019,1904-00657,0.00,15.00,R,REDACTED PERSONAL DATA,No
Http://opendatacommunities.org/id/metropolitan-district-council/leeds,Leeds City Council,30/04/2019,Children and Families,Social Care,Third Party Payments,Services Rendered By Other Organisations,511,05/04/2019,1904-00658,0.00,447.20,R,REDACTED PERSONAL DATA,No
Http://opendatacommunities.org/id/metropolitan-district-council/leeds,Leeds City Council,30/04/2019,Children and Families,Social Care,Third Party Payments,Services Rendered By Other Organisations,511,05/04/2019,1904-00659,0.00,447.20,R,REDACTED PERSONAL DATA,No
Http://opendatacommunities.org/id/metropolitan-district-council/leeds,Leeds City Council,30/04/2019,City Development,Recreation,Supplies and Services,Bought In Professional Services,277,26/04/2019,1904-00660,0.00,80.00,R,REDACTED PERSONAL DATA,No
Http://opendatacommunities.org/id/metropolitan-district-council/leeds,Leeds City Council,30/04/2019,City Development,Recreation,Supplies and Services,Bought In Professional Services,277,26/04/2019,1904-00661,0.00,160.00,R,REDACTED PERSONAL DATA,No
Http://opendatacommunities.org/id/metropolitan-district-council/leeds,Leeds City Council,30/04/2019,City Development,Recreation,Supplies and Services,Bought In Professional Services,277,26/04/2019,1904-00662,0.00,100.00,R,REDACTED PERSONAL DATA,No
Http://opendatacommunities.org/id/metropolitan-district-council/leeds,Leeds City Council,30/04/2019,Children and Families,Social Care,Third Party Payments,Services Rendered By Other Organisations,511,05/04/2019,1904-00663,0.00,167.70,R,REDACTED PERSONAL DATA,No
Http://opendatacommunities.org/id/metropolitan-district-council/leeds,Leeds City Council,30/04/2019,Children and Families,Social Care,Third Party Payments,Allowances,546,05/04/2019,1904-00664,0.00,160.00,R,REDACTED PERSONAL DATA,No
Http://opendatacommunities.org/id/metropolitan-district-council/leeds,Leeds City Council,30/04/2019,Strategic Landlord,Housing Management,Supplies and Services,Compensation Claims,200,01/04/2019,1904-00665,0.00,500.00,R,REDACTED PERSONAL DATA,No
Http://opendatacommunities.org/id/metropolitan-district-council/leeds,Leeds City Council,30/04/2019,Children and Families,Social Care,Transport,Private Hire,360,12/04/2019,1904-00666,0.00,160.00,R,Amanda Walker,No
Http://opendatacommunities.org/id/metropolitan-district-council/leeds,Leeds City Council,30/04/2019,Children and Families,Social Care,Third Party Payments,Services Rendered By Other Organisations,511,05/04/2019,1904-00667,0.00,1006.20,R,REDACTED PERSONAL DATA,No
Http://opendatacommunities.org/id/metropolitan-district-council/leeds,Leeds City Council,30/04/2019,Children and Families,Social Care,Third Party Payments,Placement Support,550,12/04/2019,1904-00668,0.00,300.00,R,REDACTED PERSONAL DATA,No
Http://opendatacommunities.org/id/metropolitan-district-council/leeds,Leeds City Council,30/04/2019,Children and Families,Social Care,Transport,Public Transport Expenses,310,30/04/2019,1904-00669,0.00,12.90,R,REDACTED PERSONAL DATA,No
Http://opendatacommunities.org/id/metropolitan-district-council/leeds,Leeds City Council,30/04/2019,Children and Families,Social Care  ,Premises,Maintenance Of Buildings,101,06/03/2019,1904-00670,0.00,384.00,R,Amari Leeds,Yes
Http://opendatacommunities.org/id/metropolitan-district-council/leeds,Leeds City Council,30/04/2019,Resources and Housing,Shared Services,Supplies and Services,Operational Materials,205,12/04/2019,1904-00671,0.00,350.00,R,Amari Plastics Plc,No
Http://opendatacommunities.org/id/metropolitan-district-council/leeds,Leeds City Council,30/04/2019,Resources and Housing,Leeds Building Services,Supplies and Services,Operational Materials,205,16/04/2019,1904-00672,0.00,83.68,R,Amari Plastics Plc,No
Http://opendatacommunities.org/id/metropolitan-district-council/leeds,Leeds City Council,30/04/2019,Resources and Housing,Shared Services,Supplies and Services,Operational Materials,205,18/04/2019,1904-00673,0.00,389.85,R,Amari Plastics Plc,No
Http://opendatacommunities.org/id/metropolitan-district-council/leeds,Leeds City Council,30/04/2019,Resources and Housing,Leeds Building Services,Supplies and Services,Operational Materials,205,24/04/2019,1904-00674,0.00,170.00,R,Amari Plastics Plc,No
Http://opendatacommunities.org/id/metropolitan-district-council/leeds,Leeds City Council,30/04/2019,Resources and Housing,Shared Services,Supplies and Services,Operational Materials,205,26/04/2019,1904-00675,0.00,410.00,R,Amari Plastics Plc,No
Http://opendatacommunities.org/id/metropolitan-district-council/leeds,Leeds City Council,30/04/2019,Children and Families,Social Care,Third Party Payments,Services Rendered By Other Organisations,511,03/04/2019,1904-00676,0.00,2636.40,R,Amazing Grace Early Years Childcare,No
Http://opendatacommunities.org/id/metropolitan-district-council/leeds,Leeds City Council,30/04/2019,Children and Families,Social Care,Third Party Payments,Services Rendered By Other Organisations,511,05/04/2019,1904-00677,0.00,6875.70,R,Amazing Grace Early Years Childcare,No
Http://opendatacommunities.org/id/metropolitan-district-council/leeds,Leeds City Council,30/04/2019,City Development,Recreation,Supplies and Services,Operational Furniture And Equipment,203,11/04/2019,1904-00678,0.00,181.44,R,Amazon Leisure Uk Ltd,No
Http://opendatacommunities.org/id/metropolitan-district-council/leeds,Leeds City Council,30/04/2019,City Development,Recreation,Supplies and Services,Operational Furniture And Equipment,203,11/04/2019,1904-00679,0.00,361.62,R,Amazon Leisure Uk Ltd,No
Http://opendatacommunities.org/id/metropolitan-district-council/leeds,Leeds City Council,30/04/2019,City Development,Recreation,Supplies and Services,Operational Furniture And Equipment,203,18/04/2019,1904-00680,0.00,138.75,R,Amazon Leisure Uk Ltd,No
Http://opendatacommunities.org/id/metropolitan-district-council/leeds,Leeds City Council,30/04/2019,City Development,Recreation,Supplies and Services,Operational Furniture And Equipment,203,18/04/2019,1904-00681,0.00,141.43,R,Amazon Leisure Uk Ltd,No
Http://opendatacommunities.org/id/metropolitan-district-council/leeds,Leeds City Council,30/04/2019,City Development,Recreation,Supplies and Services,Operational Furniture And Equipment,203,18/04/2019,1904-00682,0.00,14.23,R,Amazon Leisure Uk Ltd,No
Http://opendatacommunities.org/id/metropolitan-district-council/leeds,Leeds City Council,30/04/2019,City Development,Recreation,Supplies and Services,Operational Furniture And Equipment,203,18/04/2019,1904-00683,0.00,309.66,R,Amazon Leisure Uk Ltd,No
Http://opendatacommunities.org/id/metropolitan-district-council/leeds,Leeds City Council,30/04/2019,City Development,Recreation,Supplies and Services,Operational Furniture And Equipment,203,30/04/2019,1904-00684,0.00,356.50,R,Amazon Leisure Uk Ltd,No
Http://opendatacommunities.org/id/metropolitan-district-council/leeds,Leeds City Council,30/04/2019,Children and Families,Social Care  ,Supplies and Services,General Amenity For Clients/Residents,285,28/02/2019,1904-00685,0.00,5.78,R,Amazon Mp3,Yes
Http://opendatacommunities.org/id/metropolitan-district-council/leeds,Leeds City Council,30/04/2019,Adults and Health,Services For Older People - 65 And Over  ,Premises,General Maintenance,104,04/03/2019,1904-00686,0.00,-7.99,R,Amazon Prime,Yes
Http://opendatacommunities.org/id/metropolitan-district-council/leeds,Leeds City Council,30/04/2019,Children and Families,Social Care  ,Third Party Payments,Placement Support,550,21/03/2019,1904-00687,0.00,-7.99,R,Amazon Prime,Yes
Http://opendatacommunities.org/id/metropolitan-district-council/leeds,Leeds City Council,30/04/2019,Children and Families,Social Care  ,Supplies and Services,Other Hired And Contracted Services,265,27/03/2019,1904-00688,0.00,-7.99,R,Amazon Prime,Yes
Http://opendatacommunities.org/id/metropolitan-district-council/leeds,Leeds City Council,30/04/2019,City Development,Libraries  Arts & Heritage  ,Supplies and Services,Operational Materials,205,09/03/2019,1904-00689,0.00,7.99,R,Amazon Prime*mw22q4ga4,Yes
Http://opendatacommunities.org/id/metropolitan-district-council/leeds,Leeds City Council,30/04/2019,Strategic Landlord,Housing Management  ,Supplies and Services,Office Furniture & Equipment,201,07/03/2019,1904-00690,0.00,6.66,R,Amazon Prime*mw2hp0094,Yes
Http://opendatacommunities.org/id/metropolitan-district-council/leeds,Leeds City Council,30/04/2019,Children and Families,Social Care  ,Third Party Payments,Placement Support,550,02/03/2019,1904-00691,0.00,7.99,R,Amazon Prime*mw2ou0ni4,Yes
Http://opendatacommunities.org/id/metropolitan-district-council/leeds,Leeds City Council,30/04/2019,Children and Families,Social Care  ,Supplies and Services,Other Hired And Contracted Services,265,23/03/2019,1904-00692,0.00,7.99,R,Amazon Prime*mw5uc1rz4,Yes
Http://opendatacommunities.org/id/metropolitan-district-council/leeds,Leeds City Council,30/04/2019,Communities and Environment,Parks And Countryside  ,Supplies and Services,Memberships,226,19/03/2019,1904-00693,0.00,7.99,R,Amazon Prime*mw6i02kl4,Yes
Http://opendatacommunities.org/id/metropolitan-district-council/leeds,Leeds City Council,30/04/2019,Communities and Environment,Environmental Action (City Centre)  ,Premises,General Maintenance,104,06/03/2019,1904-00694,0.00,6.66,R,Amazon Prime*mw7f27e74,Yes
Http://opendatacommunities.org/id/metropolitan-district-council/leeds,Leeds City Council,30/04/2019,City Development,Highways  ,Supplies and Services,Operational Furniture And Equipment,203,24/03/2019,1904-00695,0.00,6.66,R,Amazon Prime*mw7mh3wh4 Am,Yes
Http://opendatacommunities.org/id/metropolitan-district-council/leeds,Leeds City Council,30/04/2019,City Development,Markets & City Centre Management  ,Supplies and Services,Postages,212,18/03/2019,1904-00696,0.00,6.66,R,Amazon Prime*mw7wc32b4,Yes
Http://opendatacommunities.org/id/metropolitan-district-council/leeds,Leeds City Council,30/04/2019,Children and Families,Social Care  ,Supplies and Services,General Amenity For Clients/Residents,285,11/03/2019,1904-00697,0.00,7.99,R,Amazon Prime*mw8mo2vy4,Yes
Http://opendatacommunities.org/id/metropolitan-district-council/leeds,Leeds City Council,30/04/2019,Resources and Housing,Commercial Services  ,Supplies and Services,Operational Furniture And Equipment,203,27/03/2019,1904-00698,0.00,7.99,R,Amazon Prime*mz6863fx4 Am,Yes
Http://opendatacommunities.org/id/metropolitan-district-council/leeds,Leeds City Council,30/04/2019,Communities and Environment,Parks And Countryside  ,Supplies and Services,Operational Materials,205,13/03/2019,1904-00699,0.00,-26.37,R,Amazon.Co.Uk Amazon.Co.Uk,Yes
Http://opendatacommunities.org/id/metropolitan-district-council/leeds,Leeds City Council,30/04/2019,Strategic Landlord,Housing Management  ,Supplies and Services,Office Furniture & Equipment,201,20/03/2019,1904-00700,0.00,3.33,R,Amazon.Co.Uk*mw01j79r4,Yes
Http://opendatacommunities.org/id/metropolitan-district-council/leeds,Leeds City Council,30/04/2019,City Development,Libraries  Arts & Heritage  ,Supplies and Services,Operational Materials,205,06/03/2019,1904-00701,0.00,16.39,R,Amazon.Co.Uk*mw02j2ao4,Yes
Http://opendatacommunities.org/id/metropolitan-district-council/leeds,Leeds City Council,30/04/2019,Resources and Housing,Facilities Management  ,Supplies and Services,Operational Furniture And Equipment,203,12/03/2019,1904-00702,0.00,9.98,R,Amazon.Co.Uk*mw03g8574,Yes
Http://opendatacommunities.org/id/metropolitan-district-council/leeds,Leeds City Council,30/04/2019,Resources and Housing,Commercial Services  ,Supplies and Services,Operational Furniture And Equipment,203,19/03/2019,1904-00703,0.00,16.41,R,Amazon.Co.Uk*mw03k0ks4 Am,Yes
Http://opendatacommunities.org/id/metropolitan-district-council/leeds,Leeds City Council,30/04/2019,Communities and Environment,Parks And Countryside  ,Supplies and Services,Operational Furniture And Equipment,203,01/03/2019,1904-00704,0.00,37.49,R,Amazon.Co.Uk*mw08m9zn4 Am,Yes
Http://opendatacommunities.org/id/metropolitan-district-council/leeds,Leeds City Council,30/04/2019,Children and Families,Social Care  ,Supplies and Services,General Amenity For Clients/Residents,285,18/03/2019,1904-00705,0.00,35.94,R,Amazon.Co.Uk*mw0gd72e4 Am,Yes
Http://opendatacommunities.org/id/metropolitan-district-council/leeds,Leeds City Council,30/04/2019,City Development,Recreation  ,Supplies and Services,Operational Furniture And Equipment,203,01/03/2019,1904-00706,0.00,237.49,R,Amazon.Co.Uk*mw0gx4zg4,Yes
Http://opendatacommunities.org/id/metropolitan-district-council/leeds,Leeds City Council,30/04/2019,City Development,Libraries  Arts & Heritage  ,Supplies and Services,Office Consumables,210,08/03/2019,1904-00707,0.00,13.32,R,Amazon.Co.Uk*mw0if9g34,Yes
Http://opendatacommunities.org/id/metropolitan-district-council/leeds,Leeds City Council,30/04/2019,Children and Families,Social Care  ,Supplies and Services,Books & Audio-Visual Materials,206,10/03/2019,1904-00708,0.00,15.82,R,Amazon.Co.Uk*mw0iq9xl4,Yes
Http://opendatacommunities.org/id/metropolitan-district-council/leeds,Leeds City Council,30/04/2019,Children and Families,Social Care  ,Supplies and Services,Operational Furniture And Equipment,203,08/03/2019,1904-00709,0.00,12.06,R,Amazon.Co.Uk*mw0jv7p14,Yes
Http://opendatacommunities.org/id/metropolitan-district-council/leeds,Leeds City Council,30/04/2019,Adults and Health,Services For Older People - 65 And Over  ,Supplies and Services,Office Consumables,210,14/03/2019,1904-00710,0.00,113.22,R,Amazon.Co.Uk*mw0n338v4,Yes
Http://opendatacommunities.org/id/metropolitan-district-council/leeds,Leeds City Council,30/04/2019,Children and Families,Social Care  ,Supplies and Services,Clothing & Uniforms,241,05/03/2019,1904-00711,0.00,11.24,R,Amazon.Co.Uk*mw0oh7ap4 Am,Yes
Http://opendatacommunities.org/id/metropolitan-district-council/leeds,Leeds City Council,30/04/2019,Children and Families,Social Care  ,Supplies and Services,General Amenity For Clients/Residents,285,18/03/2019,1904-00712,0.00,65.88,R,Amazon.Co.Uk*mw0y382o4 Am,Yes
Http://opendatacommunities.org/id/metropolitan-district-council/leeds,Leeds City Council,30/04/2019,City Development,Libraries  Arts & Heritage  ,Supplies and Services,Computer Software & Equipment,214,11/03/2019,1904-00713,0.00,35.18,R,Amazon.Co.Uk*mw10i3vc4 Am,Yes
Http://opendatacommunities.org/id/metropolitan-district-council/leeds,Leeds City Council,30/04/2019,City Development,Employment & Skills  ,Supplies and Services,Operational Materials,205,20/03/2019,1904-00714,0.00,27.33,R,Amazon.Co.Uk*mw13e69v4 Am,Yes
Http://opendatacommunities.org/id/metropolitan-district-council/leeds,Leeds City Council,30/04/2019,Children and Families,Social Care  ,Supplies and Services,Teaching Furniture & Equipment,207,05/03/2019,1904-00715,0.00,22.92,R,Amazon.Co.Uk*mw15f6es4,Yes
Http://opendatacommunities.org/id/metropolitan-district-council/leeds,Leeds City Council,30/04/2019,Resources and Housing,Facilities Management  ,Supplies and Services,Operational Furniture And Equipment,203,05/03/2019,1904-00716,0.00,187.32,R,Amazon.Co.Uk*mw1ho4ea4 Am,Yes
Http://opendatacommunities.org/id/metropolitan-district-council/leeds,Leeds City Council,30/04/2019,Children and Families,Social Care  ,Supplies and Services,Teaching Furniture & Equipment,207,27/02/2019,1904-00717,0.00,19.92,R,Amazon.Co.Uk*mw1kn2fe4 Am,Yes
Http://opendatacommunities.org/id/metropolitan-district-council/leeds,Leeds City Council,30/04/2019,Resources and Housing,Human Resources  ,Employees,Best Value Training,70,04/03/2019,1904-00718,0.00,35.88,R,Amazon.Co.Uk*mw1l87t44,Yes
Http://opendatacommunities.org/id/metropolitan-district-council/leeds,Leeds City Council,30/04/2019,Children and Families,Social Care  ,Supplies and Services,Teaching Furniture & Equipment,207,05/03/2019,1904-00719,0.00,45.00,R,Amazon.Co.Uk*mw1sh4a24,Yes
Http://opendatacommunities.org/id/metropolitan-district-council/leeds,Leeds City Council,30/04/2019,Children and Families,Social Care  ,Supplies and Services,Teaching Materials,202,20/03/2019,1904-00720,0.00,35.01,R,Amazon.Co.Uk*mw1us3964,Yes
Http://opendatacommunities.org/id/metropolitan-district-council/leeds,Leeds City Council,30/04/2019,Communities and Environment,Parks And Countryside  ,Supplies and Services,Office Consumables,210,05/03/2019,1904-00721,0.00,18.79,R,Amazon.Co.Uk*mw20r1e34 Am,Yes
Http://opendatacommunities.org/id/metropolitan-district-council/leeds,Leeds City Council,30/04/2019,Children and Families,Social Care  ,Supplies and Services,Teaching Materials,202,06/03/2019,1904-00722,0.00,14.99,R,Amazon.Co.Uk*mw22t80p4,Yes
Http://opendatacommunities.org/id/metropolitan-district-council/leeds,Leeds City Council,30/04/2019,Children and Families,Social Care  ,Supplies and Services,Teaching Materials,202,14/03/2019,1904-00723,0.00,8.95,R,Amazon.Co.Uk*mw2gc38n4,Yes
Http://opendatacommunities.org/id/metropolitan-district-council/leeds,Leeds City Council,30/04/2019,Children and Families,Social Care  ,Supplies and Services,Clothing & Uniforms,241,05/03/2019,1904-00724,0.00,33.73,R,Amazon.Co.Uk*mw2jk2a64,Yes
Http://opendatacommunities.org/id/metropolitan-district-council/leeds,Leeds City Council,30/04/2019,City Development,Libraries  Arts & Heritage  ,Supplies and Services,Books & Audio-Visual Materials,206,13/03/2019,1904-00725,0.00,15.82,R,Amazon.Co.Uk*mw2lz08l4 Am,Yes
Http://opendatacommunities.org/id/metropolitan-district-council/leeds,Leeds City Council,30/04/2019,Children and Families,Social Care  ,Supplies and Services,Books & Audio-Visual Materials,206,07/03/2019,1904-00726,0.00,132.32,R,Amazon.Co.Uk*mw2mr2pz4 Am,Yes
Http://opendatacommunities.org/id/metropolitan-district-council/leeds,Leeds City Council,30/04/2019,Resources and Housing,Commercial Services  ,Supplies and Services,Operational Furniture And Equipment,203,21/03/2019,1904-00727,0.00,19.49,R,Amazon.Co.Uk*mw2rj5u04,Yes
Http://opendatacommunities.org/id/metropolitan-district-council/leeds,Leeds City Council,30/04/2019,Communities and Environment,Environmental Health  ,Supplies and Services,Clothing & Uniforms,241,18/03/2019,1904-00728,0.00,43.59,R,Amazon.Co.Uk*mw2sk1sz4 Am,Yes
Http://opendatacommunities.org/id/metropolitan-district-council/leeds,Leeds City Council,30/04/2019,Children and Families,Social Care  ,Supplies and Services,Operational Materials,205,01/03/2019,1904-00729,0.00,42.99,R,Amazon.Co.Uk*mw30p4zy4,Yes
Http://opendatacommunities.org/id/metropolitan-district-council/leeds,Leeds City Council,30/04/2019,Communities and Environment,Parks And Countryside  ,Supplies and Services,Operational Materials,205,13/03/2019,1904-00730,0.00,10.45,R,Amazon.Co.Uk*mw37o8bt4,Yes
Http://opendatacommunities.org/id/metropolitan-district-council/leeds,Leeds City Council,30/04/2019,Children and Families,Social Care  ,Supplies and Services,General Amenity For Clients/Residents,285,19/03/2019,1904-00731,0.00,12.99,R,Amazon.Co.Uk*mw3dn6kv4,Yes
Http://opendatacommunities.org/id/metropolitan-district-council/leeds,Leeds City Council,30/04/2019,Children and Families,Social Care  ,Supplies and Services,Teaching Materials,202,14/03/2019,1904-00732,0.00,109.01,R,Amazon.Co.Uk*mw3it3q44,Yes
Http://opendatacommunities.org/id/metropolitan-district-council/leeds,Leeds City Council,30/04/2019,Children and Families,Social Care  ,Supplies and Services,General Amenity For Clients/Residents,285,25/03/2019,1904-00733,0.00,319.99,R,Amazon.Co.Uk*mw3kn3yd4,Yes
Http://opendatacommunities.org/id/metropolitan-district-council/leeds,Leeds City Council,30/04/2019,Children and Families,Social Care  ,Supplies and Services,Teaching Materials,202,06/03/2019,1904-00734,0.00,57.76,R,Amazon.Co.Uk*mw3mf20f4,Yes
Http://opendatacommunities.org/id/metropolitan-district-council/leeds,Leeds City Council,30/04/2019,City Development,Libraries  Arts & Heritage  ,Supplies and Services,Operational Materials,205,20/03/2019,1904-00735,0.00,17.00,R,Amazon.Co.Uk*mw3ny9764,Yes
Http://opendatacommunities.org/id/metropolitan-district-council/leeds,Leeds City Council,30/04/2019,City Development,Libraries  Arts & Heritage  ,Supplies and Services,Operational Materials,205,06/03/2019,1904-00736,0.00,19.32,R,Amazon.Co.Uk*mw3p37044,Yes
Http://opendatacommunities.org/id/metropolitan-district-council/leeds,Leeds City Council,30/04/2019,Resources and Housing,Facilities Management  ,Supplies and Services,Hospitality,255,18/03/2019,1904-00737,0.00,16.67,R,Amazon.Co.Uk*mw3vp42e4 Am,Yes
Http://opendatacommunities.org/id/metropolitan-district-council/leeds,Leeds City Council,30/04/2019,Resources and Housing,Shared Services  ,Supplies and Services,Operational Materials,205,19/03/2019,1904-00738,0.00,108.33,R,Amazon.Co.Uk*mw41m0k34 Am,Yes
Http://opendatacommunities.org/id/metropolitan-district-council/leeds,Leeds City Council,30/04/2019,Strategic Landlord,Housing Management  ,Supplies and Services,Office Furniture & Equipment,201,20/03/2019,1904-00739,0.00,14.99,R,Amazon.Co.Uk*mw4674954,Yes
Http://opendatacommunities.org/id/metropolitan-district-council/leeds,Leeds City Council,30/04/2019,Communities and Environment,Parks And Countryside  ,Supplies and Services,Operational Materials,205,20/03/2019,1904-00740,0.00,11.07,R,Amazon.Co.Uk*mw49o67r4,Yes
Http://opendatacommunities.org/id/metropolitan-district-council/leeds,Leeds City Council,30/04/2019,Children and Families,Social Care  ,Supplies and Services,Teaching Materials,202,11/03/2019,1904-00741,0.00,3.06,R,Amazon.Co.Uk*mw4bp3mw4,Yes
Http://opendatacommunities.org/id/metropolitan-district-council/leeds,Leeds City Council,30/04/2019,City Development,Libraries  Arts & Heritage  ,Supplies and Services,Computer Software & Equipment,214,11/03/2019,1904-00742,0.00,35.83,R,Amazon.Co.Uk*mw4fp2v74,Yes
Http://opendatacommunities.org/id/metropolitan-district-council/leeds,Leeds City Council,30/04/2019,Adults and Health,Other Generic Services  ,Supplies and Services,Operational Materials,205,13/03/2019,1904-00743,0.00,218.00,R,Amazon.Co.Uk*mw4g21hm4,Yes
Http://opendatacommunities.org/id/metropolitan-district-council/leeds,Leeds City Council,30/04/2019,Children and Families,Learning  ,Supplies and Services,Teaching Materials,202,04/03/2019,1904-00744,0.00,18.87,R,Amazon.Co.Uk*mw4h15jj4,Yes
Http://opendatacommunities.org/id/metropolitan-district-council/leeds,Leeds City Council,30/04/2019,Resources and Housing,Technology  ,Supplies and Services,Computer Software & Equipment,214,23/03/2019,1904-00745,0.00,16.24,R,Amazon.Co.Uk*mw4hg8rs4,Yes
Http://opendatacommunities.org/id/metropolitan-district-council/leeds,Leeds City Council,30/04/2019,Communities and Environment,Customer Access  ,Supplies and Services,Books & Audio-Visual Materials,206,14/03/2019,1904-00746,0.00,42.61,R,Amazon.Co.Uk*mw4jo18f4,Yes
Http://opendatacommunities.org/id/metropolitan-district-council/leeds,Leeds City Council,30/04/2019,Children and Families,Social Care  ,Supplies and Services,Operational Furniture And Equipment,203,13/03/2019,1904-00747,0.00,39.26,R,Amazon.Co.Uk*mw4ku9hr4,Yes
Http://opendatacommunities.org/id/metropolitan-district-council/leeds,Leeds City Council,30/04/2019,Resources and Housing,Leeds Building Services  ,Supplies and Services,Office Consumables,210,28/02/2019,1904-00748,0.00,26.83,R,Amazon.Co.Uk*mw4m68ld4,Yes
Http://opendatacommunities.org/id/metropolitan-district-council/leeds,Leeds City Council,30/04/2019,Communities and Environment,Community Safety  ,Supplies and Services,Operational Furniture And Equipment,203,19/03/2019,1904-00749,0.00,17.46,R,Amazon.Co.Uk*mw4uq1k64,Yes
Http://opendatacommunities.org/id/metropolitan-district-council/leeds,Leeds City Council,30/04/2019,Communities and Environment,Parks And Countryside  ,Supplies and Services,Operational Materials,205,03/03/2019,1904-00750,0.00,21.98,R,Amazon.Co.Uk*mw4wy8jk4 Am,Yes
Http://opendatacommunities.org/id/metropolitan-district-council/leeds,Leeds City Council,30/04/2019,Children and Families,Learning  ,Supplies and Services,Teaching Materials,202,07/03/2019,1904-00751,0.00,36.40,R,Amazon.Co.Uk*mw50j4pu4 Am,Yes
Http://opendatacommunities.org/id/metropolitan-district-council/leeds,Leeds City Council,30/04/2019,City Development,Libraries  Arts & Heritage  ,Supplies and Services,Operational Furniture And Equipment,203,09/03/2019,1904-00752,0.00,124.58,R,Amazon.Co.Uk*mw51g8xn4,Yes
Http://opendatacommunities.org/id/metropolitan-district-council/leeds,Leeds City Council,30/04/2019,Children and Families,Social Care  ,Supplies and Services,Teaching Furniture & Equipment,207,10/03/2019,1904-00753,0.00,13.33,R,Amazon.Co.Uk*mw51k2vx4,Yes
Http://opendatacommunities.org/id/metropolitan-district-council/leeds,Leeds City Council,30/04/2019,Children and Families,Social Care  ,Supplies and Services,Food & Drink,231,10/03/2019,1904-00754,0.00,10.58,R,Amazon.Co.Uk*mw57d7v64 Am,Yes
Http://opendatacommunities.org/id/metropolitan-district-council/leeds,Leeds City Council,30/04/2019,Children and Families,Social Care  ,Supplies and Services,Office Furniture & Equipment,201,06/03/2019,1904-00755,0.00,27.48,R,Amazon.Co.Uk*mw5ew8e24,Yes
Http://opendatacommunities.org/id/metropolitan-district-council/leeds,Leeds City Council,30/04/2019,Children and Families,Learning  ,Supplies and Services,Teaching Materials,202,20/03/2019,1904-00756,0.00,115.83,R,Amazon.Co.Uk*mw5fs47l4,Yes
Http://opendatacommunities.org/id/metropolitan-district-council/leeds,Leeds City Council,30/04/2019,Adults and Health,Assessment And Care Management  ,Supplies and Services,Operational Furniture And Equipment,203,07/03/2019,1904-00757,0.00,8.29,R,Amazon.Co.Uk*mw5iv80w4 Am,Yes
Http://opendatacommunities.org/id/metropolitan-district-council/leeds,Leeds City Council,30/04/2019,City Development,Libraries  Arts & Heritage  ,Supplies and Services,Books & Audio-Visual Materials,206,18/03/2019,1904-00758,0.00,3.00,R,Amazon.Co.Uk*mw5j76sd4,Yes
Http://opendatacommunities.org/id/metropolitan-district-council/leeds,Leeds City Council,30/04/2019,Children and Families,Social Care  ,Supplies and Services,Office Consumables,210,05/03/2019,1904-00759,0.00,64.42,R,Amazon.Co.Uk*mw5o15e54 Am,Yes
Http://opendatacommunities.org/id/metropolitan-district-council/leeds,Leeds City Council,30/04/2019,Children and Families,Social Care  ,Supplies and Services,Office Consumables,210,05/03/2019,1904-00760,0.00,20.75,R,Amazon.Co.Uk*mw5p55a24,Yes
Http://opendatacommunities.org/id/metropolitan-district-council/leeds,Leeds City Council,30/04/2019,Communities and Environment,Parks And Countryside  ,Premises,First Aid Requisites,128,11/03/2019,1904-00761,0.00,37.29,R,Amazon.Co.Uk*mw5w48mz4 Am,Yes
Http://opendatacommunities.org/id/metropolitan-district-council/leeds,Leeds City Council,30/04/2019,Children and Families,Learning  ,Supplies and Services,Teaching Materials,202,09/03/2019,1904-00762,0.00,14.97,R,Amazon.Co.Uk*mw5zk5x94,Yes
Http://opendatacommunities.org/id/metropolitan-district-council/leeds,Leeds City Council,30/04/2019,City Development,Libraries  Arts & Heritage  ,Supplies and Services,Office Furniture & Equipment,201,02/03/2019,1904-00763,0.00,2.83,R,Amazon.Co.Uk*mw6486n24,Yes
Http://opendatacommunities.org/id/metropolitan-district-council/leeds,Leeds City Council,30/04/2019,Communities and Environment,Parks And Countryside  ,Supplies and Services,Books & Audio-Visual Materials,206,15/03/2019,1904-00764,0.00,10.82,R,Amazon.Co.Uk*mw6a06qg4,Yes
Http://opendatacommunities.org/id/metropolitan-district-council/leeds,Leeds City Council,30/04/2019,City Development,Libraries  Arts & Heritage  ,Supplies and Services,Operational Materials,205,22/03/2019,1904-00765,0.00,34.17,R,Amazon.Co.Uk*mw6ah1ii4,Yes
Http://opendatacommunities.org/id/metropolitan-district-council/leeds,Leeds City Council,30/04/2019,City Development,Recreation  ,Supplies and Services,Operational Furniture And Equipment,203,19/03/2019,1904-00766,0.00,111.66,R,Amazon.Co.Uk*mw6do02s4,Yes
Http://opendatacommunities.org/id/metropolitan-district-council/leeds,Leeds City Council,30/04/2019,Children and Families,Social Care  ,Supplies and Services,Teaching Materials,202,13/03/2019,1904-00767,0.00,23.03,R,Amazon.Co.Uk*mw6em6hv4 Am,Yes
Http://opendatacommunities.org/id/metropolitan-district-council/leeds,Leeds City Council,30/04/2019,Strategic Landlord,Housing Management  ,Supplies and Services,Office Furniture & Equipment,201,06/03/2019,1904-00768,0.00,21.99,R,Amazon.Co.Uk*mw6oi30q4,Yes
Http://opendatacommunities.org/id/metropolitan-district-council/leeds,Leeds City Council,30/04/2019,Communities and Environment,Parks And Countryside  ,Supplies and Services,Office Consumables,210,05/03/2019,1904-00769,0.00,2.58,R,Amazon.Co.Uk*mw6qt2ao4 Am,Yes
Http://opendatacommunities.org/id/metropolitan-district-council/leeds,Leeds City Council,30/04/2019,Adults and Health,Assessment And Care Management  ,Supplies and Services,Office Furniture & Equipment,201,04/03/2019,1904-00770,0.00,28.32,R,Amazon.Co.Uk*mw7f28tx4,Yes
Http://opendatacommunities.org/id/metropolitan-district-council/leeds,Leeds City Council,30/04/2019,Adults and Health,Services For Older People - 65 And Over  ,Premises,First Aid Requisites,128,24/03/2019,1904-00771,0.00,43.96,R,Amazon.Co.Uk*mw7fz3w44,Yes
